Organisation Name,Organisation Code,Effective Date,Directorate,Service Category,Service Category URI,Supplier Name,Payment Date,Transaction Number,Net Amount,Irrecoverable VAT,Purpose_of_the_expenditure,Merchant Category
Wyre Council,http://opendatacommunities.org/doc/district-council/wyre,30/05/2023,People and Places,Cultural and Related Services,132A,Colourbanners.co.uk,17/05/2023,PE149618,110.00,0.00,Brighouse and Rastrick TLT banner,Advertising - General
Wyre Council,http://opendatacommunities.org/doc/district-council/wyre,30/05/2023,People and Places,Cultural and Related Services,132A,Preston City Council,02/05/2023,PE149196,120.51,0.00,Festival Trail MArkers 10x 450 x 450mm full colour 1pp printed digital and mounted on 6mm correx 4 holes to top and bottom on each panel,Advertising - General
Wyre Council,http://opendatacommunities.org/doc/district-council/wyre,30/05/2023,People and Places,Cultural and Related Services,132A,Preston City Council,02/05/2023,PE149196,40.71,0.00,2 x A1 Lancashire Tourism Award boards for Mount Pavilion,Advertising - General
Wyre Council,http://opendatacommunities.org/doc/district-council/wyre,30/05/2023,People and Places,Cultural and Related Services,132A,Amazon Business,10/05/2023,PE149361,18.32,0.00,1oo uk flags,Advertising - General
Wyre Council,http://opendatacommunities.org/doc/district-council/wyre,30/05/2023,Resources,Cultural and Related Services,132A,Tom Pooley Marketing,31/05/2023,RS149315,1000.00,0.00,For social marketer (influencer) Tom Pooley to film and produce some social content to promote Garstang Walking Festival,Advertising - General
Wyre Council,http://opendatacommunities.org/doc/district-council/wyre,30/05/2023,Resources,Support Services,135B,JGP Resourcing LTD,26/05/2023,RS149793,7500.00,0.00,ATS - 12 month period to 28/05/2024,Advertising - Recruitment
Wyre Council,http://opendatacommunities.org/doc/district-council/wyre,30/05/2023,Resources,Central Services to the Public,131C,National World Publishing Ltd,02/05/2023,RS148348,924.60,0.00,Advert Ref No: NMC6233923 Local Government Finance Act 1992 - Council Tax 2023/24,Advertising - Statutory Notices
Wyre Council,http://opendatacommunities.org/doc/district-council/wyre,30/05/2023,Resources,Housing General Fund,134A,RHEA PROJECTS LTD,30/05/2023,RS149819,4320.00,0.00,Affordable warmth support,Affordable Warmth 2017/18
Wyre Council,http://opendatacommunities.org/doc/district-council/wyre,30/05/2023,Resources,Support Services,135B,G2V Recruitment Group Ltd T/A G2 Recruitment Solu,12/05/2023,RS149325,1655.85,0.00,Payment of invoice - 121431 - period end 30/04/2023,Agency Staff
Wyre Council,http://opendatacommunities.org/doc/district-council/wyre,30/05/2023,Resources,Support Services,135B,G2V Recruitment Group Ltd T/A G2 Recruitment Solu,12/05/2023,RS149159,1663.05,0.00,Payment of invoice - NO 121095 - period end 23/04/2023,Agency Staff
Wyre Council,http://opendatacommunities.org/doc/district-council/wyre,30/05/2023,People and Places,Support Services,135B,G2V Recruitment Group Ltd T/A G2 Recruitment Solu,12/05/2023,PE148833,1655.85,0.00,Payment of invoice NO - 120363 Period End 09/04/2023,Agency Staff
Wyre Council,http://opendatacommunities.org/doc/district-council/wyre,30/05/2023,People and Places,Support Services,135B,G2V Recruitment Group Ltd T/A G2 Recruitment Solu,25/05/2023,PE149680,1660.35,0.00,Payment of invoice - NO 122219 - period end 14/05/2023,Agency Staff
Wyre Council,http://opendatacommunities.org/doc/district-council/wyre,30/05/2023,Resources,Support Services,135B,Park Avenue Recruitment Ltd,05/05/2023,RS149269,2110.35,0.00,Appointment of an interim Estates Surveyor,Agency Staff
Wyre Council,http://opendatacommunities.org/doc/district-council/wyre,30/05/2023,Resources,Support Services,135B,Park Avenue Recruitment Ltd,05/05/2023,RS149304,1640.30,0.00,Appointment of an interim Estates Surveyor,Agency Staff
Wyre Council,http://opendatacommunities.org/doc/district-council/wyre,30/05/2023,Resources,Support Services,135B,Park Avenue Recruitment Ltd,05/05/2023,RS149303,1650.00,0.00,Appointment of an interim Estates Surveyor,Agency Staff
Wyre Council,http://opendatacommunities.org/doc/district-council/wyre,30/05/2023,Resources,Support Services,135B,Michael Page International Recruitment Limited,02/05/2023,RS149118,2500.00,0.00,Appointment of Interim Asset Manager,Agency Staff
Wyre Council,http://opendatacommunities.org/doc/district-council/wyre,30/05/2023,Resources,Support Services,135B,Michael Page International Recruitment Limited,02/05/2023,RS148694,2000.00,0.00,Appointment of Interim Asset Manager,Agency Staff
Wyre Council,http://opendatacommunities.org/doc/district-council/wyre,30/05/2023,Resources,Support Services,135B,Michael Page International Recruitment Limited,12/05/2023,RS149460,2000.00,0.00,Appointment of Interim Asset Manager,Agency Staff
Wyre Council,http://opendatacommunities.org/doc/district-council/wyre,30/05/2023,Resources,Support Services,135B,Michael Page International Recruitment Limited,10/05/2023,RS149281,203.20,0.00,Building Control Manager - staffing and expense cost,Agency Staff
Wyre Council,http://opendatacommunities.org/doc/district-council/wyre,30/05/2023,Resources,Support Services,135B,Michael Page International Recruitment Limited,10/05/2023,RS149078,891.48,0.00,Building Control Manager - staffing and expense cost,Agency Staff
Wyre Council,http://opendatacommunities.org/doc/district-council/wyre,30/05/2023,Resources,Support Services,135B,Michael Page International Recruitment Limited,10/05/2023,RS148773,557.18,0.00,Building Control Manager - staffing and expense cost,Agency Staff
Wyre Council,http://opendatacommunities.org/doc/district-council/wyre,30/05/2023,Resources,Support Services,135B,Michael Page International Recruitment Limited,10/05/2023,RS149004,233.05,0.00,Building Control Manager - staffing and expense cost,Agency Staff
Wyre Council,http://opendatacommunities.org/doc/district-council/wyre,30/05/2023,Resources,Support Services,135B,Michael Page International Recruitment Limited,10/05/2023,RS148962,891.48,0.00,Building Control Manager - staffing and expense cost,Agency Staff
Wyre Council,http://opendatacommunities.org/doc/district-council/wyre,30/05/2023,Resources,Support Services,135B,Michael Page International Recruitment Limited,15/05/2023,RS149442,200.50,0.00,Building Control Manager - staffing and expense cost,Agency Staff
Wyre Council,http://opendatacommunities.org/doc/district-council/wyre,30/05/2023,Resources,Support Services,135B,Michael Page International Recruitment Limited,15/05/2023,RS149419,891.48,0.00,Building Control Manager - staffing and expense cost,Agency Staff
Wyre Council,http://opendatacommunities.org/doc/district-council/wyre,30/05/2023,Resources,Support Services,135B,Michael Page International Recruitment Limited,15/05/2023,RS149252,891.48,0.00,Building Control Manager - staffing and expense cost,Agency Staff
Wyre Council,http://opendatacommunities.org/doc/district-council/wyre,30/05/2023,Resources,Support Services,135B,Michael Page International Recruitment Limited,16/05/2023,RS149539,891.48,0.00,Building Control Manager - staffing and expense cost,Agency Staff
Wyre Council,http://opendatacommunities.org/doc/district-council/wyre,30/05/2023,Resources,Support Services,135B,Michael Page International Recruitment Limited,04/05/2023,RS149271,2500.00,0.00,Appointment of Interim Asset Manager,Agency Staff
Wyre Council,http://opendatacommunities.org/doc/district-council/wyre,30/05/2023,Resources,Support Services,135B,Michael Page International Recruitment Limited,31/05/2023,RS149746,891.48,0.00,Building Control Manager - staffing and expense cost,Agency Staff
Wyre Council,http://opendatacommunities.org/doc/district-council/wyre,30/05/2023,Resources,Support Services,135B,Michael Page International Recruitment Limited,31/05/2023,RS149881,197.62,0.00,Building Control Manager - staffing and expense cost,Agency Staff
Wyre Council,http://opendatacommunities.org/doc/district-council/wyre,30/05/2023,People and Places,Support Services,135B,M D Security,02/05/2023,PE148615,987.60,0.00,Civic Centre: aintenance and monitoring of security alarn system for 1 year,Alarm Systems and Security - Annual
Wyre Council,http://opendatacommunities.org/doc/district-council/wyre,30/05/2023,People and Places,Support Services,135B,M D Security,26/05/2023,PE149683,60.00,0.00,Civic Centre: Carried out emergency light test for 05/23,Alarm Systems and Security - Annual
Wyre Council,http://opendatacommunities.org/doc/district-council/wyre,30/05/2023,People and Places,Cultural and Related Services,132A,M D Security,09/05/2023,PE148552,740.00,0.00,"Memorial Park Pavilion: Remove fire alarm and blank off call points, replace existing sys with BS5939 Pt6 hard wired interlinked smoke detection with new detectors installed in the same places as the exisitng provision 5 in total",Alarm Systems and Security - Responsive
Wyre Council,http://opendatacommunities.org/doc/district-council/wyre,30/05/2023,People and Places,Environmental Services,132B,M D Security,02/05/2023,PE149033,245.00,0.00,Replaced external sounder,Alarm Systems and Security - Responsive
Wyre Council,http://opendatacommunities.org/doc/district-council/wyre,30/05/2023,People and Places,Planning and Development Servs,132C,M D Security,10/05/2023,PE148490,890.00,0.00,"Fleetwood Market new offices: Julian`s - 1 x smoke detector with sounder base, 1 x PIR for security alarm.  Market supervisor`s - smoke detector with base, Combi PIR, Personal attach button, MIC lead for PA system, MIC due to old one faulty",Alarm Systems and Security - Responsive
Wyre Council,http://opendatacommunities.org/doc/district-council/wyre,30/05/2023,Resources,Support Services,135B,CCS MEDIA LTD,31/05/2023,RS149875,7608.00,0.00,"Yo-Yo DESK PRO 2
To Include:
Yo-Yo DESK PRO 2 - Frame Only [Black]
Desk Top - 140 x 80 cm [TIMBER] Porthole Cover - Metal Standard Grommets - BLACK FREE
UPGRADE
CONTROL SWITCH/Digital Display with Memory Settings FREE UPGRADE
LEVO Monitor Arm - Dual",Alterations Payments
Wyre Council,http://opendatacommunities.org/doc/district-council/wyre,30/05/2023,People and Places,Cultural and Related Services,132A,Andrew Signs LTD,23/05/2023,PE149693,30.00,0.00,Cleveleys beach notice board,Amenity and Information Signs
Wyre Council,http://opendatacommunities.org/doc/district-council/wyre,30/05/2023,People and Places,Cultural and Related Services,132A,Andrew Signs LTD,23/05/2023,PE149694,30.00,0.00,Fleetwood beach board,Amenity and Information Signs
Wyre Council,http://opendatacommunities.org/doc/district-council/wyre,30/05/2023,Finance,Support Services,135B,,24/05/2023,WPST00107405,2618.00,0.00,Total Apprenticeship Levy Apr 23,Apprenticeship Levy
Wyre Council,http://opendatacommunities.org/doc/district-council/wyre,30/05/2023,Resources,Corporate and Democratic Core,131A,PR Chauffeuring Services,04/05/2023,RS149292,1617.00,0.00,March 23 monthly chauffeuring services,Attendant Chauffeur Service
Wyre Council,http://opendatacommunities.org/doc/district-council/wyre,30/05/2023,Resources,Corporate and Democratic Core,131A,PR Chauffeuring Services,25/05/2023,RS149743,1421.00,0.00,Monthly Chauffeuring Payment April 2023,Attendant Chauffeur Service
Wyre Council,http://opendatacommunities.org/doc/district-council/wyre,30/05/2023,Finance,Corporate and Democratic Core,131A,NATWEST BANK,25/05/2023,WPST00107632,665.05,0.00,31/05/202229APR GRP 99795000,Bank Charges
Wyre Council,http://opendatacommunities.org/doc/district-council/wyre,30/05/2023,Finance,Corporate and Democratic Core,131A,NATWEST BANK,23/05/2023,WPST00107291,1150.53,0.00,Worldpay Invoice 254701292,Bank Charges
Wyre Council,http://opendatacommunities.org/doc/district-council/wyre,30/05/2023,Finance,Corporate and Democratic Core,131A,NATWEST BANK,23/05/2023,WPST00107294,3086.71,0.00,Worldpay Invoice 254667675,Bank Charges
Wyre Council,http://opendatacommunities.org/doc/district-council/wyre,30/05/2023,Finance,Corporate and Democratic Core,131A,NATWEST BANK,03/05/2023,WPST00104887,512.96,0.00,Bank Charge 31 Mar,Bank Charges
Wyre Council,http://opendatacommunities.org/doc/district-council/wyre,30/05/2023,People and Places,Environmental Services,132B,M D Security,02/05/2023,PE148863,1969.00,0.00,"Monitoring of CCTV System for 1 year from 1/4/23 - 31/1/24 Chatsworth Depot, Fleetwood",CCTV Running Costs
Wyre Council,http://opendatacommunities.org/doc/district-council/wyre,30/05/2023,People and Places,Environmental Services,132B,M D Security,10/05/2023,PE148862,-1998.00,0.00,Matches invoice RS148816,CCTV Running Costs
Wyre Council,http://opendatacommunities.org/doc/district-council/wyre,30/05/2023,People and Places,Environmental Services,132B,M D Security,10/05/2023,RS148816,1998.00,0.00,Credited on PE148862,CCTV Running Costs
Wyre Council,http://opendatacommunities.org/doc/district-council/wyre,30/05/2023,People and Places,Environmental Services,132B,N Power LTD,18/05/2023,PE149502,79.54,0.00,Unmetered Electricity Charges Town Centre CCTV 1-30Apr23,CCTV Running Costs
Wyre Council,http://opendatacommunities.org/doc/district-council/wyre,30/05/2023,People and Places,Environmental Services,132B,N Power LTD,18/05/2023,PE149502,-20.16,0.00,Unmetered Electricity Charges Town Centre CCTV 1-30Apr23,CCTV Running Costs
Wyre Council,http://opendatacommunities.org/doc/district-council/wyre,30/05/2023,People and Places,Environmental Services,132B,N Power LTD,18/05/2023,PE149502,-3.82,0.00,Unmetered Electricity Charges Town Centre CCTV 1-30Apr23,CCTV Running Costs
Wyre Council,http://opendatacommunities.org/doc/district-council/wyre,30/05/2023,People and Places,Environmental Services,132B,N Power LTD,18/05/2023,PE149502,13.67,0.00,Unmetered Electricity Charges Town Centre CCTV 1-30Apr23,CCTV Running Costs
Wyre Council,http://opendatacommunities.org/doc/district-council/wyre,30/05/2023,People and Places,Environmental Services,132B,N Power LTD,18/05/2023,PE149502,-30.52,0.00,Unmetered Electricity Charges Town Centre CCTV 1-30Apr23,CCTV Running Costs
Wyre Council,http://opendatacommunities.org/doc/district-council/wyre,30/05/2023,People and Places,Environmental Services,132B,N Power LTD,18/05/2023,PE149502,118.94,0.00,Unmetered Electricity Charges Town Centre CCTV 1-30Apr23,CCTV Running Costs
Wyre Council,http://opendatacommunities.org/doc/district-council/wyre,30/05/2023,Resources,Support Services,135B,Key Engineering & Hygiene Supplies LTD,02/05/2023,RS149200,32.82,0.00,BLACK REFUSE SACKS 18X29X38 90 LTR,Cleaning Materials
Wyre Council,http://opendatacommunities.org/doc/district-council/wyre,30/05/2023,Resources,Support Services,135B,Key Engineering & Hygiene Supplies LTD,02/05/2023,RS149200,5.20,0.00,20 X 15 BLEACHED DISH CLOTHS EA,Cleaning Materials
Wyre Council,http://opendatacommunities.org/doc/district-council/wyre,30/05/2023,Resources,Support Services,135B,Key Engineering & Hygiene Supplies LTD,02/05/2023,RS149200,9.72,0.00,BLUE NITRILE POWDER FREE GLOVES LARGE,Cleaning Materials
Wyre Council,http://opendatacommunities.org/doc/district-council/wyre,30/05/2023,People and Places,Planning and Development Servs,132C,Key Engineering & Hygiene Supplies LTD,10/05/2023,PE149366,37.92,0.00,"Supply and deliver as your quotation 18880 27/4/23Delivery to Wyre Council, Copse Road Depot, Fleetwood, FY7 6RP",Cleaning Materials
Wyre Council,http://opendatacommunities.org/doc/district-council/wyre,30/05/2023,Resources,Support Services,135B,Key Engineering & Hygiene Supplies LTD,02/05/2023,RS149200,10.08,0.00,EU FRESH NON ACIDIC POT POURRI TOILET CLEANER 1 LTR,Cleaning Materials
Wyre Council,http://opendatacommunities.org/doc/district-council/wyre,30/05/2023,Resources,Support Services,135B,Key Engineering & Hygiene Supplies LTD,02/05/2023,RS149200,17.64,0.00,EVANS CYCLONE EXTRA THICK BLEACH 750ML,Cleaning Materials
Wyre Council,http://opendatacommunities.org/doc/district-council/wyre,30/05/2023,Resources,Support Services,135B,Key Engineering & Hygiene Supplies LTD,02/05/2023,RS149200,7.52,0.00,KEYPINE PINE DISINFECTANT 5 LITRE,Cleaning Materials
Wyre Council,http://opendatacommunities.org/doc/district-council/wyre,30/05/2023,Resources,Support Services,135B,Key Engineering & Hygiene Supplies LTD,02/05/2023,RS149200,5.67,0.00,KIND DETERGENT 5 LITRE,Cleaning Materials
Wyre Council,http://opendatacommunities.org/doc/district-council/wyre,30/05/2023,Resources,Support Services,135B,Key Engineering & Hygiene Supplies LTD,02/05/2023,RS149200,15.54,0.00,LIQUID SPRAY POLISH 750ML TRIGGER SPRAY,Cleaning Materials
Wyre Council,http://opendatacommunities.org/doc/district-council/wyre,30/05/2023,Resources,Support Services,135B,Key Engineering & Hygiene Supplies LTD,02/05/2023,RS149200,6.95,0.00,SAFE ZONE PLUS  5 LITRE,Cleaning Materials
Wyre Council,http://opendatacommunities.org/doc/district-council/wyre,30/05/2023,Resources,Support Services,135B,Key Engineering & Hygiene Supplies LTD,02/05/2023,RS149200,13.41,0.00,VERSATILE HARD SURFACE CLEANER 5 LITRE,Cleaning Materials
Wyre Council,http://opendatacommunities.org/doc/district-council/wyre,30/05/2023,Resources,Support Services,135B,Key Engineering & Hygiene Supplies LTD,02/05/2023,RS149200,4.86,0.00,BLUE NITRILE POWDER FREE GLOVES MEDIUM,Cleaning Materials
Wyre Council,http://opendatacommunities.org/doc/district-council/wyre,30/05/2023,Resources,Support Services,135B,Key Engineering & Hygiene Supplies LTD,02/05/2023,RS149200,171.85,0.00,BLUE INTERFOLD HAND TOWELS 3600 SHEETS,Cleaning Materials
Wyre Council,http://opendatacommunities.org/doc/district-council/wyre,30/05/2023,Resources,Support Services,135B,Key Engineering & Hygiene Supplies LTD,02/05/2023,RS149200,153.00,0.00,WHITE JUMBO TOILET ROLL (40PK),Cleaning Materials
Wyre Council,http://opendatacommunities.org/doc/district-council/wyre,30/05/2023,People and Places,Cultural and Related Services,132A,Key Engineering & Hygiene Supplies LTD,30/05/2023,PE149824,11.16,0.00,SANTEEM RTU ODOURLESS CLEANER + SANITISER 750ML,Cleaning Materials
Wyre Council,http://opendatacommunities.org/doc/district-council/wyre,30/05/2023,People and Places,Cultural and Related Services,132A,Key Engineering & Hygiene Supplies LTD,30/05/2023,PE149824,21.17,0.00,EXTRA STRONG BLACK REFUSE SACK 18X29X39 180G 90LTR (PER 200),Cleaning Materials
Wyre Council,http://opendatacommunities.org/doc/district-council/wyre,30/05/2023,People and Places,Cultural and Related Services,132A,Key Engineering & Hygiene Supplies LTD,30/05/2023,PE149824,9.42,0.00,EAUFRESH NON ACIDIC POT POURRI TOILET CLEANER 1 LTR,Cleaning Materials
Wyre Council,http://opendatacommunities.org/doc/district-council/wyre,30/05/2023,People and Places,Planning and Development Servs,132C,Key Engineering & Hygiene Supplies LTD,17/05/2023,PE149367,29.84,0.00,supply and delivery of 8 toilet brush and holder,Cleaning Materials
Wyre Council,http://opendatacommunities.org/doc/district-council/wyre,30/05/2023,Resources,Support Services,135B,Key Engineering & Hygiene Supplies LTD,15/05/2023,RS148547,11.34,0.00,KIND DETERGENT 5 LITRE,Cleaning Materials
Wyre Council,http://opendatacommunities.org/doc/district-council/wyre,30/05/2023,Resources,Support Services,135B,Key Engineering & Hygiene Supplies LTD,15/05/2023,RS148547,9.05,0.00,ENSURE ALCOHOL BASED SANITISER 5 LITRE,Cleaning Materials
Wyre Council,http://opendatacommunities.org/doc/district-council/wyre,30/05/2023,Resources,Support Services,135B,Key Engineering & Hygiene Supplies LTD,15/05/2023,RS148547,10.94,0.00,BLACK REFUSE SACKS 18X29X38 90 LTR,Cleaning Materials
Wyre Council,http://opendatacommunities.org/doc/district-council/wyre,30/05/2023,Resources,Support Services,135B,Key Engineering & Hygiene Supplies LTD,15/05/2023,RS148547,31.08,0.00,LIQUID SPRAY POLISH 750ML TRIGGER SPRAY,Cleaning Materials
Wyre Council,http://opendatacommunities.org/doc/district-council/wyre,30/05/2023,Resources,Support Services,135B,Key Engineering & Hygiene Supplies LTD,15/05/2023,RS148547,6.95,0.00,SAFE ZONE PLUS  5 LITRE,Cleaning Materials
Wyre Council,http://opendatacommunities.org/doc/district-council/wyre,30/05/2023,Resources,Support Services,135B,Key Engineering & Hygiene Supplies LTD,15/05/2023,RS148547,165.75,0.00,SOFTLUX 3 PLY TOILET ROLL(10 X 4),Cleaning Materials
Wyre Council,http://opendatacommunities.org/doc/district-council/wyre,30/05/2023,Resources,Support Services,135B,Key Engineering & Hygiene Supplies LTD,15/05/2023,RS148547,9.72,0.00,BLUE NITRILE POWDER FREE GLOVES MEDIUM,Cleaning Materials
Wyre Council,http://opendatacommunities.org/doc/district-council/wyre,30/05/2023,Resources,Support Services,135B,Key Engineering & Hygiene Supplies LTD,15/05/2023,RS148547,18.21,0.00,Small Paper Towel Dispenser,Cleaning Materials
Wyre Council,http://opendatacommunities.org/doc/district-council/wyre,30/05/2023,Resources,Support Services,135B,Key Engineering & Hygiene Supplies LTD,15/05/2023,RS148547,220.95,0.00,BLUE INTERFOLD HAND TOWELS 3600 SHEETS,Cleaning Materials
Wyre Council,http://opendatacommunities.org/doc/district-council/wyre,30/05/2023,Resources,Support Services,135B,Key Engineering & Hygiene Supplies LTD,15/05/2023,RS149491,7.52,0.00,EVANS FOAMING LEMON SOAP 5L,Cleaning Materials
Wyre Council,http://opendatacommunities.org/doc/district-council/wyre,30/05/2023,Resources,Support Services,135B,Key Engineering & Hygiene Supplies LTD,15/05/2023,RS148547,19.68,0.00,11 X 18 X 18 WHITE PEDAL H/DUTY BIN LINER (1000),Cleaning Materials
Wyre Council,http://opendatacommunities.org/doc/district-council/wyre,30/05/2023,Resources,Support Services,135B,Key Engineering & Hygiene Supplies LTD,15/05/2023,RS148547,12.30,0.00,CLEAR WINDOW CLEANER 750ML,Cleaning Materials
Wyre Council,http://opendatacommunities.org/doc/district-council/wyre,30/05/2023,Resources,Support Services,135B,Key Engineering & Hygiene Supplies LTD,15/05/2023,RS148547,41.44,0.00,METAL POLISH BRASSO 175ML,Cleaning Materials
Wyre Council,http://opendatacommunities.org/doc/district-council/wyre,30/05/2023,Resources,Support Services,135B,Key Engineering & Hygiene Supplies LTD,15/05/2023,RS148547,17.64,0.00,THICK BLEACH 75OML,Cleaning Materials
Wyre Council,http://opendatacommunities.org/doc/district-council/wyre,30/05/2023,Resources,Support Services,135B,Key Engineering & Hygiene Supplies LTD,15/05/2023,RS148547,10.08,0.00,EU FRESH NON ACIDIC POT POURRI TOILET CLEANER 1 LTR,Cleaning Materials
Wyre Council,http://opendatacommunities.org/doc/district-council/wyre,30/05/2023,Resources,Support Services,135B,Key Engineering & Hygiene Supplies LTD,15/05/2023,RS148547,3.76,0.00,E-PINE DISINFECTANT 5 LITRE,Cleaning Materials
Wyre Council,http://opendatacommunities.org/doc/district-council/wyre,30/05/2023,Resources,Support Services,135B,Key Engineering & Hygiene Supplies LTD,15/05/2023,RS148547,8.94,0.00,VERSATILE HARD SURFACE CLEANER 5 LITRE,Cleaning Materials
Wyre Council,http://opendatacommunities.org/doc/district-council/wyre,30/05/2023,People and Places,Planning and Development Servs,132C,Amazon Business,02/05/2023,PE149172,16.84,0.00,Spray packs @ 20.80brackets and cables @ 31.48Tools @ 52.89Toilet brushes @ 16.84,Cleaning Materials
Wyre Council,http://opendatacommunities.org/doc/district-council/wyre,30/05/2023,People and Places,Planning and Development Servs,132C,Amazon Business,10/05/2023,PE149306,16.68,0.00,toilet brushes,Cleaning Materials
Wyre Council,http://opendatacommunities.org/doc/district-council/wyre,30/05/2023,People and Places,Cultural and Related Services,132A,EAS Electrical Mechanical,04/05/2023,PE149287,98.32,0.00,"Clock, Victoria Rd W Shelter 11: clock wasn`t seen moving on top of the shelter, fuse keeps blowing when led lights are plugged in, other 2 black plugs left out supply the 2 lwd panels inside on the back of the shelter, 1 black plug left in currently supp",Clock Maintenance - Responsive
Wyre Council,http://opendatacommunities.org/doc/district-council/wyre,30/05/2023,People and Places,Cultural and Related Services,132A,Amazon Business,31/05/2023,PE149832,61.64,0.00,Storage boxes on wheels x2,Community Arts
Wyre Council,http://opendatacommunities.org/doc/district-council/wyre,30/05/2023,Resources,Support Services,135B,Ebuyer (UK) Ltd,15/05/2023,RS149513,622.00,0.00,1144083 - Intel NUC 11 i5-1135G7 Tiger Canyon Tall Barebone,Comp Hardware Purchases
Wyre Council,http://opendatacommunities.org/doc/district-council/wyre,30/05/2023,Resources,Support Services,135B,Ebuyer (UK) Ltd,15/05/2023,RS149513,4.00,0.00,Shipping,Comp Hardware Purchases
Wyre Council,http://opendatacommunities.org/doc/district-council/wyre,30/05/2023,Resources,Support Services,135B,Ebuyer (UK) Ltd,15/05/2023,RS149514,28.00,0.00,1142645 - Crucial 8GB (1x8GB) 3200MHz CL22 DDR4 SODIMM Memory,Comp Hardware Purchases
Wyre Council,http://opendatacommunities.org/doc/district-council/wyre,30/05/2023,Resources,Support Services,135B,Ebuyer (UK) Ltd,15/05/2023,RS149514,38.96,0.00,1134044 - Seagate BarraCuda Q5 500GB PCIe NVME M.2 SSD,Comp Hardware Purchases
Wyre Council,http://opendatacommunities.org/doc/district-council/wyre,30/05/2023,Resources,Support Services,135B,Ebuyer (UK) Ltd,10/05/2023,RS149332,19012.00,0.00,Apple iPad 10th Gen 10.9 Wi-Fi 64GB Tablet - Silver.,Comp Hardware Purchases
Wyre Council,http://opendatacommunities.org/doc/district-council/wyre,30/05/2023,Resources,Support Services,135B,Ebuyer (UK) Ltd,10/05/2023,RS149332,18.00,0.00,Shipping,Comp Hardware Purchases
Wyre Council,http://opendatacommunities.org/doc/district-council/wyre,30/05/2023,Resources,Support Services,135B,Amazon Business,17/05/2023,RS149624,37.44,0.00,DSLRKIT Active PoE Splitter Power Over Ethernet 48V to 5V 2.4A Micro USB Plug for Raspberry Pi B B+ 2 3.,Comp Hardware Purchases
Wyre Council,http://opendatacommunities.org/doc/district-council/wyre,30/05/2023,Resources,Support Services,135B,Amazon Business,17/05/2023,RS149557,1091.70,0.00,"Samsung F22T450FQR - T45F Series - LED monitor - 22`` - 1920 x 1080 Full HD (1080p) @ 75 Hz - IPS - 250 cd/m� - 1000:1-5 ms - 2xHDMI, DisplayPort - black.",Comp Hardware Purchases
Wyre Council,http://opendatacommunities.org/doc/district-council/wyre,30/05/2023,Resources,Support Services,135B,Amazon Business,17/05/2023,RS149469,101.30,0.00,"SUMPK 2m USB C to USB C Cable 100W 2 packs, Type C 3.1 Gen 2 Cable, 10GBbps High Speed Data Transfer 20V5A Quick Charge E-Marker Chip Cord, 4K@60Hz Video Output with Samsung Galaxy T5, MacBook.",Comp Hardware Purchases
Wyre Council,http://opendatacommunities.org/doc/district-council/wyre,30/05/2023,Resources,Support Services,135B,Amazon Business,17/05/2023,RS149467,25.94,0.00,"Extension Leads 6 Way, 3M Extension Leads with 5 USB Slots(5V 3.4A), Multi Socket Surge Protection Power Strip, Wall Mountable Extension Cord for Desk Room Office Home.",Comp Hardware Purchases
Wyre Council,http://opendatacommunities.org/doc/district-council/wyre,30/05/2023,Resources,Support Services,135B,Amazon Business,31/05/2023,RS149714,59.96,0.00,"SanDisk Ultra 32GB SDHC Memory Card, Up to 120 MB/s, Class 10, UHS-I, V10, 3 packs.",Comp Hardware Purchases
Wyre Council,http://opendatacommunities.org/doc/district-council/wyre,30/05/2023,Resources,Support Services,135B,Amazon Business,31/05/2023,RS149712,44.40,0.00,SanDisk Ultra 64GB USB Flash Drive USB 3.0 up to 130MB/s Read - Twin Pack.,Comp Hardware Purchases
Wyre Council,http://opendatacommunities.org/doc/district-council/wyre,30/05/2023,Resources,Support Services,135B,Amazon Business,31/05/2023,RS149712,23.10,0.00,"Logitech M280 Wireless Mouse, 2.4 GHz with USB Nano Receiver, 1000 DPI Optical Tracking, 3 Buttons, 18 Month Battery, Compatible with PC, Mac, Laptop, Chromebook - Black.",Comp Hardware Purchases
Wyre Council,http://opendatacommunities.org/doc/district-council/wyre,30/05/2023,People and Places,Support Services,135B,Amazon Business,31/05/2023,PE149868,43.12,0.00,"x4 Pro Elec PEL00115 6 Gang Surge Protected Extension Lead with 2 x 2.4 V USB Charging Sockets, 5 m  Invoice GB311DV1ABEI",Comp Hardware Purchases
Wyre Council,http://opendatacommunities.org/doc/district-council/wyre,30/05/2023,Resources,Support Services,135B,Amazon Business,02/05/2023,RS148796,33.18,0.00,"TECHGEAR Galaxy A13 Tough Armoured Case - ShockProof, Rugged, Sturdy, Heavy Duty Protective Impact Case Cover Designed for Samsung Galaxy A13 (Black).",Computer Stationery and Consumables
Wyre Council,http://opendatacommunities.org/doc/district-council/wyre,30/05/2023,Resources,Support Services,135B,Idox Software LTD,02/05/2023,RS149230,6550.00,0.00,"UniMap Web implementation package (Live, Test, Train)All works to be delivered remotely during normal working hoursProvision of UniMap Web implementation package, which includes the following:o A technical validation exercise to ensure your en",Consultants Fees
Wyre Council,http://opendatacommunities.org/doc/district-council/wyre,30/05/2023,Resources,Corporate and Democratic Core,131A,Link Treasury Services LTD,10/05/2023,RS149360,4125.00,0.00,Treasury Services for the period 001/04/2023 to 30/09/2023,Consultants Fees
Wyre Council,http://opendatacommunities.org/doc/district-council/wyre,30/05/2023,Resources,Central Services to the Public,131C,Inform CPI,25/05/2023,RS149690,896.00,0.00,"Re: Rretail POD at car park, Affinity Lancashire, Anchorage Rd BA Ref N00170070010008 and Farm Shop at Park Farm, Longmoor Lane, Nateby BA Ref N00340110010006",Consultants Fees
Wyre Council,http://opendatacommunities.org/doc/district-council/wyre,30/05/2023,Resources,Central Services to the Public,131C,Inform CPI,10/05/2023,RS149354,100.00,0.00,Unit 43 Affinity Lancashier BA REfL N00170070006003,Consultants Fees
Wyre Council,http://opendatacommunities.org/doc/district-council/wyre,30/05/2023,Resources,Central Services to the Public,131C,Inform CPI,10/05/2023,RS149163,50.00,0.00,Unit 45 Affinity Lancashire BA Ref: N0017007000710A,Consultants Fees
Wyre Council,http://opendatacommunities.org/doc/district-council/wyre,30/05/2023,Resources,Support Services,135B,Greenhalgh Kerr,22/05/2023,RS149654,418.00,0.00,Interim professional charges,Consultants Fees
Wyre Council,http://opendatacommunities.org/doc/district-council/wyre,30/05/2023,Resources,Support Services,135B,Greenhalgh Kerr,22/05/2023,RS149654,237.50,0.00,Interim professional charges,Consultants Fees
Wyre Council,http://opendatacommunities.org/doc/district-council/wyre,30/05/2023,Resources,Support Services,135B,Greenhalgh Kerr,22/05/2023,RS149667,1981.00,0.00,Professional charges,Consultants Fees
Wyre Council,http://opendatacommunities.org/doc/district-council/wyre,30/05/2023,Resources,Support Services,135B,Greenhalgh Kerr,22/05/2023,RS149667,451.00,0.00,Court Fees,Consultants Fees
Wyre Council,http://opendatacommunities.org/doc/district-council/wyre,30/05/2023,Resources,Support Services,135B,Greenhalgh Kerr,02/05/2023,RS149174,380.00,0.00,Professional charges,Consultants Fees
Wyre Council,http://opendatacommunities.org/doc/district-council/wyre,30/05/2023,Resources,Support Services,135B,Greenhalgh Kerr,02/05/2023,RS149174,6.00,0.00,Vat Disbursements,Consultants Fees
Wyre Council,http://opendatacommunities.org/doc/district-council/wyre,30/05/2023,People and Places,Environmental Services,132B,MARLAN MARITIME TECHNOLOGIES LTD,15/05/2023,PE149490,60200.00,0.00,"Synoptic monitoring at Cleveleys & Rossall: 5-year serviceRef.: QRN-10096 - DN409872Installation full-rate 11,000 1 site-yearSynoptic package",Consultants Fees
Wyre Council,http://opendatacommunities.org/doc/district-council/wyre,30/05/2023,People and Places,Planning and Development Servs,132C,Capita Property and Infrastructure Ltd,30/05/2023,PE149854,5886.75,0.00,Planning application support provided by Capita (April 2023),Consultants Fees
Wyre Council,http://opendatacommunities.org/doc/district-council/wyre,30/05/2023,People and Places,Planning and Development Servs,132C,Capita Property and Infrastructure Ltd,02/05/2023,PE149195,4860.75,0.00,Planning application support by Capita - March 2023 Philip Glennon,Consultants Fees
Wyre Council,http://opendatacommunities.org/doc/district-council/wyre,30/05/2023,People and Places,Planning and Development Servs,132C,AG & P Jackson,18/05/2023,PE149648,410.00,0.00,"Alan Jackson - Agricultural Consultee Fee for planning application 23/00358/FULSpringfield Farm, The Square, Scorton, Preston, Lancashire, PR3 1AU",Consultants Fees
Wyre Council,http://opendatacommunities.org/doc/district-council/wyre,30/05/2023,People and Places,Planning and Development Servs,132C,AG & P Jackson,16/05/2023,PE149552,410.00,0.00,"Alan Jackson - Agricultural Consultee Fee for planning application 23/00412/AGR New Hall FarmLancaster Road, Pilling, Preston, Lancashire, PR3 6SQ",Consultants Fees
Wyre Council,http://opendatacommunities.org/doc/district-council/wyre,30/05/2023,People and Places,Planning and Development Servs,132C,AG & P Jackson,03/05/2023,PE149263,497.00,0.00,"Alan Jackson - Agricultural Consultee Feefor planning application 22/00757/OUTLonghorn Stables, Hagg Lane, Upper Rawcliffe-With-Tarnacre, Lancashire, PR3 0UJ",Consultants Fees
Wyre Council,http://opendatacommunities.org/doc/district-council/wyre,30/05/2023,People and Places,"Cultural, Environ and Planning",137B,Halcrow Group LTD,10/05/2023,PE149369,1600.68,0.00,Current approved order based on agreed additional work. Authorised by Carl Green,Consultants Fees (New CCR)
Wyre Council,http://opendatacommunities.org/doc/district-council/wyre,30/05/2023,People and Places,"Cultural, Environ and Planning",137B,Purcell Architecture Limited,03/05/2023,PE149238,2247.67,0.00,Fleetwood Market (RIBA 5-7) Purcell Sub Consultants (QS + Structural Eng),Consultants Fees (New CCR)
Wyre Council,http://opendatacommunities.org/doc/district-council/wyre,30/05/2023,People and Places,"Cultural, Environ and Planning",137B,Purcell Architecture Limited,03/05/2023,PE149247,5558.19,0.00,"Fleetwood Market Consultants Fees 2023/24.  This Order replaces the following outstanding Orders: PEO0025404, PEO0025405, PEO0025427 and PEO0025528",Consultants Fees (New CCR)
Wyre Council,http://opendatacommunities.org/doc/district-council/wyre,30/05/2023,People and Places,"Cultural, Environ and Planning",137B,Purcell Architecture Limited,03/05/2023,PE149248,464.06,0.00,"Fleetwood Market Consultants Fees 2023/24.  This Order replaces the following outstanding Orders: PEO0025404, PEO0025405, PEO0025427 and PEO0025528",Consultants Fees (New CCR)
Wyre Council,http://opendatacommunities.org/doc/district-council/wyre,30/05/2023,People and Places,"Cultural, Environ and Planning",137B,Purcell Architecture Limited,03/05/2023,PE149240,4000.00,0.00,Fleetwood Market.  Consultant Fees 2023/24.  This new Order replaces PEO0025425,Consultants Fees (New CCR)
Wyre Council,http://opendatacommunities.org/doc/district-council/wyre,30/05/2023,People and Places,"Cultural, Environ and Planning",137B,Purcell Architecture Limited,03/05/2023,PE149239,10000.00,0.00,"Fleetwood Market Consultants Fees 2023/24.  This Order replaces the following outstanding Orders: PEO0025404, PEO0025405, PEO0025427 and PEO0025528",Consultants Fees (New CCR)
Wyre Council,http://opendatacommunities.org/doc/district-council/wyre,30/05/2023,People and Places,"Cultural, Environ and Planning",137B,Susannah Bleakley Consulting,10/05/2023,PE149352,3850.94,0.00,ECO-CoBS Project,Consultants Fees (New CCR)
Wyre Council,http://opendatacommunities.org/doc/district-council/wyre,30/05/2023,People and Places,"Cultural, Environ and Planning",137B,Susannah Bleakley Consulting,09/05/2023,PE149321,175.00,0.00,ECO-CoBS Project,Consultants Fees (New CCR)
Wyre Council,http://opendatacommunities.org/doc/district-council/wyre,30/05/2023,People and Places,"Cultural, Environ and Planning",137B,Morecambe Bay Partnership,10/05/2023,PE149322,4991.18,0.00,Part 1 of 3 payments 2022/2340% of Year 1 of the ECO-COBS Project started 01/04/22,Consultants Fees (New CCR)
Wyre Council,http://opendatacommunities.org/doc/district-council/wyre,30/05/2023,People and Places,"Cultural, Environ and Planning",137B,WSP Real Estate and Infrastructure Limited,15/05/2023,PE149497,6798.97,0.00,"Project Management Services  Annual amount 78,000Potentially for 4 years.",Consultants Fees (New CCR)
Wyre Council,http://opendatacommunities.org/doc/district-council/wyre,30/05/2023,People and Places,Support Services,135B,Blackpool Skip Hire LTD,05/05/2023,PE149307,180.00,0.00,Empty of skips for Cemetries in Wyre,Containers Skips and Hire
Wyre Council,http://opendatacommunities.org/doc/district-council/wyre,30/05/2023,People and Places,Environmental Services,132B,Blackpool Skip Hire LTD,03/05/2023,PE149265,225.00,0.00,"Empty 8 yard skip at Copse Road Depot, Fleetwood*Disposal of Recyling wheels only*",Containers Skips and Hire
Wyre Council,http://opendatacommunities.org/doc/district-council/wyre,30/05/2023,People and Places,Support Services,135B,Blackpool Skip Hire LTD,30/05/2023,PE149826,120.00,0.00,Empty of skips for Cemetries in Wyre,Containers Skips and Hire
Wyre Council,http://opendatacommunities.org/doc/district-council/wyre,30/05/2023,People and Places,"Cultural, Environ and Planning",137B,Marine Management Organisation,03/05/2023,PE149231,3510.50,0.00,BAND 3 LICENCE APRIL 2023,Contract (New CCR)
Wyre Council,http://opendatacommunities.org/doc/district-council/wyre,30/05/2023,Resources,"Cultural, Environ and Planning",137B,Vivid Resourcing Ltd,15/05/2023,RS149327,1560.00,0.00,Fleetwood Market,Contract (New CCR)
Wyre Council,http://opendatacommunities.org/doc/district-council/wyre,30/05/2023,Resources,"Cultural, Environ and Planning",137B,Vivid Resourcing Ltd,15/05/2023,RS149328,6720.00,0.00,Fleetwood Market Project,Contract (New CCR)
Wyre Council,http://opendatacommunities.org/doc/district-council/wyre,30/05/2023,People and Places,"Cultural, Environ and Planning",137B,VODAFONE LIMITED,31/05/2023,PE149537,24.00,0.00,monthly Phone charges,Contract (New CCR)
Wyre Council,http://opendatacommunities.org/doc/district-council/wyre,30/05/2023,People and Places,"Cultural, Environ and Planning",137B,F PARKINSON LTD,05/05/2023,PE149309,9700.00,0.00,Fleetwood Market.  PSDS Works Contribution,Contract (New CCR)
Wyre Council,http://opendatacommunities.org/doc/district-council/wyre,30/05/2023,People and Places,"Cultural, Environ and Planning",137B,F PARKINSON LTD,05/05/2023,PE149308,80276.07,0.00,Fleetwood Market Contract Works 2023/24,Contract (New CCR)
Wyre Council,http://opendatacommunities.org/doc/district-council/wyre,30/05/2023,People and Places,"Cultural, Environ and Planning",137B,F PARKINSON LTD,05/05/2023,PE149310,41553.52,0.00,Fleetwood Market Contract.  HSHAZ (Historic England) Work Elements (2023/24),Contract (New CCR)
Wyre Council,http://opendatacommunities.org/doc/district-council/wyre,30/05/2023,Finance,Corporate and Democratic Core,131A,,10/05/2023,WPST00105848,11311.41,0.00,LGA Membership Subs 2023/24,Corporate and Professional Subscriptions
Wyre Council,http://opendatacommunities.org/doc/district-council/wyre,30/05/2023,People and Places,Corporate and Democratic Core,131A,Apse,11/05/2023,PE149398,2370.00,0.00,APSE membership fee 2023/2024Membership covers from 1 April 2023 to 31 March 2024,Corporate and Professional Subscriptions
Wyre Council,http://opendatacommunities.org/doc/district-council/wyre,30/05/2023,People and Places,Corporate and Democratic Core,131A,Apse,11/05/2023,PE149398,300.00,0.00,APSE Regional Subscription Fee Northern Region,Corporate and Professional Subscriptions
Wyre Council,http://opendatacommunities.org/doc/district-council/wyre,30/05/2023,People and Places,Environmental Services,132B,Tameside Metropolitan Borough Council,25/05/2023,PE148557,1700.00,0.00,Subscription to National Anti Fraud Network for 01/04/23 to 31/03/24,Corporate and Professional Subscriptions
Wyre Council,http://opendatacommunities.org/doc/district-council/wyre,30/05/2023,Resources,Corporate and Democratic Core,131A,Tameside Metropolitan Borough Council,12/05/2023,RS149453,2410.00,0.00,iNetwork Membership Renewal 23/24,Corporate and Professional Subscriptions
Wyre Council,http://opendatacommunities.org/doc/district-council/wyre,30/05/2023,Resources,Support Services,135B,Lakes Training Solutions Ltd,10/05/2023,RS149355,650.00,0.00,"To deliver Dealing with Conflict and Aggression training 3 May 2023Committee Room 1 Civic Centre, Poulton le Fylde",Corporate Training - Health and Safety
Wyre Council,http://opendatacommunities.org/doc/district-council/wyre,30/05/2023,Finance,Current Assets,130B,,23/05/2023,WPST00107283,11298.77,0.00,ctax refunds,Council Tax Refunds
Wyre Council,http://opendatacommunities.org/doc/district-council/wyre,30/05/2023,Finance,Current Assets,130B,,16/05/2023,WPST00106414,27118.43,0.00,ctax refund,Council Tax Refunds
Wyre Council,http://opendatacommunities.org/doc/district-council/wyre,30/05/2023,Finance,Current Assets,130B,,10/05/2023,WPST00105778,19309.90,0.00,ctax refund,Council Tax Refunds
Wyre Council,http://opendatacommunities.org/doc/district-council/wyre,30/05/2023,Finance,Current Assets,130B,,31/05/2023,WPST00108029,14724.64,0.00,ctax refunds 26/05/23,Council Tax Refunds
Wyre Council,http://opendatacommunities.org/doc/district-council/wyre,30/05/2023,Finance,Current Assets,130B,,03/05/2023,WPST00104883,19861.73,0.00,Ctax Refunds 28/04/23,Council Tax Refunds
Wyre Council,http://opendatacommunities.org/doc/district-council/wyre,30/05/2023,People and Places,Cultural and Related Services,132A,North Euston LTD,10/05/2023,PE149378,579.17,0.00,For the hire and hospitality of the North Euston on Saturday 25th March for event management training,Creative People and Places Contribution
Wyre Council,http://opendatacommunities.org/doc/district-council/wyre,30/05/2023,People and Places,Environmental Services,132B,Dennis Eagle LTD,17/05/2023,PE149375,314.66,0.00,payment of DE11583334,Daywork Materials (Excl.Tyres)
Wyre Council,http://opendatacommunities.org/doc/district-council/wyre,30/05/2023,People and Places,Environmental Services,132B,Dennis Eagle LTD,17/05/2023,PE149362,412.11,0.00,payment of invoice DE11583003,Daywork Materials (Excl.Tyres)
Wyre Council,http://opendatacommunities.org/doc/district-council/wyre,30/05/2023,People and Places,Environmental Services,132B,Dennis Eagle LTD,17/05/2023,PE149311,126.26,0.00,Offset via PE1459540,Daywork Materials (Excl.Tyres)
Wyre Council,http://opendatacommunities.org/doc/district-council/wyre,30/05/2023,People and Places,Environmental Services,132B,Dennis Eagle LTD,03/05/2023,PE149165,259.01,0.00,Starter Motor,Daywork Materials (Excl.Tyres)
Wyre Council,http://opendatacommunities.org/doc/district-council/wyre,30/05/2023,People and Places,Support Services,135B,FR Sharrock LTD,17/05/2023,PE149326,1207.33,0.00,payment of invoice 115466 - various items for T991,Daywork Materials (Excl.Tyres)
Wyre Council,http://opendatacommunities.org/doc/district-council/wyre,30/05/2023,People and Places,Support Services,135B,ABLE LORRY LOADERS LTD,02/05/2023,PE149122,702.19,0.00,Materials,Daywork Materials (Excl.Tyres)
Wyre Council,http://opendatacommunities.org/doc/district-council/wyre,30/05/2023,People and Places,Support Services,135B,Amazon Business,02/05/2023,PE149054,58.29,0.00,Alarm Bleeper,Daywork Materials (Excl.Tyres)
Wyre Council,http://opendatacommunities.org/doc/district-council/wyre,30/05/2023,People and Places,Support Services,135B,Amazon Business,02/05/2023,PE149054,58.29,0.00,Alarm Bleeper,Daywork Materials (Excl.Tyres)
Wyre Council,http://opendatacommunities.org/doc/district-council/wyre,30/05/2023,People and Places,Support Services,135B,Amazon Business,30/05/2023,PE149792,41.66,0.00,Water pump and filter,Daywork Materials (Excl.Tyres)
Wyre Council,http://opendatacommunities.org/doc/district-council/wyre,30/05/2023,People and Places,Cultural and Related Services,132A,Amazon Business,30/05/2023,PE149726,6.58,0.00,Rechargeable battery  Remote key battery,Daywork Materials (Excl.Tyres)
Wyre Council,http://opendatacommunities.org/doc/district-council/wyre,30/05/2023,People and Places,Cultural and Related Services,132A,EDF Energy,18/05/2023,PE149547,3023.68,0.00,"1600000125794 Garstang Swimming Pool, Birch Road, Garstang, PR3 1HT 01/04/23 to 30/04/23",Electricity
Wyre Council,http://opendatacommunities.org/doc/district-council/wyre,30/05/2023,People and Places,Cultural and Related Services,132A,EDF Energy,18/05/2023,PE149452,19057.30,0.00,"2500000793090 Thornton ~YMCA, Victoria Rd East, Thornton Cleveleys, FY5 3SX 01/04/23 to 30/04/23",Electricity
Wyre Council,http://opendatacommunities.org/doc/district-council/wyre,30/05/2023,People and Places,Parking Services,133F,N Power LTD,16/05/2023,PE149504,2.73,0.00,"1610036002855 unmetered supply, Civic Centre, Breck Rd, Poulton le Fylde, FY6 7PU 01/04/23 to 30/04/23",Electricity
Wyre Council,http://opendatacommunities.org/doc/district-council/wyre,30/05/2023,People and Places,Parking Services,133F,N Power LTD,16/05/2023,PE149503,456.39,0.00,"1620000821031 unmetered supply lighting, Civic Centre, Breck Rd, Poulton le Fylde, FY6 7PU 01/04/23 to 30/04/23",Electricity
Wyre Council,http://opendatacommunities.org/doc/district-council/wyre,30/05/2023,People and Places,Parking Services,133F,N Power LTD,16/05/2023,PE149503,-22.32,0.00,"1620000821031 unmetered supply lighting, Civic Centre, Breck Rd, Poulton le Fylde, FY6 7PU 01/04/23 to 30/04/23",Electricity
Wyre Council,http://opendatacommunities.org/doc/district-council/wyre,30/05/2023,People and Places,Parking Services,133F,N Power LTD,16/05/2023,PE149501,1782.17,0.00,"1610036002846 unmetered supply lighting, Civic Centre, Breck Rd, Poulton le Fylde, FY6 7PU 01/04/23 to 30/04/23",Electricity
Wyre Council,http://opendatacommunities.org/doc/district-council/wyre,30/05/2023,People and Places,Environmental Services,132B,N Power LTD,16/05/2023,PE149501,317.78,0.00,"1610036002846 unmetered supply lighting, Civic Centre, Breck Rd, Poulton le Fylde, FY6 7PU 01/04/23 to 30/04/23",Electricity
Wyre Council,http://opendatacommunities.org/doc/district-council/wyre,30/05/2023,People and Places,Environmental Services,132B,N Power LTD,16/05/2023,PE149504,0.49,0.00,"1610036002855 unmetered supply, Civic Centre, Breck Rd, Poulton le Fylde, FY6 7PU 01/04/23 to 30/04/23",Electricity
Wyre Council,http://opendatacommunities.org/doc/district-council/wyre,30/05/2023,People and Places,Cultural and Related Services,132A,Corona Energy Retail 4 Limited,22/05/2023,PE149640,34.30,0.00,1640000233705 Coastal Observation Point  Rossal Point Fleetwood FY78AF 01/04/23 to 30/04/23,Electricity
Wyre Council,http://opendatacommunities.org/doc/district-council/wyre,30/05/2023,People and Places,Planning and Development Servs,132C,Corona Energy Retail 4 Limited,22/05/2023,PE149641,172.74,0.00,1640000184606 Council Depot Copse Road  Fleetwood FY76RP 01/04/23 to 30/04/24,Electricity
Wyre Council,http://opendatacommunities.org/doc/district-council/wyre,30/05/2023,People and Places,Planning and Development Servs,132C,Corona Energy Retail 4 Limited,22/05/2023,PE149644,804.01,0.00,1620000784666 Main Hall Adelaide Street  Fleetwood FY76AB 01/04/23 to 30/04/27,Electricity
Wyre Council,http://opendatacommunities.org/doc/district-council/wyre,30/05/2023,People and Places,Support Services,135B,Corona Energy Retail 4 Limited,22/05/2023,PE149643,12289.48,0.00,1600000162857 Civic Centre Breck Road  Blackpool FY39DT 01/04/23 to 30/04/26,Electricity
Wyre Council,http://opendatacommunities.org/doc/district-council/wyre,30/05/2023,People and Places,Cultural and Related Services,132A,Corona Energy Retail 4 Limited,22/05/2023,PE149645,7161.06,0.00,1600000162875 Marine Hall The Esplanade  Fleetwood FY76HF 01/04/23 to 30/04/28,Electricity
Wyre Council,http://opendatacommunities.org/doc/district-council/wyre,30/05/2023,People and Places,Environmental Services,132B,Corona Energy Retail 4 Limited,22/05/2023,PE149642,24.17,0.00,1600000023675 Royles Brook Pumping Station  Off Victoria Road East Thornton FY55OX 01/04/23 to 30/04/25,Electricity
Wyre Council,http://opendatacommunities.org/doc/district-council/wyre,30/05/2023,People and Places,Cultural and Related Services,132A,Corona Energy Retail 4 Limited,22/05/2023,PE149646,118.17,0.00,1630000670291 Promendae Cafe North  Promenade Thornton-Cleveleys FY51DB 01/04/23 to 30/04/29,Electricity
Wyre Council,http://opendatacommunities.org/doc/district-council/wyre,30/05/2023,People and Places,Planning and Development Servs,132C,Drax Energy Solutions Limited,12/05/2023,PE149389,122.70,0.00,"3200000534807 LL Supply c/o ABP Port  Office, Dock Ave, Fleetwood, FY7 6PS 01/04/23 to 30/04/23 Actual",Electricity
Wyre Council,http://opendatacommunities.org/doc/district-council/wyre,30/05/2023,People and Places,Planning and Development Servs,132C,Drax Energy Solutions Limited,12/05/2023,PE149388,127.42,0.00,"3200000534791 Unit 10, Dock Ave, Fleetwood,  FY7 6PS 01/04/23 to 30/04/23 Actual",Electricity
Wyre Council,http://opendatacommunities.org/doc/district-council/wyre,30/05/2023,People and Places,Planning and Development Servs,132C,Drax Energy Solutions Limited,12/05/2023,PE149387,129.11,0.00,"3200000534782 Unit 19, Dock Ave, Fleetwood,  FY7 6PS 01/04/23 to 30/04/23 Actual",Electricity
Wyre Council,http://opendatacommunities.org/doc/district-council/wyre,30/05/2023,People and Places,Planning and Development Servs,132C,Drax Energy Solutions Limited,12/05/2023,PE149386,132.48,0.00,"3200000534773 Unit 8, Dock Ave, Fleetwood,  FY7 6PS 01/04/23 to 30/04/23 Actual",Electricity
Wyre Council,http://opendatacommunities.org/doc/district-council/wyre,30/05/2023,People and Places,Planning and Development Servs,132C,Drax Energy Solutions Limited,12/05/2023,PE149381,129.44,0.00,"3200000534728 Unit 4, Dock Ave, Fleetwood,  FY7 6PS 01/04/23 to 30/04/23 Actual",Electricity
Wyre Council,http://opendatacommunities.org/doc/district-council/wyre,30/05/2023,People and Places,Planning and Development Servs,132C,Drax Energy Solutions Limited,12/05/2023,PE149385,179.03,0.00,"3200000534764 Unit 7B, Dock Ave, Fleetwood,  FY7 6PS 01/04/23 to 30/04/23 Actual",Electricity
Wyre Council,http://opendatacommunities.org/doc/district-council/wyre,30/05/2023,People and Places,Planning and Development Servs,132C,Drax Energy Solutions Limited,12/05/2023,PE149384,129.11,0.00,"3200000534755 Unit 7A, Dock Ave, Fleetwood,  FY7 6PS 01/04/23 to 30/04/23 Actual",Electricity
Wyre Council,http://opendatacommunities.org/doc/district-council/wyre,30/05/2023,People and Places,Planning and Development Servs,132C,Drax Energy Solutions Limited,12/05/2023,PE149383,128.77,0.00,"3200000534746 Unit 6, Dock Ave, Fleetwood,  FY7 6PS 01/04/23 to 30/04/23 Actual",Electricity
Wyre Council,http://opendatacommunities.org/doc/district-council/wyre,30/05/2023,People and Places,Planning and Development Servs,132C,Drax Energy Solutions Limited,12/05/2023,PE149382,128.77,0.00,"3200000534737 Unit 5, Dock Ave, Fleetwood,  FY7 6PS 01/04/23 to 30/04/23 Actual",Electricity
Wyre Council,http://opendatacommunities.org/doc/district-council/wyre,30/05/2023,People and Places,Planning and Development Servs,132C,Drax Energy Solutions Limited,31/05/2023,PE149783,118.33,0.00,"3200000534700  Unit 2, Dock Ave, Fleetwood, FY7 6PS 01/02/23 to 28/02/23 Est",Electricity
Wyre Council,http://opendatacommunities.org/doc/district-council/wyre,30/05/2023,People and Places,Planning and Development Servs,132C,Drax Energy Solutions Limited,31/05/2023,PE149788,143.36,0.00,"3200000534719  Unit 3, Dock Ave, Fleetwood, FY7 6PS 01/01/23 to 31/01/23 Est",Electricity
Wyre Council,http://opendatacommunities.org/doc/district-council/wyre,30/05/2023,People and Places,Planning and Development Servs,132C,Drax Energy Solutions Limited,31/05/2023,PE149787,140.27,0.00,"3200000534719  Unit 3, Dock Ave, Fleetwood, FY7 6PS 01/12/22 to 31/12/22 Est",Electricity
Wyre Council,http://opendatacommunities.org/doc/district-council/wyre,30/05/2023,People and Places,Planning and Development Servs,132C,Drax Energy Solutions Limited,31/05/2023,PE149786,147.02,0.00,"3200000534719  Unit 3, Dock Ave, Fleetwood, FY7 6PS 01/11/22 to 30/11/22 Act",Electricity
Wyre Council,http://opendatacommunities.org/doc/district-council/wyre,30/05/2023,People and Places,Planning and Development Servs,132C,Drax Energy Solutions Limited,31/05/2023,PE149785,128.43,0.00,"3200000534700  Unit 2, Dock Ave, Fleetwood, FY7 6PS 01/04/23 to 30/04/23 Est",Electricity
Wyre Council,http://opendatacommunities.org/doc/district-council/wyre,30/05/2023,People and Places,Planning and Development Servs,132C,Drax Energy Solutions Limited,31/05/2023,PE149791,128.77,0.00,"3200000534719  Unit 3, Dock Ave, Fleetwood, FY7 6PS 01/04/23 to 30/04/23 Est",Electricity
Wyre Council,http://opendatacommunities.org/doc/district-council/wyre,30/05/2023,People and Places,Planning and Development Servs,132C,Drax Energy Solutions Limited,31/05/2023,PE149784,130.75,0.00,"3200000534700  Unit 2, Dock Ave, Fleetwood, FY7 6PS 01/03/23 to 31/03/23 Est",Electricity
Wyre Council,http://opendatacommunities.org/doc/district-council/wyre,30/05/2023,People and Places,Planning and Development Servs,132C,Drax Energy Solutions Limited,31/05/2023,PE149790,131.17,0.00,"3200000534719  Unit 3, Dock Ave, Fleetwood, FY7 6PS 01/03/23 to 31/03/23 Est",Electricity
Wyre Council,http://opendatacommunities.org/doc/district-council/wyre,30/05/2023,People and Places,Planning and Development Servs,132C,Drax Energy Solutions Limited,31/05/2023,PE149789,118.75,0.00,"3200000534719  Unit 3, Dock Ave, Fleetwood, FY7 6PS 01/02/23 to 28/02/23 Est",Electricity
Wyre Council,http://opendatacommunities.org/doc/district-council/wyre,30/05/2023,People and Places,Planning and Development Servs,132C,Drax Energy Solutions Limited,31/05/2023,PE149780,151.93,0.00,"3200000534700  Unit 2, Dock Ave, Fleetwood, FY7 6PS 01/11/22 to 30/11/22 Act",Electricity
Wyre Council,http://opendatacommunities.org/doc/district-council/wyre,30/05/2023,People and Places,Planning and Development Servs,132C,Drax Energy Solutions Limited,31/05/2023,PE149782,142.29,0.00,"3200000534700  Unit 2, Dock Ave, Fleetwood, FY7 6PS 01/01/23 to 31/01/23 Est",Electricity
Wyre Council,http://opendatacommunities.org/doc/district-council/wyre,30/05/2023,People and Places,Planning and Development Servs,132C,Drax Energy Solutions Limited,31/05/2023,PE149781,139.39,0.00,"3200000534700  Unit 2, Dock Ave, Fleetwood, FY7 6PS 01/12/22 to 31/12/22 Est",Electricity
Wyre Council,http://opendatacommunities.org/doc/district-council/wyre,30/05/2023,People and Places,Planning and Development Servs,132C,Drax Energy Solutions Limited,31/05/2023,PE149380,263.02,0.00,"3200000534719 Unit 3, Dock Ave, Fleetwood,  FY7 6PS 01/04/23 to 30/04/23 Est",Electricity
Wyre Council,http://opendatacommunities.org/doc/district-council/wyre,30/05/2023,People and Places,Planning and Development Servs,132C,Drax Energy Solutions Limited,31/05/2023,PE149379,267.06,0.00,"3200000534700 Unit 2, Dock Ave, Fleetwood,  FY7 6PS 01/04/23 to 30/04/23 Est",Electricity
Wyre Council,http://opendatacommunities.org/doc/district-council/wyre,30/05/2023,People and Places,Planning and Development Servs,132C,Drax Energy Solutions Limited,31/05/2023,PE148742,239.00,0.00,"3200000534719 Unit 3, Dock Ave, Fleetwood, FY7 6PS 01/03/23 to 31/03/23 Estimate",Electricity
Wyre Council,http://opendatacommunities.org/doc/district-council/wyre,30/05/2023,People and Places,Planning and Development Servs,132C,Drax Energy Solutions Limited,31/05/2023,PE148741,242.16,0.00,"3200000534700 Unit 2, Dock Ave, Fleetwood, FY7 6PS 01/03/23 to 31/03/23 Estimate",Electricity
Wyre Council,http://opendatacommunities.org/doc/district-council/wyre,30/05/2023,People and Places,Planning and Development Servs,132C,Drax Energy Solutions Limited,31/05/2023,PE147970,220.24,0.00,"3200000534719 Unit 3, Dock Ave, Fleetwood, FY7 6PS 01/02/23 to 28/02/23 Est",Electricity
Wyre Council,http://opendatacommunities.org/doc/district-council/wyre,30/05/2023,People and Places,Planning and Development Servs,132C,Drax Energy Solutions Limited,31/05/2023,PE147969,223.20,0.00,"3200000534700 Unit 2, Dock Ave, Fleetwood, FY7 6PS 01/02/23 to 28/02/23 Est",Electricity
Wyre Council,http://opendatacommunities.org/doc/district-council/wyre,30/05/2023,People and Places,Cultural and Related Services,132A,Engie Power Limited,17/05/2023,PE149607,113.49,0.00,"1630000841586Act01/04/23 to 30/04/23Garstang Tourist Info Ctr, Unit 1, Cherestanc Sq, Preston, PR3 1EF",Electricity
Wyre Council,http://opendatacommunities.org/doc/district-council/wyre,30/05/2023,People and Places,Cultural and Related Services,132A,Engie Power Limited,17/05/2023,PE149606,171.01,0.00,"1610004867441Est01/04/23 to 30/04/23Mount Hotel, Mount Rd, Fleetwood, FY7 6RA",Electricity
Wyre Council,http://opendatacommunities.org/doc/district-council/wyre,30/05/2023,People and Places,Cultural and Related Services,132A,Engie Power Limited,17/05/2023,PE149605,353.37,0.00,"1610004867432Est01/04/23 to 30/04/23Mount Hotel, Mount Rd, Fleetwood, FY7 6RA",Electricity
Wyre Council,http://opendatacommunities.org/doc/district-council/wyre,30/05/2023,People and Places,Environmental Services,132B,Engie Power Limited,17/05/2023,PE149609,110.12,0.00,"1620001343345Act01/04/23 to 30/04/23PC, Thornton Centre, Victoria Rd East, FY5 5DZ",Electricity
Wyre Council,http://opendatacommunities.org/doc/district-council/wyre,30/05/2023,People and Places,Environmental Services,132B,Engie Power Limited,17/05/2023,PE149611,244.90,0.00,"1630000740099Est01/04/23 to 30/04/23PC, Wyreside, Knott End on Sea, FY6 0AAG3350/22000",Electricity
Wyre Council,http://opendatacommunities.org/doc/district-council/wyre,30/05/2023,People and Places,Environmental Services,132B,Engie Power Limited,17/05/2023,PE149610,201.61,0.00,"1630000584632Est01/04/23 to 30/04/23PC, rear of Tesco, Rough Lea Rd, Thornton Cleveleys, FY5 1BW",Electricity
Wyre Council,http://opendatacommunities.org/doc/district-council/wyre,30/05/2023,People and Places,Environmental Services,132B,Engie Power Limited,17/05/2023,PE149612,131.03,0.00,"1630000819048Est01/04/23 to 30/04/23Public Conveniences, Cherestanc Square, Garstang, Lancashire, PR3 1EF",Electricity
Wyre Council,http://opendatacommunities.org/doc/district-council/wyre,30/05/2023,People and Places,Cultural and Related Services,132A,Engie Power Limited,17/05/2023,PE149608,100.62,0.00,"1640000004924Act01/04/23 to 30/04/23Feeder Pillar, Hawthorne Park, Hawthorne Rd, Thornton Cleveleys, FY5 5DH",Electricity
Wyre Council,http://opendatacommunities.org/doc/district-council/wyre,30/05/2023,People and Places,Cultural and Related Services,132A,Engie Power Limited,17/05/2023,PE149604,71.16,0.00,"1610004863776Act01/04/23 to 30/04/23Tourist Information Office, The Esplanade, Fleetwood, FY7 6DL",Electricity
Wyre Council,http://opendatacommunities.org/doc/district-council/wyre,30/05/2023,People and Places,Planning and Development Servs,132C,Engie Power Limited,17/05/2023,PE149560,57.21,0.00,"1640000947154Est01/12/22 to 31/12/22Kiosk 3, Fleetwood Market, Adelaide St, Fleetwood, FY7 6AB",Electricity
Wyre Council,http://opendatacommunities.org/doc/district-council/wyre,30/05/2023,People and Places,Planning and Development Servs,132C,Engie Power Limited,17/05/2023,PE149569,72.78,0.00,"1640000947172Act01/04/23 to 30/04/23Kiosk 5, Fleetwood Market, Adelaide St, Fleetwood, FY7 6AB",Electricity
Wyre Council,http://opendatacommunities.org/doc/district-council/wyre,30/05/2023,People and Places,Planning and Development Servs,132C,Engie Power Limited,17/05/2023,PE149568,125.92,0.00,"1640000947163Act01/04/23 to 30/04/23Kiosk 4, Fleetwood Market, Adelaide St, Fleetwood, FY7 6AB",Electricity
Wyre Council,http://opendatacommunities.org/doc/district-council/wyre,30/05/2023,People and Places,Planning and Development Servs,132C,Engie Power Limited,17/05/2023,PE149567,53.71,0.00,"1640000947154Act01/04/23 to 30/04/23Kiosk 3, Fleetwood Market, Adelaide St, Fleetwood, FY7 6AB",Electricity
Wyre Council,http://opendatacommunities.org/doc/district-council/wyre,30/05/2023,People and Places,Planning and Development Servs,132C,Engie Power Limited,17/05/2023,PE149565,56.48,0.00,"1640000947154Est01/03/23 to 31/03/23Kiosk 3, Fleetwood Market, Adelaide St, Fleetwood, FY7 6AB",Electricity
Wyre Council,http://opendatacommunities.org/doc/district-council/wyre,30/05/2023,People and Places,Planning and Development Servs,132C,Engie Power Limited,17/05/2023,PE149563,51.31,0.00,"1640000947154Est01/02/23 to 28/02/23Kiosk 3, Fleetwood Market, Adelaide St, Fleetwood, FY7 6AB",Electricity
Wyre Council,http://opendatacommunities.org/doc/district-council/wyre,30/05/2023,People and Places,Planning and Development Servs,132C,Engie Power Limited,17/05/2023,PE149562,56.98,0.00,"1640000947154Est01/01/23 to 31/01/23Kiosk 3, Fleetwood Market, Adelaide St, Fleetwood, FY7 6AB",Electricity
Wyre Council,http://opendatacommunities.org/doc/district-council/wyre,30/05/2023,People and Places,Environmental Services,132B,Engie Power Limited,17/05/2023,PE149586,217.86,0.00,"1610004846520Est01/04/23 to 30/04/23Boating Lake, Laidleys Walk, Fleetwood, FY7 7HU",Electricity
Wyre Council,http://opendatacommunities.org/doc/district-council/wyre,30/05/2023,People and Places,Environmental Services,132B,Engie Power Limited,17/05/2023,PE149593,138.64,0.00,"1610023169146Est01/04/23 to 30/04/23Public Conveniences, Barton Square, Knott End on Sea, Lancashire, FY6 0AG",Electricity
Wyre Council,http://opendatacommunities.org/doc/district-council/wyre,30/05/2023,People and Places,Environmental Services,132B,Engie Power Limited,17/05/2023,PE149592,183.89,0.00,"1610013371994Est01/04/23 to 30/04/23PC, The Weind, Great Eccleston, PR3 0ZU",Electricity
Wyre Council,http://opendatacommunities.org/doc/district-council/wyre,30/05/2023,People and Places,Environmental Services,132B,Engie Power Limited,17/05/2023,PE149601,385.61,0.00,"1610004885487Est01/04/23 to 30/04/23PC, Preston St, Fleetwood, FY7 6JA",Electricity
Wyre Council,http://opendatacommunities.org/doc/district-council/wyre,30/05/2023,People and Places,Environmental Services,132B,Engie Power Limited,17/05/2023,PE149595,207.53,0.00,"1610023195261Est01/04/23 to 30/04/23PC, Smallwood Hey, Pilling, Preston, PR3 6HJ",Electricity
Wyre Council,http://opendatacommunities.org/doc/district-council/wyre,30/05/2023,People and Places,Environmental Services,132B,Engie Power Limited,17/05/2023,PE149594,264.11,0.00,"1610023251891Est01/04/23 to 30/04/23PC, Gubberford Lane, Scorton, PR3 1BL",Electricity
Wyre Council,http://opendatacommunities.org/doc/district-council/wyre,30/05/2023,People and Places,Environmental Services,132B,Engie Power Limited,17/05/2023,PE149576,157.97,0.00,"1640000218200Est01/04/23 to 30/04/23PC, Bold St, Fleetwood, FY7 6BW",Electricity
Wyre Council,http://opendatacommunities.org/doc/district-council/wyre,30/05/2023,People and Places,Environmental Services,132B,Engie Power Limited,17/05/2023,PE149571,121.65,0.00,"1640000258365Act01/04/23 to 30/04/23PC, River Road, Thornton Cleveleys, FY5 5LR",Electricity
Wyre Council,http://opendatacommunities.org/doc/district-council/wyre,30/05/2023,People and Places,Environmental Services,132B,Engie Power Limited,17/05/2023,PE149583,130.30,0.00,"1610004845322Est01/04/23 to 30/04/23PC, Beach Rd, Fleetwood, FY7 8PH",Electricity
Wyre Council,http://opendatacommunities.org/doc/district-council/wyre,30/05/2023,People and Places,Cultural and Related Services,132A,Engie Power Limited,17/05/2023,PE149591,107.07,0.00,"1610004775074Act01/04/23 to 30/04/23The Windmill, Fleetwood Rd North, Thornton Cleveleys, FY5 4BP",Electricity
Wyre Council,http://opendatacommunities.org/doc/district-council/wyre,30/05/2023,People and Places,Cultural and Related Services,132A,Engie Power Limited,17/05/2023,PE149587,427.46,0.00,"1610004775083Act01/04/23 to 30/04/23The Windmill, Fleetwood Road North, Thornton Cleveleys, FY5 4BP",Electricity
Wyre Council,http://opendatacommunities.org/doc/district-council/wyre,30/05/2023,People and Places,Cultural and Related Services,132A,Engie Power Limited,17/05/2023,PE149585,71.33,0.00,"1610004846502Est01/04/23 to 30/04/23Valve House, Marine Lake, Laidleys Walk, Fleetwood, FY7 7JL",Electricity
Wyre Council,http://opendatacommunities.org/doc/district-council/wyre,30/05/2023,People and Places,Cultural and Related Services,132A,Engie Power Limited,17/05/2023,PE149582,426.77,0.00,"1610004863623Est01/04/23 to 30/04/23Pitch & Putt Kiosk, Carr Rd, The Esplanade, Fleetwood, FY7 6QE",Electricity
Wyre Council,http://opendatacommunities.org/doc/district-council/wyre,30/05/2023,People and Places,Cultural and Related Services,132A,Engie Power Limited,17/05/2023,PE149581,464.51,0.00,"1610004863605Act01/04/23 to 30/04/23Central Toilets Kiosk, The Esplanade, Fleetwood, FY7 7BE",Electricity
Wyre Council,http://opendatacommunities.org/doc/district-council/wyre,30/05/2023,People and Places,Cultural and Related Services,132A,Engie Power Limited,17/05/2023,PE149580,246.74,0.00,"1610004846558Act01/04/23 to 30/04/23Pump Station, The Esplanade, Fleetwood, FY7 6HF",Electricity
Wyre Council,http://opendatacommunities.org/doc/district-council/wyre,30/05/2023,People and Places,Cultural and Related Services,132A,Engie Power Limited,17/05/2023,PE149584,262.62,0.00,"1610004846390Act01/04/23 to 30/04/23Pump House, Model Yacht Pond, Laidleys Walk, Fleetwood, FY7 7JL",Electricity
Wyre Council,http://opendatacommunities.org/doc/district-council/wyre,30/05/2023,People and Places,Cultural and Related Services,132A,Engie Power Limited,17/05/2023,PE149597,426.77,0.00,"1610004897400Est01/04/23 to 30/04/23Ladies Bowls Pavilion, Memorial Park, Fleetwood, FY7 7AE",Electricity
Wyre Council,http://opendatacommunities.org/doc/district-council/wyre,30/05/2023,People and Places,Cultural and Related Services,132A,Engie Power Limited,17/05/2023,PE149596,118.24,0.00,"1610004897394Act01/04/23 to 30/04/23Bowls House, Memorial Park, Fleetwood, FY7 7AE",Electricity
Wyre Council,http://opendatacommunities.org/doc/district-council/wyre,30/05/2023,People and Places,Cultural and Related Services,132A,Engie Power Limited,17/05/2023,PE149602,241.25,0.00,"1610004897385Est01/04/23 to 30/04/23Tennis Pavillion, Memorial Park, Fleetwood, FY7 7AE",Electricity
Wyre Council,http://opendatacommunities.org/doc/district-council/wyre,30/05/2023,People and Places,Cultural and Related Services,132A,Engie Power Limited,17/05/2023,PE149600,170.91,0.00,"1610004867488Est01/04/23 to 30/04/23Mount Pavilion, Mount Rd, Fleetwood, FY7 6EZ",Electricity
Wyre Council,http://opendatacommunities.org/doc/district-council/wyre,30/05/2023,People and Places,Environmental Services,132B,Engie Power Limited,17/05/2023,PE149588,524.20,0.00,"1610004828771Est01/04/23 to 30/04/23Council Depot, Chatsworth Day Centre, Chatsworth Ave, Fleetwood, FY7 8AP",Electricity
Wyre Council,http://opendatacommunities.org/doc/district-council/wyre,30/05/2023,People and Places,Cultural and Related Services,132A,Engie Power Limited,17/05/2023,PE149598,96.71,0.00,"1610004932427Est01/04/23 to 30/04/23King Georges Field, Boradwater, Fleetwood Road, Fleetwood, Lancashire, FY7 8BD",Electricity
Wyre Council,http://opendatacommunities.org/doc/district-council/wyre,30/05/2023,People and Places,Cultural and Related Services,132A,Engie Power Limited,17/05/2023,PE149603,427.12,0.00,"1610004890636Est01/04/23 to 30/04/23Fishermans Walk, Lord St, Fleetwood, FY7 6DU",Electricity
Wyre Council,http://opendatacommunities.org/doc/district-council/wyre,30/05/2023,People and Places,Cultural and Related Services,132A,Engie Power Limited,17/05/2023,PE149575,271.51,0.00,"1640000118533Act01/04/23 to 30/04/23Feeder Pillar, Vicarage Rd, Poulton le Fylde, FY6 7BE",Electricity
Wyre Council,http://opendatacommunities.org/doc/district-council/wyre,30/05/2023,People and Places,Planning and Development Servs,132C,Engie Power Limited,17/05/2023,PE149577,55.01,0.00,"1640000947206Act01/04/23 to 30/04/23Kiosk 8, Fleetwood Market, Adelaide St, Fleetwood, FY7 6AB",Electricity
Wyre Council,http://opendatacommunities.org/doc/district-council/wyre,30/05/2023,People and Places,Planning and Development Servs,132C,Engie Power Limited,17/05/2023,PE149574,52.48,0.00,"1640000947145Act01/04/23 to 30/04/23Kiosk 2, Fleetwood Market, Adelaie St, Fleetwood, FY7 6AB",Electricity
Wyre Council,http://opendatacommunities.org/doc/district-council/wyre,30/05/2023,People and Places,Planning and Development Servs,132C,Engie Power Limited,17/05/2023,PE149579,47.85,0.00,"1640000947215Act01/04/23 to 30/04/23Landlord Supply, Fleetwood Market, Adelaide St, Fleetwood, FY7 6AB",Electricity
Wyre Council,http://opendatacommunities.org/doc/district-council/wyre,30/05/2023,People and Places,Planning and Development Servs,132C,Engie Power Limited,17/05/2023,PE149578,288.93,0.00,"1640000947190Act01/04/23 to 30/04/23Kiosk 7, Fleetwood Market, Adelaide St, Fleetwood, FY7 6AB",Electricity
Wyre Council,http://opendatacommunities.org/doc/district-council/wyre,30/05/2023,People and Places,Planning and Development Servs,132C,Engie Power Limited,17/05/2023,PE149570,51.43,0.00,"1640000947181Act01/04/23 to 30/04/23Kiosk 6, Fleetwood Market, Adelaide St, Fleetwood, FY7 6AB",Electricity
Wyre Council,http://opendatacommunities.org/doc/district-council/wyre,30/05/2023,People and Places,Planning and Development Servs,132C,Engie Power Limited,17/05/2023,PE149573,54.85,0.00,"1640000947136Act01/04/23 to 30/04/23Kiosk 1, Fleetwood Market, Adelaide St, Fleetwood, FY7 6AB",Electricity
Wyre Council,http://opendatacommunities.org/doc/district-council/wyre,30/05/2023,People and Places,Cultural and Related Services,132A,Engie Power Limited,17/05/2023,PE149572,80.89,0.00,"1640000400837Est01/04/23 to 30/04/23Beach Huts, The Esplanade, Fleetwood, FY7 6QD",Electricity
Wyre Council,http://opendatacommunities.org/doc/district-council/wyre,30/05/2023,People and Places,Environmental Services,132B,Engie Power Limited,17/05/2023,PE149599,204.35,0.00,"1610004933625Est01/04/23 to 30/04/23Springfield Pumping Station 17, Fleeetwood Road, Fleetwood, Lancashire, FY7 8TW",Electricity
Wyre Council,http://opendatacommunities.org/doc/district-council/wyre,30/05/2023,People and Places,Environmental Services,132B,Engie Power Limited,17/05/2023,PE149589,212.21,0.00,"1610004845304Act01/04/23 to 30/04/23Fleetwood Corp Cemetery, Beach Rd, Fleetwood, FY7 8PH",Electricity
Wyre Council,http://opendatacommunities.org/doc/district-council/wyre,30/05/2023,People and Places,Environmental Services,132B,Engie Power Limited,17/05/2023,PE149590,476.10,0.00,"1610004845313Est01/04/23 to 30/04/23Fleetwood Corp Cemetery, Beach Rd, Fleetwood, FY7 8PH",Electricity
Wyre Council,http://opendatacommunities.org/doc/district-council/wyre,30/05/2023,Finance,Central Services to the Public,131C,,16/05/2023,WPST00106415,4000.00,0.00,Energy Bills Support Scheme Alternative,Energy Rebate Payment
Wyre Council,http://opendatacommunities.org/doc/district-council/wyre,30/05/2023,Finance,Central Services to the Public,131C,,16/05/2023,WPST00106416,4600.00,0.00,Energy Bills Support Scheme Alternative,Energy Rebate Payment
Wyre Council,http://opendatacommunities.org/doc/district-council/wyre,30/05/2023,Finance,Central Services to the Public,131C,,10/05/2023,WPST00105779,1200.00,0.00,Energy Bills Support Scheme Alternative,Energy Rebate Payment
Wyre Council,http://opendatacommunities.org/doc/district-council/wyre,30/05/2023,Finance,Central Services to the Public,131C,,10/05/2023,WPST00105780,2600.00,0.00,Energy Bills Support Scheme Alternative,Energy Rebate Payment
Wyre Council,http://opendatacommunities.org/doc/district-council/wyre,30/05/2023,Finance,Central Services to the Public,131C,,31/05/2023,WPST00108028,14000.00,0.00,energy support chm alt funding 26/05/23,Energy Rebate Payment
Wyre Council,http://opendatacommunities.org/doc/district-council/wyre,30/05/2023,Finance,Central Services to the Public,131C,,31/05/2023,WPST00108027,9200.00,0.00,Energy Support Schm Alt Funding 26-05-23,Energy Rebate Payment
Wyre Council,http://opendatacommunities.org/doc/district-council/wyre,30/05/2023,Finance,Central Services to the Public,131C,,03/05/2023,WPST00104884,10400.00,0.00,Energy bills sup schm alt fund 28/04/23,Energy Rebate Payment
Wyre Council,http://opendatacommunities.org/doc/district-council/wyre,30/05/2023,Finance,Central Services to the Public,131C,,03/05/2023,WPST00104885,7000.00,0.00,Energy bills sup schm alt fund 28/04/23,Energy Rebate Payment
Wyre Council,http://opendatacommunities.org/doc/district-council/wyre,30/05/2023,Finance,Central Services to the Public,131C,,12/05/2023,WPST00106199,800.00,0.00,Energy Bills Support Scheme Alternative,Energy Rebate Payment
Wyre Council,http://opendatacommunities.org/doc/district-council/wyre,30/05/2023,Finance,Central Services to the Public,131C,,12/05/2023,WPST00106198,4400.00,0.00,Energy Bills Support Scheme Alternative,Energy Rebate Payment
Wyre Council,http://opendatacommunities.org/doc/district-council/wyre,30/05/2023,Resources,Housing General Fund,134A,Jacobs Enforcement Agency,22/05/2023,RS149674,274.35,0.00,15.00% commission recovered on 1829.00,Enforcement Agents` Fees
Wyre Council,http://opendatacommunities.org/doc/district-council/wyre,30/05/2023,Resources,Housing General Fund,134A,Jacobs Enforcement Agency,02/05/2023,RS149190,360.54,0.00,15.00% commission recovered on 2403.63,Enforcement Agents` Fees
Wyre Council,http://opendatacommunities.org/doc/district-council/wyre,30/05/2023,People and Places,Central Services to the Public,131C,Mobile Mini UK LTD,23/05/2023,PE149698,35.00,0.00,5 Cabins as per your quote 9464 which includes collection and delivery plus cleaning .  Deliivery details as per attached sheet .,Equipment Delivery & Collection
Wyre Council,http://opendatacommunities.org/doc/district-council/wyre,30/05/2023,People and Places,Central Services to the Public,131C,Mobile Mini UK LTD,23/05/2023,PE149697,35.00,0.00,5 Cabins as per your quote 9464 which includes collection and delivery plus cleaning .  Deliivery details as per attached sheet .,Equipment Delivery & Collection
Wyre Council,http://opendatacommunities.org/doc/district-council/wyre,30/05/2023,People and Places,Central Services to the Public,131C,Mobile Mini UK LTD,23/05/2023,PE149696,35.00,0.00,5 Cabins as per your quote 9464 which includes collection and delivery plus cleaning .  Deliivery details as per attached sheet .,Equipment Delivery & Collection
Wyre Council,http://opendatacommunities.org/doc/district-council/wyre,30/05/2023,People and Places,Central Services to the Public,131C,Mobile Mini UK LTD,23/05/2023,PE149695,35.00,0.00,5 Cabins as per your quote 9464 which includes collection and delivery plus cleaning .  Deliivery details as per attached sheet .,Equipment Delivery & Collection
Wyre Council,http://opendatacommunities.org/doc/district-council/wyre,30/05/2023,People and Places,Central Services to the Public,131C,Mobile Mini UK LTD,12/05/2023,PE149459,109.40,0.00,5 Cabins as per your quote 9464 which includes collection and delivery plus cleaning .  Deliivery details as per attached sheet .,Equipment Delivery & Collection
Wyre Council,http://opendatacommunities.org/doc/district-council/wyre,30/05/2023,People and Places,Central Services to the Public,131C,Mobile Mini UK LTD,12/05/2023,PE149463,1857.80,0.00,5 Cabins as per your quote 9464 which includes collection and delivery plus cleaning .  Deliivery details as per attached sheet .,Equipment Delivery & Collection
Wyre Council,http://opendatacommunities.org/doc/district-council/wyre,30/05/2023,People and Places,Central Services to the Public,131C,Mobile Mini UK LTD,12/05/2023,PE149462,1820.02,0.00,5 Cabins as per your quote 9464 which includes collection and delivery plus cleaning .  Deliivery details as per attached sheet .,Equipment Delivery & Collection
Wyre Council,http://opendatacommunities.org/doc/district-council/wyre,30/05/2023,People and Places,Central Services to the Public,131C,Smiths Equipment Hire,31/05/2023,PE149636,170.00,0.00,12 toilets hire for the election as per quote H12-771298,Equipment Delivery & Collection
Wyre Council,http://opendatacommunities.org/doc/district-council/wyre,30/05/2023,People and Places,Central Services to the Public,131C,Smiths Equipment Hire,31/05/2023,PE149635,240.00,0.00,4 number 30 KVA generators for delivery to Copse Road Depot on 26th Aprill and collection from 9th May . Minimum hire charge 2120 plus used fuel at 1.65p per litre . Collection and delivery  120 each way .,Equipment Delivery & Collection
Wyre Council,http://opendatacommunities.org/doc/district-council/wyre,30/05/2023,Resources,Cultural and Related Services,132A,Signs Express (Central Lancashire),10/05/2023,RS148139,3350.00,0.00,Digital kiosk / indoor sign for Garstang Library tourist information point,Exhibitions and Events
Wyre Council,http://opendatacommunities.org/doc/district-council/wyre,30/05/2023,People and Places,Cultural and Related Services,132A,Fylde Coast YMCA,09/05/2023,PE149333,2635.00,0.00,Holiday and Food Club Easter 2023PLACES40 x 4 = 160 = 2400.00STAFFING1800.00TOTAL = 4200,External Coaching
Wyre Council,http://opendatacommunities.org/doc/district-council/wyre,30/05/2023,People and Places,Cultural and Related Services,132A,Fylde Coast YMCA,09/05/2023,PE149334,2710.00,0.00,Holiday & Food Club Easter 2023 - Thornton YMCA PLACES160 places = 2400.00STAFFING1800.00TOTAL4200,External Coaching
Wyre Council,http://opendatacommunities.org/doc/district-council/wyre,30/05/2023,People and Places,Cultural and Related Services,132A,Educraft Limited,24/05/2023,PE149741,5000.00,0.00,"Holiday and Food Club 2023 - Easter - EducraftComputer Equipment Hire + Preparation of HDDs/SD Cards   1,000.00  Course development: workshop activity inc licence fees to developers  200.00  Course development: healthy eating / pla",External Coaching
Wyre Council,http://opendatacommunities.org/doc/district-council/wyre,30/05/2023,People and Places,Cultural and Related Services,132A,Mrs Buffet Ltd,18/05/2023,PE149637,1040.00,0.00,Holiday and Food Club Easter Food,External Coaching
Wyre Council,http://opendatacommunities.org/doc/district-council/wyre,30/05/2023,People and Places,Cultural and Related Services,132A,Nisbetts Next Day Catering Equipment,04/05/2023,PE149295,12.79,0.00,1 First aid kit refill - FT587,First Aid Supplies
Wyre Council,http://opendatacommunities.org/doc/district-council/wyre,30/05/2023,People and Places,Cultural and Related Services,132A,Nisbetts Next Day Catering Equipment,04/05/2023,PE149295,35.18,0.00,First aid kit FT595,First Aid Supplies
Wyre Council,http://opendatacommunities.org/doc/district-council/wyre,30/05/2023,People and Places,Cultural and Related Services,132A,Nisbetts Next Day Catering Equipment,04/05/2023,PE149295,12.79,0.00,Eyewash station - FT600,First Aid Supplies
Wyre Council,http://opendatacommunities.org/doc/district-council/wyre,30/05/2023,People and Places,Cultural and Related Services,132A,Nisbetts Next Day Catering Equipment,04/05/2023,PE149295,5.51,0.00,Eye wash pods,First Aid Supplies
Wyre Council,http://opendatacommunities.org/doc/district-council/wyre,30/05/2023,People and Places,Environmental Services,132B,NWIFCA      N W Inshore Fisheries and Conservation,05/05/2023,PE149302,623.00,0.00,Shellfish Collection  23/24,Food and Drug Etc Samples
Wyre Council,http://opendatacommunities.org/doc/district-council/wyre,30/05/2023,People and Places,Environmental Services,132B,NWIFCA      N W Inshore Fisheries and Conservation,15/05/2023,PE149267,1000.80,0.00,For shellfish testing - April 2022 - March 2023,Food and Drug Etc Samples
Wyre Council,http://opendatacommunities.org/doc/district-council/wyre,30/05/2023,People and Places,Support Services,135B,Allstar Business Solutions LTD,02/05/2023,PE148907,112.05,0.00,Fuel Charges,Fuel
Wyre Council,http://opendatacommunities.org/doc/district-council/wyre,30/05/2023,People and Places,Support Services,135B,Allstar Business Solutions LTD,10/05/2023,PE149253,374.52,0.00,Fuel to 30/04/23,Fuel
Wyre Council,http://opendatacommunities.org/doc/district-council/wyre,30/05/2023,People and Places,Support Services,135B,Allstar Business Solutions LTD,31/05/2023,PE149615,166.38,0.00,Fuel to 12/05/23,Fuel
Wyre Council,http://opendatacommunities.org/doc/district-council/wyre,30/05/2023,People and Places,Support Services,135B,Allstar Business Solutions LTD,31/05/2023,PE149615,105.51,0.00,Fuel to 12/05/23,Fuel
Wyre Council,http://opendatacommunities.org/doc/district-council/wyre,30/05/2023,Resources,Cultural and Related Services,132A,Colourbanners.co.uk,05/05/2023,RS149268,256.00,0.00,"5 x GWF Generic banner, vinyl with eyelets, 2400x900mm, all same artwork2 x GWF Tolberone display banners, vinyl with eyelets, 2310x840mm, 2 kinds a/w",Garstang Walking Festival
Wyre Council,http://opendatacommunities.org/doc/district-council/wyre,30/05/2023,Resources,Cultural and Related Services,132A,Preston City Council,04/05/2023,RS149111,-559.20,0.00,Offsets RS148278 walking festival leaflets,Garstang Walking Festival
Wyre Council,http://opendatacommunities.org/doc/district-council/wyre,30/05/2023,Resources,Cultural and Related Services,132A,Preston City Council,04/05/2023,RS148278,559.20,0.00,Offset via RS149111 walking festival leaflets,Garstang Walking Festival
Wyre Council,http://opendatacommunities.org/doc/district-council/wyre,30/05/2023,Resources,Cultural and Related Services,132A,Tom Pooley Marketing,31/05/2023,RS149315,250.00,0.00,For social marketer (influencer) Tom Pooley to film and produce some social content to promote Garstang Walking Festival,Garstang Walking Festival
Wyre Council,http://opendatacommunities.org/doc/district-council/wyre,30/05/2023,Resources,"Cultural, Environ and Planning",137B,Lucy Moss,25/05/2023,RS149751,15944.56,0.00,HSHAZ Grant: 19-23 Adelaide St,Grants and Advances
Wyre Council,http://opendatacommunities.org/doc/district-council/wyre,30/05/2023,Resources,"Cultural, Environ and Planning",137B,Lucy Moss,04/05/2023,RS149277,23618.59,0.00,Fleetwood SHSAZ Grant: 19-23 Adelaide St,Grants and Advances
Wyre Council,http://opendatacommunities.org/doc/district-council/wyre,30/05/2023,People and Places,"Cultural, Environ and Planning",137B,RH Property Management Ltd,25/05/2023,PE149749,18484.26,0.00,"HSHAZ Grant: Former HSBC Bank, Albert St, Fleetwood, FY7 6AH",Grants and Advances
Wyre Council,http://opendatacommunities.org/doc/district-council/wyre,30/05/2023,People and Places,"Cultural, Environ and Planning",137B,RH Property Management Ltd,16/05/2023,PE149549,27680.08,0.00,"Fleetwood HSHAZ Grant HSNW27_6 Former HSBC Bank, Albert Street, Fleetwood",Grants and Advances
Wyre Council,http://opendatacommunities.org/doc/district-council/wyre,30/05/2023,Resources,Cultural and Related Services,132A,Buyer Direct LTD,02/05/2023,RS148346,2044.90,0.00,"3 x Marquees - Discover Wyre, Wyre`s Great Outdoors, Together We Make A Diff Each 3x3m, front canopy and valance printed, back wall inside and out printed",Guides
Wyre Council,http://opendatacommunities.org/doc/district-council/wyre,30/05/2023,People and Places,Environmental Services,132B,Blackpool Skip Hire LTD,03/05/2023,PE149233,1250.00,0.00,"Thornton Cleveleys asbestos removal Thursday 27th April 2023, to meet in Thornton between 9.30 and 10am  2 lots of Acm  850 labour   200 Transport ( To site and then to Clifton marsh landfill) 200 Materials and PaperworkWaste to be tipped",Hazardous Waste Disposal
Wyre Council,http://opendatacommunities.org/doc/district-council/wyre,30/05/2023,People and Places,Central Services to the Public,131C,Mobile Mini UK LTD,03/05/2023,PE149225,1857.80,0.00,1 Cabins as per your quote 9464 which includes collection and delivery plus cleaning .  Deliivery details as per attached sheet .,Hire of Tools or Equipment
Wyre Council,http://opendatacommunities.org/doc/district-council/wyre,30/05/2023,People and Places,Central Services to the Public,131C,Mobile Mini UK LTD,03/05/2023,PE149224,1857.80,0.00,1 Cabin as per your quote 9464 which includes collection and delivery plus cleaning .  Deliivery details as per attached sheet .,Hire of Tools or Equipment
Wyre Council,http://opendatacommunities.org/doc/district-council/wyre,30/05/2023,People and Places,Central Services to the Public,131C,Mobile Mini UK LTD,12/05/2023,PE149459,1573.40,0.00,5 Cabins as per your quote 9464 which includes collection and delivery plus cleaning .  Deliivery details as per attached sheet .,Hire of Tools or Equipment
Wyre Council,http://opendatacommunities.org/doc/district-council/wyre,30/05/2023,People and Places,Central Services to the Public,131C,Smiths Equipment Hire,31/05/2023,PE149635,1484.00,0.00,4 number 30 KVA generators for delivery to Copse Road Depot on 26th Aprill and collection from 9th May . Minimum hire charge 2120 plus used fuel at 1.65p per litre . Collection and delivery  120 each way .,Hire of Tools or Equipment
Wyre Council,http://opendatacommunities.org/doc/district-council/wyre,30/05/2023,People and Places,Central Services to the Public,131C,Smiths Equipment Hire,31/05/2023,PE149636,864.00,0.00,12 toilets hire for the election as per quote H12-771298,Hire of Tools or Equipment
Wyre Council,http://opendatacommunities.org/doc/district-council/wyre,30/05/2023,Finance,Central Services to the Public,131C,,25/05/2023,WPST00107657,9050.00,0.00,27/09/2022 HSF2 LG 64x 50 65x90,Household Support Fund
Wyre Council,http://opendatacommunities.org/doc/district-council/wyre,30/05/2023,People and Places,Environmental Services,132B,Poulton Pets LTD,04/05/2023,PE149293,1407.00,0.00,Provision of stray dog kennelling service 2023/24,Impounded Dogs Costs
Wyre Council,http://opendatacommunities.org/doc/district-council/wyre,30/05/2023,Finance,General Fund below the line,136A,,25/05/2023,WPST00107651,6410.96,0.00,24/08/2022DWS DEUTSCHE GLOBA DEUTSCHE M,Interest Payment - Other
Wyre Council,http://opendatacommunities.org/doc/district-council/wyre,30/05/2023,Resources,Support Services,135B,Vodafone LTD,04/05/2023,RS148696,404.49,0.00,MSP Dedicated Access Bearer 01/01/23 - 31/03/23,Internet and Telephone Charges
Wyre Council,http://opendatacommunities.org/doc/district-council/wyre,30/05/2023,Resources,Support Services,135B,Vodafone LTD,04/05/2023,RS148696,199.98,0.00,PSN - Direct Network Service Provider,Internet and Telephone Charges
Wyre Council,http://opendatacommunities.org/doc/district-council/wyre,30/05/2023,Resources,Support Services,135B,THE NETWORKING PEOPLE (TNP) LTD,31/05/2023,RS149711,1234.76,0.00,FG-VM02V - FortiGate Services: FortiGate-VM virtual appliance designed for all supported platforms - 2 x vCPU cores,Internet and Telephone Charges
Wyre Council,http://opendatacommunities.org/doc/district-council/wyre,30/05/2023,Resources,Support Services,135B,THE NETWORKING PEOPLE (TNP) LTD,31/05/2023,RS149711,942.90,0.00,FC-10-FG2VM-248-02-36 - FortiGate Services: FortiGate-VM02V 3 Year FortiCare Premium Support,Internet and Telephone Charges
Wyre Council,http://opendatacommunities.org/doc/district-council/wyre,30/05/2023,Resources,Support Services,135B,THE NETWORKING PEOPLE (TNP) LTD,31/05/2023,RS149870,436.52,0.00,"Wholesale FTTC connection to Stanah Country Park Visitor Ce, River Road, 1 436.42 20.0 436.42Thornton-Cleveleys, FY5 5LR - Annual rental 14/05/2023 - 13/05/2024",Internet and Telephone Charges
Wyre Council,http://opendatacommunities.org/doc/district-council/wyre,30/05/2023,Resources,Support Services,135B,THE NETWORKING PEOPLE (TNP) LTD,31/05/2023,RS149870,436.32,0.00," Wholesale FTTC connection to Unit 1, Cherestanc Square, Garstang, Preston, 1 436.42 20.0 436.42PR3 1EF - Annual rental 30/04/2023 - 29/04/2024",Internet and Telephone Charges
Wyre Council,http://opendatacommunities.org/doc/district-council/wyre,30/05/2023,Resources,Support Services,135B,THE NETWORKING PEOPLE (TNP) LTD,31/05/2023,RS149870,436.32,0.00,"Wholesale FTTC connection to The New Wave Cafe, North Promenade, 1 436.42 20.0 436.42Thornton-Cleveleys, FY5 1LW - Annual rental 27/05/2023 - 26/05/2024",Internet and Telephone Charges
Wyre Council,http://opendatacommunities.org/doc/district-council/wyre,30/05/2023,Resources,Support Services,135B,THE NETWORKING PEOPLE (TNP) LTD,31/05/2023,RS149870,436.52,0.00,"Wholesale FTTC connection to Thornton Little Theatre, Victoria Road East, 1 436.42 20.0 436.42Thornton Cleveleys, FY5 3S - Annual rental 13/05/2023 - 12/05/2024",Internet and Telephone Charges
Wyre Council,http://opendatacommunities.org/doc/district-council/wyre,30/05/2023,Resources,Support Services,135B,THE NETWORKING PEOPLE (TNP) LTD,31/05/2023,RS149878,402.23,0.00,"Wholesale FTTC connection to Ymca Fleetwood Leisure Centre, The Esplanade, 1 402.23 20.0 402.23
Fleetwood, FY7 6HF - Annual Rental 15/02/2023 - 14/02/2024",Internet and Telephone Charges
Wyre Council,http://opendatacommunities.org/doc/district-council/wyre,30/05/2023,People and Places,Cultural and Related Services,132A,Nisbetts Next Day Catering Equipment,16/05/2023,PE149373,347.52,0.00,"Cups, lids and straws - Marine Hall",Kiosk stock
Wyre Council,http://opendatacommunities.org/doc/district-council/wyre,30/05/2023,People and Places,Planning and Development Servs,132C,Kings Chambers,26/05/2023,PE149762,1500.00,0.00,Legal advice Valiants Farm enforcement 23/00047/ENF,Legal Fees
Wyre Council,http://opendatacommunities.org/doc/district-council/wyre,30/05/2023,People and Places,Central Services to the Public,131C,Mobile Mini UK LTD,12/05/2023,PE149459,175.00,0.00,5 Cabins as per your quote 9464 which includes collection and delivery plus cleaning .  Deliivery details as per attached sheet .,Maintenance of Tools or Equipment
Wyre Council,http://opendatacommunities.org/doc/district-council/wyre,30/05/2023,People and Places,Planning and Development Servs,132C,Buyer Direct LTD,23/05/2023,PE149651,645.82,0.00,2 CANOPY 3.4.5M GREEN &and; WHITE COMMERCIAL VINYLCANOPY AND 6 canopt for 3x3m gazzebo including delivery,Maintenance of Tools or Equipment
Wyre Council,http://opendatacommunities.org/doc/district-council/wyre,30/05/2023,People and Places,Support Services,135B,Greens Environmental LTD,10/05/2023,PE149337,25.00,0.00,"Empty, clean & service the chemical toilet at Preesall Cemetery, Preesall 30 per visit  Code to gain access to toilet 1907, located at the rear of the chapel Contact Gareth Bates on 07732399499 if you have problems with access",Maintenance of Tools or Equipment
Wyre Council,http://opendatacommunities.org/doc/district-council/wyre,30/05/2023,People and Places,Parking Services,133F,CHIPSIDE LTD,16/05/2023,PE148544,15.00,0.00,Provide 2 no. 500 Mb SIMS for Wyre handheld units - 1 April 2023 - 31 March 2024,Maintenance of Tools or Equipment
Wyre Council,http://opendatacommunities.org/doc/district-council/wyre,30/05/2023,People and Places,Parking Services,133F,CHIPSIDE LTD,17/05/2023,PE149472,15.00,0.00,Provide 2 no. 500 Mb SIMS for Wyre handheld units - 1 April 2023 - 31 March 2024,Maintenance of Tools or Equipment
Wyre Council,http://opendatacommunities.org/doc/district-council/wyre,30/05/2023,People and Places,Parking Services,133F,PETER HEARN ELECTRICAL LTD,24/05/2023,PE149466,720.00,0.00,"Carry out annual electrical inspection and safety checks for 16 no.car park P&D meters, including NICEIC report",Maintenance of Tools or Equipment
Wyre Council,http://opendatacommunities.org/doc/district-council/wyre,30/05/2023,People and Places,Central Services to the Public,131C,S J HULL ELECTRICAL CONTRACTORS LTD,16/05/2023,PE149554,1500.00,0.00,"Provision of cables , switches and plugs for the cabins and generators , Check heaters , lights and ancilliaries before use and be on call on the day to rectify any problems .",Maintenance of Tools or Equipment
Wyre Council,http://opendatacommunities.org/doc/district-council/wyre,30/05/2023,People and Places,Parking Services,133F,FLOWBIRD SMART CITY UK LTD,24/05/2023,PE149464,6171.60,0.00,Provide Weboffice (including airtime) for 16 no. CWT meters - 1 April 2023 - 31 March 2024.  Provide credit card facilities for 10 no CWT meters - 1 April 2023 - 31 March 2024,Maintenance of Tools or Equipment
Wyre Council,http://opendatacommunities.org/doc/district-council/wyre,30/05/2023,People and Places,Highways,133B,HMA Tree Care,10/05/2023,PE149370,870.00,0.00,"Quote No: 190Surveyor: Ben WallerSite Ref No: 197Site Address highway trees, ascot road , Thornton Cleveleys , Lancashire , FY5 5HNT1 CherryCrown Lift to provide 3 metres clearance from ground level and reduce away fromproperty and highway",Maintenance of Trees and Shrubs
Wyre Council,http://opendatacommunities.org/doc/district-council/wyre,30/05/2023,People and Places,Environmental Services,132B,Andrew Signs LTD,18/05/2023,PE149631,442.20,0.00,12 bathing signs with rails attached - requested by mark t,Materials and Consumables
Wyre Council,http://opendatacommunities.org/doc/district-council/wyre,30/05/2023,People and Places,Environmental Services,132B,Andrew Signs LTD,26/05/2023,PE149798,120.00,0.00,payment of invoice INV-1434,Materials and Consumables
Wyre Council,http://opendatacommunities.org/doc/district-council/wyre,30/05/2023,People and Places,Environmental Services,132B,Andrew Signs LTD,26/05/2023,PE149803,35.00,0.00,various signs from INV-1454,Materials and Consumables
Wyre Council,http://opendatacommunities.org/doc/district-council/wyre,30/05/2023,People and Places,Support Services,135B,DLF Seeds LTD,17/05/2023,PE149477,246.18,0.00,2 PM10 Greens @ 7.41 per kilo,Materials and Consumables
Wyre Council,http://opendatacommunities.org/doc/district-council/wyre,30/05/2023,People and Places,Support Services,135B,DLF Seeds LTD,17/05/2023,PE149477,88.40,0.00,1 x PM36 Cricket @ 4.42 per kilo,Materials and Consumables
Wyre Council,http://opendatacommunities.org/doc/district-council/wyre,30/05/2023,People and Places,Support Services,135B,DLF Seeds LTD,17/05/2023,PE149477,166.80,0.00,"2 x PM80 Football. @ 4.17 per kilo   All served in 20kg bags   Delivery to Wyre Council, Copse Road Depot, Copse Road, Fleetwood, FY7 6RP.",Materials and Consumables
Wyre Council,http://opendatacommunities.org/doc/district-council/wyre,30/05/2023,People and Places,Support Services,135B,Key Engineering & Hygiene Supplies LTD,03/05/2023,PE149044,30.64,0.00,"Supply and deliver as per quotation 18635 20 x Stokoderm sun protect 50, 100ml @ 9.37 each (If you havent got all 20 in stock please could you send what you can as we have a sun safety talk on the 17th April 2023, thank you",Materials and Consumables
Wyre Council,http://opendatacommunities.org/doc/district-council/wyre,30/05/2023,People and Places,Environmental Services,132B,Key Engineering & Hygiene Supplies LTD,03/05/2023,PE149044,76.60,0.00,"Supply and deliver as per quotation 18635 20 x Stokoderm sun protect 50, 100ml @ 9.37 each (If you havent got all 20 in stock please could you send what you can as we have a sun safety talk on the 17th April 2023, thank you",Materials and Consumables
Wyre Council,http://opendatacommunities.org/doc/district-council/wyre,30/05/2023,People and Places,Support Services,135B,MC & MA Stewart (Haulage) LTD,15/05/2023,PE149507,1660.00,0.00,"Supply 40m3 of composted bark delivery to Memorial Park Fleetwood, as per email quotation @ 41.50 per cubic metre)Delivery between Monday 6th-10th March 2023Contact Mark Stanley before arrival on mobile 07501422312",Materials and Consumables
Wyre Council,http://opendatacommunities.org/doc/district-council/wyre,30/05/2023,People and Places,Support Services,135B,Keep Britain Tidy,15/05/2023,PE149510,65.00,0.00,"Urgent Supply of one new replacement Green Flag to go on The Mount pavillion, Fleetwood Delivery FAO Georgia, Parks & Open Spaces, Wyre Civic Centre, Breck Road, Poulton-le-Fylde, FY6 7PU",Materials and Consumables
Wyre Council,http://opendatacommunities.org/doc/district-council/wyre,30/05/2023,People and Places,Support Services,135B,Amenity Horticultural Services LTD,25/05/2023,PE149753,3015.00,0.00,Quote 67166 Play area Woodfibre 60m3 delivered to Wyre Estuary Country ParkRiver Road Thornton-Cleveleys FY5 5LRIf possible could this be delivered Tuesday 16th May around 8 - 8.30am. Phone 07976650803 and gates will be unlocked to the site,Materials and Consumables
Wyre Council,http://opendatacommunities.org/doc/district-council/wyre,30/05/2023,People and Places,Support Services,135B,Amenity Horticultural Services LTD,25/05/2023,PE149767,1593.00,0.00,Quote 67164  8-40 play area bark 30m3 delivered to Mount Gardens Mount Road Fleetwood FY7 6QZIf possible could this be delivered Tuesday 16th May around 8am. Please call 07964303940 a member of staff will direct to where the load is to be dropped,Materials and Consumables
Wyre Council,http://opendatacommunities.org/doc/district-council/wyre,30/05/2023,People and Places,Cultural and Related Services,132A,HUWS GRAY LTD,15/05/2023,PE149457,124.44,0.00,fencing materials,Materials and Consumables
Wyre Council,http://opendatacommunities.org/doc/district-council/wyre,30/05/2023,People and Places,Cultural and Related Services,132A,HUWS GRAY LTD,31/05/2023,PE149884,32.57,0.00,"Nuts and bolts, timber Holmewood",Materials and Consumables
Wyre Council,http://opendatacommunities.org/doc/district-council/wyre,30/05/2023,People and Places,Support Services,135B,Amazon Business,10/05/2023,PE149306,52.89,0.00,Spray packs @ 20.80brackets and cables @ 31.48Tools @ 52.89Toilet brushes @ 16.84,Materials and Consumables
Wyre Council,http://opendatacommunities.org/doc/district-council/wyre,30/05/2023,Resources,Support Services,135B,Amazon Business,17/05/2023,RS149468,7.49,0.00,Self Adhesive Magnetic Tape 12mm x 10mtr side A.,Materials and Consumables
Wyre Council,http://opendatacommunities.org/doc/district-council/wyre,30/05/2023,Resources,Support Services,135B,Amazon Business,17/05/2023,RS149468,7.49,0.00,Self Adhesive Magnetic Tape 12mm x 10mtr side B.,Materials and Consumables
Wyre Council,http://opendatacommunities.org/doc/district-council/wyre,30/05/2023,Resources,Support Services,135B,Amazon Business,17/05/2023,RS149474,20.52,0.00,Brother 12 mm Tape - Black/White.,Materials and Consumables
Wyre Council,http://opendatacommunities.org/doc/district-council/wyre,30/05/2023,People and Places,Environmental Services,132B,Amazon Business,26/05/2023,PE149475,45.99,0.00,Storage boxes,Materials and Consumables
Wyre Council,http://opendatacommunities.org/doc/district-council/wyre,30/05/2023,Resources,Support Services,135B,Amazon Business,31/05/2023,RS149718,32.46,0.00,"paul russells LED Light Edison Screw E27, 40w Equivalent Bulb, 5.5W 470LM LED Bulbs, 4000K Cool White Lamps, Round Frosted G45 ES Golf Ball Energy Saving Lightbulbs, Pack of 6.",Materials and Consumables
Wyre Council,http://opendatacommunities.org/doc/district-council/wyre,30/05/2023,People and Places,Support Services,135B,Amazon Business,31/05/2023,PE149441,7.07,0.00,screwdriver set 7.07,Materials and Consumables
Wyre Council,http://opendatacommunities.org/doc/district-council/wyre,30/05/2023,People and Places,Support Services,135B,Amazon Business,15/05/2023,PE149499,20.74,0.00,2 Dog leads - ANCOL EXTREME SLIP LEAD 1.5m x 12mm,Materials and Consumables
Wyre Council,http://opendatacommunities.org/doc/district-council/wyre,30/05/2023,People and Places,Cultural and Related Services,132A,Rope Source Limited,03/05/2023,PE149015,624.20,0.00,rope for the Living seas board walk,Materials and Consumables
Wyre Council,http://opendatacommunities.org/doc/district-council/wyre,30/05/2023,People and Places,Environmental Services,132B,Hako Machines Limited,31/05/2023,PE149689,1228.50,0.00,supply and delivery of 20 Stand plate Brush Nylon/steel bristle HAKO order number 5001161227,Materials and Consumables
Wyre Council,http://opendatacommunities.org/doc/district-council/wyre,30/05/2023,People and Places,Environmental Services,132B,Hako Machines Limited,31/05/2023,PE149688,136.50,0.00,supply and delivery of 20 Stand plate Brush Nylon/steel bristle HAKO order number 5001161227,Materials and Consumables
Wyre Council,http://opendatacommunities.org/doc/district-council/wyre,30/05/2023,People and Places,Corporate and Democratic Core,131A,Preston City Council,02/05/2023,PE149196,127.00,0.00,300 Mayoral Christmas Cards A5 4pp printed digitally 4 colour and 2pp clear toner on silk 350gsm carbon neutral scored and supplied flat,Mayoral Hospitality
Wyre Council,http://opendatacommunities.org/doc/district-council/wyre,30/05/2023,People and Places,Environmental Services,132B,Blackpool Skip Hire LTD,05/05/2023,PE149234,1261.20,0.00,40 Cu Yd Ro Ro Job no 91707 3/4/23 Knott-End slipway,Mechanical Cleaning
Wyre Council,http://opendatacommunities.org/doc/district-council/wyre,30/05/2023,Resources,Housing General Fund,134A,J A DICKENS LIMITED,24/05/2023,RS148740,370.00,0.00,REDACT,Minor Adaptations
Wyre Council,http://opendatacommunities.org/doc/district-council/wyre,30/05/2023,Resources,Housing General Fund,134A,J A DICKENS LIMITED,24/05/2023,RS148740,400.00,0.00,REDACT,Minor Adaptations
Wyre Council,http://opendatacommunities.org/doc/district-council/wyre,30/05/2023,Resources,Current Assets,130B,SME HCI Ltd,26/05/2023,RS149800,604.60,0.00,INVOICE NUMBER: 145451,Miscellaneous Debits
Wyre Council,http://opendatacommunities.org/doc/district-council/wyre,30/05/2023,Finance,Contingency/Unalloc Bad Debt p,135A,,25/05/2023,WPST00107620,2220.00,0.00,17/05/2022VALUATION OFFICE A VOA-MARINE,Miscellaneous Expenses
Wyre Council,http://opendatacommunities.org/doc/district-council/wyre,30/05/2023,Resources,Support Services,135B,VODAFONE LIMITED,03/05/2023,RS148900,208.00,0.00,Mobile Phone Monthly Charges,Mobile Devices
Wyre Council,http://opendatacommunities.org/doc/district-council/wyre,30/05/2023,Resources,Environmental Services,132B,VODAFONE LIMITED,03/05/2023,RS148900,29.00,0.00,Mobile Phone Monthly Charges,Mobile Devices
Wyre Council,http://opendatacommunities.org/doc/district-council/wyre,30/05/2023,Resources,Housing General Fund,134A,VODAFONE LIMITED,03/05/2023,RS148900,36.00,0.00,Mobile Phone Monthly Charges,Mobile Devices
Wyre Council,http://opendatacommunities.org/doc/district-council/wyre,30/05/2023,Resources,Support Services,135B,VODAFONE LIMITED,03/05/2023,RS148900,36.00,0.00,Mobile Phone Monthly Charges,Mobile Devices
Wyre Council,http://opendatacommunities.org/doc/district-council/wyre,30/05/2023,Resources,Support Services,135B,VODAFONE LIMITED,03/05/2023,RS148900,158.17,0.00,Mobile Phone Monthly Charges,Mobile Devices
Wyre Council,http://opendatacommunities.org/doc/district-council/wyre,30/05/2023,Resources,Support Services,135B,VODAFONE LIMITED,03/05/2023,RS148900,56.47,0.00,Mobile Phone Monthly Charges,Mobile Devices
Wyre Council,http://opendatacommunities.org/doc/district-council/wyre,30/05/2023,People and Places,Central Services to the Public,131C,VODAFONE LIMITED,31/05/2023,PE149537,12.00,0.00,Monthly Phone Charges,Mobile Devices
Wyre Council,http://opendatacommunities.org/doc/district-council/wyre,30/05/2023,People and Places,Support Services,135B,VODAFONE LIMITED,31/05/2023,PE149537,208.00,0.00,Monthly Phone Charges,Mobile Devices
Wyre Council,http://opendatacommunities.org/doc/district-council/wyre,30/05/2023,People and Places,Support Services,135B,VODAFONE LIMITED,31/05/2023,PE149537,156.00,0.00,Monthly Phone Charges,Mobile Devices
Wyre Council,http://opendatacommunities.org/doc/district-council/wyre,30/05/2023,People and Places,Support Services,135B,VODAFONE LIMITED,31/05/2023,PE149537,153.53,0.00,Monthly Phone Charges,Mobile Devices
Wyre Council,http://opendatacommunities.org/doc/district-council/wyre,30/05/2023,People and Places,Support Services,135B,VODAFONE LIMITED,31/05/2023,PE149537,60.00,0.00,Monthly Phone Charges,Mobile Devices
Wyre Council,http://opendatacommunities.org/doc/district-council/wyre,30/05/2023,People and Places,Support Services,135B,VODAFONE LIMITED,31/05/2023,PE149537,28.00,0.00,Monthly Phone Charges,Mobile Devices
Wyre Council,http://opendatacommunities.org/doc/district-council/wyre,30/05/2023,People and Places,Support Services,135B,VODAFONE LIMITED,31/05/2023,PE149537,20.00,0.00,Monthly Phone Charges,Mobile Devices
Wyre Council,http://opendatacommunities.org/doc/district-council/wyre,30/05/2023,People and Places,Housing General Fund,134A,VODAFONE LIMITED,31/05/2023,PE149537,60.33,0.00,Monthly Phone Charges,Mobile Devices
Wyre Council,http://opendatacommunities.org/doc/district-council/wyre,30/05/2023,People and Places,Housing General Fund,134A,VODAFONE LIMITED,31/05/2023,PE149537,32.00,0.00,Monthly Phone Charges,Mobile Devices
Wyre Council,http://opendatacommunities.org/doc/district-council/wyre,30/05/2023,People and Places,Cultural and Related Services,132A,VODAFONE LIMITED,31/05/2023,PE149537,24.00,0.00,Monthly Phone Charges,Mobile Devices
Wyre Council,http://opendatacommunities.org/doc/district-council/wyre,30/05/2023,People and Places,Support Services,135B,VODAFONE LIMITED,31/05/2023,PE149537,36.00,0.00,Monthly Phone Charges,Mobile Devices
Wyre Council,http://opendatacommunities.org/doc/district-council/wyre,30/05/2023,People and Places,Support Services,135B,VODAFONE LIMITED,31/05/2023,PE149537,305.00,0.00,Monthly Phone Charges,Mobile Devices
Wyre Council,http://opendatacommunities.org/doc/district-council/wyre,30/05/2023,People and Places,Support Services,135B,VODAFONE LIMITED,31/05/2023,PE149537,12.00,0.00,Monthly Phone Charges,Mobile Devices
Wyre Council,http://opendatacommunities.org/doc/district-council/wyre,30/05/2023,People and Places,Support Services,135B,VODAFONE LIMITED,31/05/2023,PE149537,45.00,0.00,Monthly Phone Charges,Mobile Devices
Wyre Council,http://opendatacommunities.org/doc/district-council/wyre,30/05/2023,People and Places,Support Services,135B,VODAFONE LIMITED,31/05/2023,PE149537,43.20,0.00,Monthly Phone Charges,Mobile Devices
Wyre Council,http://opendatacommunities.org/doc/district-council/wyre,30/05/2023,People and Places,Environmental Services,132B,VODAFONE LIMITED,31/05/2023,PE149537,84.00,0.00,Monthly Phone Charges,Mobile Devices
Wyre Council,http://opendatacommunities.org/doc/district-council/wyre,30/05/2023,People and Places,Corporate and Democratic Core,131A,VODAFONE LIMITED,31/05/2023,PE149537,36.00,0.00,Monthly Phone Charges,Mobile Devices
Wyre Council,http://opendatacommunities.org/doc/district-council/wyre,30/05/2023,People and Places,Support Services,135B,VODAFONE LIMITED,31/05/2023,PE149537,64.00,0.00,Monthly Phone Charges,Mobile Devices
Wyre Council,http://opendatacommunities.org/doc/district-council/wyre,30/05/2023,People and Places,Support Services,135B,VODAFONE LIMITED,31/05/2023,PE149537,80.66,0.00,Monthly Phone Charges,Mobile Devices
Wyre Council,http://opendatacommunities.org/doc/district-council/wyre,30/05/2023,People and Places,Support Services,135B,VODAFONE LIMITED,31/05/2023,PE149537,60.63,0.00,Monthly Phone Charges,Mobile Devices
Wyre Council,http://opendatacommunities.org/doc/district-council/wyre,30/05/2023,People and Places,Support Services,135B,VODAFONE LIMITED,31/05/2023,PE149537,12.00,0.00,Monthly Phone Charges,Mobile Devices
Wyre Council,http://opendatacommunities.org/doc/district-council/wyre,30/05/2023,People and Places,Cultural and Related Services,132A,VODAFONE LIMITED,31/05/2023,PE149537,12.00,0.00,Monthly Phone Charges,Mobile Devices
Wyre Council,http://opendatacommunities.org/doc/district-council/wyre,30/05/2023,People and Places,Support Services,135B,VODAFONE LIMITED,31/05/2023,PE149537,193.00,0.00,Monthly Phone Charges,Mobile Devices
Wyre Council,http://opendatacommunities.org/doc/district-council/wyre,30/05/2023,People and Places,Cultural and Related Services,132A,VODAFONE LIMITED,31/05/2023,PE149537,12.00,0.00,Monthly Phone Charges,Mobile Devices
Wyre Council,http://opendatacommunities.org/doc/district-council/wyre,30/05/2023,People and Places,Support Services,135B,VODAFONE LIMITED,31/05/2023,PE149537,12.00,0.00,Monthly Phone Charges,Mobile Devices
Wyre Council,http://opendatacommunities.org/doc/district-council/wyre,30/05/2023,People and Places,Cultural and Related Services,132A,VODAFONE LIMITED,31/05/2023,PE149537,24.00,0.00,Monthly Phone Charges,Mobile Devices
Wyre Council,http://opendatacommunities.org/doc/district-council/wyre,30/05/2023,People and Places,Support Services,135B,VODAFONE LIMITED,31/05/2023,PE149537,168.48,0.00,Monthly Phone Charges,Mobile Devices
Wyre Council,http://opendatacommunities.org/doc/district-council/wyre,30/05/2023,People and Places,Support Services,135B,VODAFONE LIMITED,31/05/2023,PE149537,24.00,0.00,Monthly Phone Charges,Mobile Devices
Wyre Council,http://opendatacommunities.org/doc/district-council/wyre,30/05/2023,People and Places,Environmental Services,132B,VODAFONE LIMITED,31/05/2023,PE149537,29.00,0.00,Monthly Phone Charges,Mobile Devices
Wyre Council,http://opendatacommunities.org/doc/district-council/wyre,30/05/2023,People and Places,Housing General Fund,134A,VODAFONE LIMITED,31/05/2023,PE149537,36.00,0.00,Monthly Phone Charges,Mobile Devices
Wyre Council,http://opendatacommunities.org/doc/district-council/wyre,30/05/2023,People and Places,Support Services,135B,VODAFONE LIMITED,31/05/2023,PE149537,36.00,0.00,Monthly Phone Charges,Mobile Devices
Wyre Council,http://opendatacommunities.org/doc/district-council/wyre,30/05/2023,Resources,Housing General Fund,134A,VODAFONE LIMITED,03/05/2023,RS148900,20.00,0.00,Mobile Phone Monthly Charges,Mobile Devices
Wyre Council,http://opendatacommunities.org/doc/district-council/wyre,30/05/2023,Resources,Support Services,135B,VODAFONE LIMITED,03/05/2023,RS148900,36.00,0.00,Mobile Phone Monthly Charges,Mobile Devices
Wyre Council,http://opendatacommunities.org/doc/district-council/wyre,30/05/2023,Resources,Cultural and Related Services,132A,VODAFONE LIMITED,03/05/2023,RS148900,24.30,0.00,Mobile Phone Monthly Charges,Mobile Devices
Wyre Council,http://opendatacommunities.org/doc/district-council/wyre,30/05/2023,Resources,Housing General Fund,134A,VODAFONE LIMITED,03/05/2023,RS148900,60.00,0.00,Mobile Phone Monthly Charges,Mobile Devices
Wyre Council,http://opendatacommunities.org/doc/district-council/wyre,30/05/2023,Resources,Support Services,135B,VODAFONE LIMITED,03/05/2023,RS148900,24.00,0.00,Mobile Phone Monthly Charges,Mobile Devices
Wyre Council,http://opendatacommunities.org/doc/district-council/wyre,30/05/2023,Resources,Support Services,135B,VODAFONE LIMITED,03/05/2023,RS148900,45.00,0.00,Mobile Phone Monthly Charges,Mobile Devices
Wyre Council,http://opendatacommunities.org/doc/district-council/wyre,30/05/2023,Resources,Support Services,135B,VODAFONE LIMITED,03/05/2023,RS148900,317.00,0.00,Mobile Phone Monthly Charges,Mobile Devices
Wyre Council,http://opendatacommunities.org/doc/district-council/wyre,30/05/2023,Resources,Support Services,135B,VODAFONE LIMITED,03/05/2023,RS148900,24.00,0.00,Mobile Phone Monthly Charges,Mobile Devices
Wyre Council,http://opendatacommunities.org/doc/district-council/wyre,30/05/2023,Resources,Support Services,135B,VODAFONE LIMITED,03/05/2023,RS148900,20.00,0.00,Mobile Phone Monthly Charges,Mobile Devices
Wyre Council,http://opendatacommunities.org/doc/district-council/wyre,30/05/2023,Resources,Central Services to the Public,131C,VODAFONE LIMITED,03/05/2023,RS148900,24.00,0.00,Mobile Phone Monthly Charges,Mobile Devices
Wyre Council,http://opendatacommunities.org/doc/district-council/wyre,30/05/2023,Resources,Support Services,135B,VODAFONE LIMITED,03/05/2023,RS148900,67.87,0.00,Mobile Phone Monthly Charges,Mobile Devices
Wyre Council,http://opendatacommunities.org/doc/district-council/wyre,30/05/2023,Resources,Support Services,135B,VODAFONE LIMITED,03/05/2023,RS148900,36.00,0.00,Mobile Phone Monthly Charges,Mobile Devices
Wyre Council,http://opendatacommunities.org/doc/district-council/wyre,30/05/2023,Resources,Support Services,135B,VODAFONE LIMITED,03/05/2023,RS148900,89.68,0.00,Mobile Phone Monthly Charges,Mobile Devices
Wyre Council,http://opendatacommunities.org/doc/district-council/wyre,30/05/2023,Resources,Central Services to the Public,131C,VODAFONE LIMITED,03/05/2023,RS148900,12.00,0.00,Mobile Phone Monthly Charges,Mobile Devices
Wyre Council,http://opendatacommunities.org/doc/district-council/wyre,30/05/2023,Resources,Environmental Services,132B,VODAFONE LIMITED,03/05/2023,RS148900,84.00,0.00,Mobile Phone Monthly Charges,Mobile Devices
Wyre Council,http://opendatacommunities.org/doc/district-council/wyre,30/05/2023,Resources,Support Services,135B,VODAFONE LIMITED,03/05/2023,RS148900,28.00,0.00,Mobile Phone Monthly Charges,Mobile Devices
Wyre Council,http://opendatacommunities.org/doc/district-council/wyre,30/05/2023,Resources,Corporate and Democratic Core,131A,VODAFONE LIMITED,03/05/2023,RS148900,24.00,0.00,Mobile Phone Monthly Charges,Mobile Devices
Wyre Council,http://opendatacommunities.org/doc/district-council/wyre,30/05/2023,Resources,Support Services,135B,VODAFONE LIMITED,03/05/2023,RS148900,193.00,0.00,Mobile Phone Monthly Charges,Mobile Devices
Wyre Council,http://opendatacommunities.org/doc/district-council/wyre,30/05/2023,Resources,Cultural and Related Services,132A,VODAFONE LIMITED,03/05/2023,RS148900,12.00,0.00,Mobile Phone Monthly Charges,Mobile Devices
Wyre Council,http://opendatacommunities.org/doc/district-council/wyre,30/05/2023,Resources,Support Services,135B,VODAFONE LIMITED,03/05/2023,RS148900,12.00,0.00,Mobile Phone Monthly Charges,Mobile Devices
Wyre Council,http://opendatacommunities.org/doc/district-council/wyre,30/05/2023,Resources,Cultural and Related Services,132A,VODAFONE LIMITED,03/05/2023,RS148900,12.00,0.00,Mobile Phone Monthly Charges,Mobile Devices
Wyre Council,http://opendatacommunities.org/doc/district-council/wyre,30/05/2023,Resources,Cultural and Related Services,132A,VODAFONE LIMITED,03/05/2023,RS148900,24.00,0.00,Mobile Phone Monthly Charges,Mobile Devices
Wyre Council,http://opendatacommunities.org/doc/district-council/wyre,30/05/2023,Resources,Support Services,135B,VODAFONE LIMITED,03/05/2023,RS148900,12.00,0.00,Mobile Phone Monthly Charges,Mobile Devices
Wyre Council,http://opendatacommunities.org/doc/district-council/wyre,30/05/2023,Resources,Support Services,135B,VODAFONE LIMITED,03/05/2023,RS148900,156.00,0.00,Mobile Phone Monthly Charges,Mobile Devices
Wyre Council,http://opendatacommunities.org/doc/district-council/wyre,30/05/2023,Resources,Support Services,135B,VODAFONE LIMITED,03/05/2023,RS148900,176.15,0.00,Mobile Phone Monthly Charges,Mobile Devices
Wyre Council,http://opendatacommunities.org/doc/district-council/wyre,30/05/2023,Resources,Support Services,135B,VODAFONE LIMITED,03/05/2023,RS148900,24.01,0.00,Mobile Phone Monthly Charges,Mobile Devices
Wyre Council,http://opendatacommunities.org/doc/district-council/wyre,30/05/2023,People and Places,Highways,133B,Andrew Signs LTD,26/05/2023,PE149803,380.00,0.00,various signs from INV-1454,Naming of Streets
Wyre Council,http://opendatacommunities.org/doc/district-council/wyre,30/05/2023,People and Places,Highways,133B,Andrew Signs LTD,26/05/2023,PE149798,952.50,0.00,payment of invoice INV-1434,Naming of Streets
Wyre Council,http://opendatacommunities.org/doc/district-council/wyre,30/05/2023,Resources,Housing General Fund,134A,New Progress Housing Association,09/05/2023,RS149345,4851.02,0.00,Annual Charge - Homeless Service 2023-2024,New Progress - Out of Hours Service
Wyre Council,http://opendatacommunities.org/doc/district-council/wyre,30/05/2023,Finance,Current Assets,130B,,23/05/2023,WPST00107284,21117.77,0.00,NDR refunds,NNDR Refunds
Wyre Council,http://opendatacommunities.org/doc/district-council/wyre,30/05/2023,Finance,Current Assets,130B,,10/05/2023,WPST00105781,2021.97,0.00,NDR refund,NNDR Refunds
Wyre Council,http://opendatacommunities.org/doc/district-council/wyre,30/05/2023,Finance,Current Assets,130B,,31/05/2023,WPST00108030,1297.50,0.00,NDR refunds 26/05/23,NNDR Refunds
Wyre Council,http://opendatacommunities.org/doc/district-council/wyre,30/05/2023,Finance,Current Assets,130B,,03/05/2023,WPST00104886,3761.30,0.00,NDR Refund 28/04/23,NNDR Refunds
Wyre Council,http://opendatacommunities.org/doc/district-council/wyre,30/05/2023,Finance,Collection Fund Revenue Accts,138A,DEPARTMENT FOR COMMUNITIES AND LOCAL GOVERNMENT,04/05/2023,WPST00105311,1150592.00,0.00,DLUHC - Revenue Support Grant 2/5/23,NNDR Tariff to Government
Wyre Council,http://opendatacommunities.org/doc/district-council/wyre,30/05/2023,Finance,Collection Fund Revenue Accts,138A,DEPARTMENT FOR COMMUNITIES AND LOCAL GOVERNMENT,24/05/2023,WPST00107446,1150593.00,0.00,DLUHC - Bus Rates Central Share 22/05/23,NNDR Tariff to Government
Wyre Council,http://opendatacommunities.org/doc/district-council/wyre,30/05/2023,Finance,General Fund below the line,136A,DEPARTMENT FOR COMMUNITIES AND LOCAL GOVERNMENT,24/05/2023,WPST00107410,724321.00,0.00,22/05/2023R V B C GENERALLBRP0008,NNDR Tariff to Government
Wyre Council,http://opendatacommunities.org/doc/district-council/wyre,30/05/2023,Finance,Collection Fund Revenue Accts,138A,DEPARTMENT FOR COMMUNITIES AND LOCAL GOVERNMENT,05/05/2023,WPST00105433,866409.00,0.00,DLUHC - Bus Rates Cent Share 20/09/22,NNDR Tariff to Government
Wyre Council,http://opendatacommunities.org/doc/district-council/wyre,30/05/2023,Finance,General Fund below the line,136A,DEPARTMENT FOR COMMUNITIES AND LOCAL GOVERNMENT,04/05/2023,WPST00105308,724321.00,0.00,RVBC General 02/05/2023,NNDR Tariff to Government
Wyre Council,http://opendatacommunities.org/doc/district-council/wyre,30/05/2023,Resources,Support Services,135B,People Asset Management LTD,11/05/2023,RS149340,675.68,0.00,PAYG April 23,Occupational Health Fees
Wyre Council,http://opendatacommunities.org/doc/district-council/wyre,30/05/2023,Resources,Support Services,135B,People Asset Management LTD,11/05/2023,RS149340,199.40,0.00,PAYG April 23,Occupational Health Fees
Wyre Council,http://opendatacommunities.org/doc/district-council/wyre,30/05/2023,Resources,Support Services,135B,Karen Openshaw Consultancy,03/05/2023,RS149262,520.00,0.00,To the provision of the Listening Service and Mindfulness practice on behalf of Wyre Borough Council April 2023 to end March 2024,Occupational Health Fees
Wyre Council,http://opendatacommunities.org/doc/district-council/wyre,30/05/2023,People and Places,Parking Services,133F,Park Now Limited,16/05/2023,PE148784,554.71,0.00,RingGo fees 1 April 2022 - 31 March 2023 - service charges - text summary charges - text reminder charges - card processing fees,Other Parking Fees and Commission
Wyre Council,http://opendatacommunities.org/doc/district-council/wyre,30/05/2023,People and Places,Parking Services,133F,Park Now Limited,16/05/2023,PE149536,613.71,0.00,RingGo Fees for 1 April 2023 - 31 March 2024- service charges- text summary charges- text reminder charges- card processing fess,Other Parking Fees and Commission
Wyre Council,http://opendatacommunities.org/doc/district-council/wyre,30/05/2023,People and Places,Cultural and Related Services,132A,HUWS GRAY LTD,18/05/2023,PE149364,343.34,0.00,fencing for the caf�,"Paths, Roads and Car Park Mtnce Annual"
Wyre Council,http://opendatacommunities.org/doc/district-council/wyre,30/05/2023,People and Places,Support Services,135B,Allstar Business Solutions LTD,25/05/2023,PE149253,96.96,0.00,Fuel to 30/04/23,Petrol
Wyre Council,http://opendatacommunities.org/doc/district-council/wyre,30/05/2023,People and Places,Support Services,135B,Allstar Business Solutions LTD,25/05/2023,PE149253,28.15,0.00,Fuel to 30/04/23,Petrol
Wyre Council,http://opendatacommunities.org/doc/district-council/wyre,30/05/2023,People and Places,Support Services,135B,Allstar Business Solutions LTD,02/05/2023,PE148907,100.97,0.00,Fuel Charges,Petrol
Wyre Council,http://opendatacommunities.org/doc/district-council/wyre,30/05/2023,People and Places,Support Services,135B,Allstar Business Solutions LTD,25/05/2023,PE149253,185.93,0.00,Fuel to 30/04/23,Petrol
Wyre Council,http://opendatacommunities.org/doc/district-council/wyre,30/05/2023,People and Places,Support Services,135B,Allstar Business Solutions LTD,25/05/2023,PE148907,117.10,0.00,Fuel Charges,Petrol
Wyre Council,http://opendatacommunities.org/doc/district-council/wyre,30/05/2023,People and Places,Support Services,135B,Allstar Business Solutions LTD,25/05/2023,PE148907,105.59,0.00,Fuel Charges,Petrol
Wyre Council,http://opendatacommunities.org/doc/district-council/wyre,30/05/2023,People and Places,Support Services,135B,Allstar Business Solutions LTD,25/05/2023,PE148907,68.77,0.00,Fuel Charges,Petrol
Wyre Council,http://opendatacommunities.org/doc/district-council/wyre,30/05/2023,People and Places,Support Services,135B,Allstar Business Solutions LTD,25/05/2023,PE148907,67.41,0.00,Fuel Charges,Petrol
Wyre Council,http://opendatacommunities.org/doc/district-council/wyre,30/05/2023,People and Places,Cultural and Related Services,132A,Allstar Business Solutions LTD,10/05/2023,PE149253,97.86,0.00,Fuel to 30/04/23,Petrol
Wyre Council,http://opendatacommunities.org/doc/district-council/wyre,30/05/2023,People and Places,Support Services,135B,Allstar Business Solutions LTD,10/05/2023,PE149253,67.59,0.00,Fuel to 30/04/23,Petrol
Wyre Council,http://opendatacommunities.org/doc/district-council/wyre,30/05/2023,People and Places,Support Services,135B,Allstar Business Solutions LTD,31/05/2023,PE149615,82.68,0.00,Fuel to 12/05/23,Petrol
Wyre Council,http://opendatacommunities.org/doc/district-council/wyre,30/05/2023,People and Places,Support Services,135B,Allstar Business Solutions LTD,31/05/2023,PE149615,48.19,0.00,Fuel to 12/05/23,Petrol
Wyre Council,http://opendatacommunities.org/doc/district-council/wyre,30/05/2023,People and Places,Support Services,135B,Allstar Business Solutions LTD,31/05/2023,PE149615,54.55,0.00,Fuel to 12/05/23,Petrol
Wyre Council,http://opendatacommunities.org/doc/district-council/wyre,30/05/2023,People and Places,Support Services,135B,Allstar Business Solutions LTD,31/05/2023,PE149615,108.73,0.00,Fuel to 12/05/23,Petrol
Wyre Council,http://opendatacommunities.org/doc/district-council/wyre,30/05/2023,People and Places,Support Services,135B,Allstar Business Solutions LTD,31/05/2023,PE149615,78.90,0.00,Fuel to 12/05/23,Petrol
Wyre Council,http://opendatacommunities.org/doc/district-council/wyre,30/05/2023,People and Places,Cultural and Related Services,132A,EAS Electrical Mechanical,12/05/2023,PE149430,1154.52,0.00,Marsh Mill: Fixed Electrical Test: Repair fault to lights and rewire,Planned Building Maintenance
Wyre Council,http://opendatacommunities.org/doc/district-council/wyre,30/05/2023,People and Places,Planning and Development Servs,132C,M D Security,04/05/2023,PE148794,490.00,0.00,Copse Rd Transport Depot: Maintenance & monitoring of security alarm system for 1 year,Planned Building Maintenance
Wyre Council,http://opendatacommunities.org/doc/district-council/wyre,30/05/2023,People and Places,Support Services,135B,M D Security,04/05/2023,PE149034,60.00,0.00,Civic Centre: carried out emergency light test for 04/23,Planned Building Maintenance
Wyre Council,http://opendatacommunities.org/doc/district-council/wyre,30/05/2023,Resources,Planning and Development Servs,132C,Academy Services (Lift Division) LTD,16/05/2023,RS148815,102.48,0.00,Copse Rd Depot: 44419 11/04/23 Service Report - one platform lift basic lift maintenance contract start date 01/04/23 2 visits per annum,Planned Building Maintenance
Wyre Council,http://opendatacommunities.org/doc/district-council/wyre,30/05/2023,Resources,Support Services,135B,Academy Services (Lift Division) LTD,09/05/2023,RS148814,102.48,0.00,civic Centre: 44417 11/04/23 service report: One passenger lift basig mainenance contract 01/04/23 annual - 2 visits per annum,Planned Building Maintenance
Wyre Council,http://opendatacommunities.org/doc/district-council/wyre,30/05/2023,People and Places,Cultural and Related Services,132A,COWLEY FIRE,15/05/2023,PE149368,32.60,0.00,Kiosk 14 Beach Kiosk: Service fire equipment,Planned Building Maintenance
Wyre Council,http://opendatacommunities.org/doc/district-council/wyre,30/05/2023,People and Places,Cultural and Related Services,132A,COWLEY FIRE,16/05/2023,PE149478,52.21,0.00,"The Pavilion Building, Memorial Park, Fleetwood:  Service fire equipment",Planned Building Maintenance
Wyre Council,http://opendatacommunities.org/doc/district-council/wyre,30/05/2023,People and Places,Cultural and Related Services,132A,COWLEY FIRE,16/05/2023,PE149479,43.06,0.00,Mount Beach Kiosk 7: Service fire equipment,Planned Building Maintenance
Wyre Council,http://opendatacommunities.org/doc/district-council/wyre,30/05/2023,People and Places,Cultural and Related Services,132A,COWLEY FIRE,12/05/2023,PE148791,109.25,0.00,Gardener`s mess room: Service fure equipment,Planned Building Maintenance
Wyre Council,http://opendatacommunities.org/doc/district-council/wyre,30/05/2023,People and Places,Support Services,135B,John Carney,10/05/2023,PE149329,160.00,0.00,"Civic Centre Rooms 130-131 - Carry out works to gutters, valleys and down pipes, making sure all debris cleared out so all rain water runs freely",Planned Building Maintenance
Wyre Council,http://opendatacommunities.org/doc/district-council/wyre,30/05/2023,Finance,Central Services to the Public,131C,SANTANDER,09/05/2023,WPST00105535,785.66,0.00,SAN UK ACC RECEIVE,Plastic Cards Processing Fees
Wyre Council,http://opendatacommunities.org/doc/district-council/wyre,30/05/2023,People and Places,Support Services,135B,Kompan  LTD,09/05/2023,PE149346,2391.71,0.00,As per quotation SQ279125 Tithebarn Park Roundabout Repair,Playground Equipment
Wyre Council,http://opendatacommunities.org/doc/district-council/wyre,30/05/2023,People and Places,Support Services,135B,HUWS GRAY LTD,17/05/2023,PE149363,147.82,0.00,payment of invoice IE299071- goods for keith,Playground Equipment
Wyre Council,http://opendatacommunities.org/doc/district-council/wyre,30/05/2023,Resources,Central Services to the Public,131C,Critiqom LTD,10/05/2023,RS149372,1710.63,0.00,Daily Bills,Postage
Wyre Council,http://opendatacommunities.org/doc/district-council/wyre,30/05/2023,Resources,Central Services to the Public,131C,Critiqom LTD,10/05/2023,RS149371,416.38,0.00,Daily Bills,Postage
Wyre Council,http://opendatacommunities.org/doc/district-council/wyre,30/05/2023,Resources,Central Services to the Public,131C,Critiqom LTD,10/05/2023,RS149371,8.50,0.00,Daily Bills - Energy Surcharge,Postage
Wyre Council,http://opendatacommunities.org/doc/district-council/wyre,30/05/2023,Resources,Housing General Fund,134A,Critiqom LTD,10/05/2023,RS149371,189.00,0.00,Benefit Notifications,Postage
Wyre Council,http://opendatacommunities.org/doc/district-council/wyre,30/05/2023,Resources,Housing General Fund,134A,Critiqom LTD,10/05/2023,RS149371,3.86,0.00,Benefit Notifications - Energy Surcharge,Postage
Wyre Council,http://opendatacommunities.org/doc/district-council/wyre,30/05/2023,Resources,Housing General Fund,134A,Critiqom LTD,10/05/2023,RS149372,631.67,0.00,Benefit Notifications,Postage
Wyre Council,http://opendatacommunities.org/doc/district-council/wyre,30/05/2023,Resources,Central Services to the Public,131C,Critiqom LTD,10/05/2023,RS149371,273.14,0.00,IQ post - Electoral,Postage
Wyre Council,http://opendatacommunities.org/doc/district-council/wyre,30/05/2023,Resources,Central Services to the Public,131C,Critiqom LTD,10/05/2023,RS149371,5.57,0.00,IQ post - Electoral - Energy Surcharge,Postage
Wyre Council,http://opendatacommunities.org/doc/district-council/wyre,30/05/2023,Resources,Support Services,135B,Critiqom LTD,10/05/2023,RS149371,798.78,0.00,IQ post - CC,Postage
Wyre Council,http://opendatacommunities.org/doc/district-council/wyre,30/05/2023,Resources,Support Services,135B,Critiqom LTD,10/05/2023,RS149371,16.30,0.00,IQ post - CC - Energy Surcharge,Postage
Wyre Council,http://opendatacommunities.org/doc/district-council/wyre,30/05/2023,Resources,Support Services,135B,Critiqom LTD,10/05/2023,RS149371,312.26,0.00,IQ Post - Planning,Postage
Wyre Council,http://opendatacommunities.org/doc/district-council/wyre,30/05/2023,Resources,Support Services,135B,Critiqom LTD,10/05/2023,RS149371,6.37,0.00,IQ Post - Planning - Energy Surcharge,Postage
Wyre Council,http://opendatacommunities.org/doc/district-council/wyre,30/05/2023,People and Places,Support Services,135B,Amazon Business,24/05/2023,PE149678,33.79,0.00,"delivery of 25 x1st class postage stamps with barcode , for the use of the Environmental Enforcement teams",Postage
Wyre Council,http://opendatacommunities.org/doc/district-council/wyre,30/05/2023,Resources,Corporate and Democratic Core,131A,Thomas Fattorini LTD,02/05/2023,RS148387,1905.71,0.00,Mayoral Year 2022/23 - 4 Mayoral pendants including engraving and ribbons,Presentations
Wyre Council,http://opendatacommunities.org/doc/district-council/wyre,30/05/2023,Finance,Housing General Fund,134A,,10/05/2023,WPST00105776,9100.00,0.00,HB Payments - Ukr,Private Contractors
Wyre Council,http://opendatacommunities.org/doc/district-council/wyre,30/05/2023,Resources,Housing General Fund,134A,Mapleleaf Letting Centre LTD,30/05/2023,RS149820,700.00,0.00,"Refugee support 3 hapton street, Thornton. Rent for period 23rd april 2023 to 22nd may 2023",Private Contractors
Wyre Council,http://opendatacommunities.org/doc/district-council/wyre,30/05/2023,Resources,Housing General Fund,134A,Mapleleaf Letting Centre LTD,30/05/2023,RS149821,700.00,0.00,Refugee support 3 hapton street. Rent for period 23rd may to 22nd june 2023,Private Contractors
Wyre Council,http://opendatacommunities.org/doc/district-council/wyre,30/05/2023,People and Places,Parking Services,133F,NSL Services Group,24/05/2023,PE149710,4508.00,0.00,Provide enforcement officer for Wyre Council car parks - 1 April 2023 - 31 March 2024,Private Contractors
Wyre Council,http://opendatacommunities.org/doc/district-council/wyre,30/05/2023,People and Places,Cultural and Related Services,132A,SILVERWOOD FRIED PIZZA,24/05/2023,PE149732,501.50,0.00,To supply 59 Pie & Mash to Marine Hall 22/5/23,Private Contractors
Wyre Council,http://opendatacommunities.org/doc/district-council/wyre,30/05/2023,People and Places,Parking Services,133F,CHIPSIDE LTD,17/05/2023,PE149470,55.85,0.00,Wyre Council bank transaction fees 1 April 2023 - 31 March 2024,Private Contractors
Wyre Council,http://opendatacommunities.org/doc/district-council/wyre,30/05/2023,People and Places,Parking Services,133F,CHIPSIDE LTD,17/05/2023,PE149622,822.78,0.00,provision of notice processing services 1 April 2023 - 31 March 2024; including postage,Private Contractors
Wyre Council,http://opendatacommunities.org/doc/district-council/wyre,30/05/2023,People and Places,Cultural and Related Services,132A,Melrose Development Services Ltd,12/05/2023,PE148549,1428.25,0.00,Marsh Mill Service Charge for period 1 April 2023 to 30 June 2023,Private Contractors
Wyre Council,http://opendatacommunities.org/doc/district-council/wyre,30/05/2023,People and Places,Cultural and Related Services,132A,Melrose Development Services Ltd,12/05/2023,PE148363,1428.25,0.00,Marsh Mill Service Charge for period  January 2023 to 31 March 2023,Private Contractors
Wyre Council,http://opendatacommunities.org/doc/district-council/wyre,30/05/2023,People and Places,Public Transport,133G,GARRY CARR BUILDING SERVICES LTD,23/05/2023,PE149542,4320.00,0.00,*** Confirmation Order***Carry out full cleaning of 144 bus shelters as discussed with Maria Leeder,Private Contractors
Wyre Council,http://opendatacommunities.org/doc/district-council/wyre,30/05/2023,People and Places,Environmental Services,132B,SHARD SURFACING LTD,26/05/2023,PE149804,2845.44,0.00,Emergency repairs to Fleetwood Boating lake as per ref: 2023.48Labour 38%,Private Contractors
Wyre Council,http://opendatacommunities.org/doc/district-council/wyre,30/05/2023,People and Places,Environmental Services,132B,SHARD SURFACING LTD,26/05/2023,PE149804,4642.56,0.00,Emergency repairs to Fleetwood Boating lake as per ref: 2023.48 Materials 62%,Private Contractors
Wyre Council,http://opendatacommunities.org/doc/district-council/wyre,30/05/2023,People and Places,Planning and Development Servs,132C,Fleetwood Festival Of Transport CIC,25/05/2023,PE149763,9000.00,0.00,E6 Tram Sunday Spare Parts,Project Costs
Wyre Council,http://opendatacommunities.org/doc/district-council/wyre,30/05/2023,People and Places,Cultural and Related Services,132A,Fleetwood Town Community Trust,15/05/2023,PE149512,3086.00,0.00,fit for the Future delivery of sessions across Wyre 2023 by FTFCCT,Project Costs
Wyre Council,http://opendatacommunities.org/doc/district-council/wyre,30/05/2023,People and Places,Planning and Development Servs,132C,STANTEC UK LTD,31/05/2023,PE149885,5000.00,0.00,Project: Cleveleys Transport Study (UKSPF: E1: Improvements to town centres & high streets) Consultancy Services: Business case development; Regeneration and economic development services.,Project Costs
Wyre Council,http://opendatacommunities.org/doc/district-council/wyre,30/05/2023,People and Places,Cultural and Related Services,132A,Key Engineering & Hygiene Supplies LTD,10/05/2023,PE149365,6.13,0.00,supply as per quotation 18768Hi-vis vest @ 6.13Volunteer,Promotions - General
Wyre Council,http://opendatacommunities.org/doc/district-council/wyre,30/05/2023,People and Places,Cultural and Related Services,132A,Preston City Council,02/05/2023,PE149196,103.66,0.00,Garstang Library - tourist info point - pull up banners x 2 kinds FA Emma Lyons,Promotions - General
Wyre Council,http://opendatacommunities.org/doc/district-council/wyre,30/05/2023,People and Places,Cultural and Related Services,132A,Preston City Council,02/05/2023,PE149196,109.92,0.00,"HAF Vouchers - Winter 22 A4 1pp x 1242 copies, each A4 individually numbered with a uniquie code supplied flat A4, collated in order of PDF, delivery to Civic Centre FAO C Southerm",Promotions - General
Wyre Council,http://opendatacommunities.org/doc/district-council/wyre,30/05/2023,Resources,Cultural and Related Services,132A,Preston City Council,04/05/2023,RS148278,45.00,0.00,1000 x Volunteering job centre leaflets A5 1pp Delivery to Civic Centre FAO Simon Swindells,Promotions - General
Wyre Council,http://opendatacommunities.org/doc/district-council/wyre,30/05/2023,Resources,Environmental Services,132B,Critiqom LTD,10/05/2023,RS149371,670.25,0.00,Green Waste Reminder Letters,Promotions - General
Wyre Council,http://opendatacommunities.org/doc/district-council/wyre,30/05/2023,Resources,Environmental Services,132B,Critiqom LTD,10/05/2023,RS149371,13.68,0.00,Green Waste Reminder Letters - Energy Surcharge,Promotions - General
Wyre Council,http://opendatacommunities.org/doc/district-council/wyre,30/05/2023,People and Places,Planning and Development Servs,132C,ABILITY PROMOTIONS LTD,25/05/2023,PE149766,1195.00,0.00,Living with Disability Nov 22 half page landscape advert,Promotions - General
Wyre Council,http://opendatacommunities.org/doc/district-council/wyre,30/05/2023,People and Places,Cultural and Related Services,132A,Key Engineering & Hygiene Supplies LTD,04/05/2023,PE149291,466.48,0.00,50 x GWF sweatshirts,Protective Clothing
Wyre Council,http://opendatacommunities.org/doc/district-council/wyre,30/05/2023,People and Places,Support Services,135B,Key Engineering & Hygiene Supplies LTD,16/05/2023,PE149553,64.26,0.00,Supply and deliver as per quotation 18937 3/5/23,Protective Clothing
Wyre Council,http://opendatacommunities.org/doc/district-council/wyre,30/05/2023,People and Places,Support Services,135B,Key Engineering & Hygiene Supplies LTD,26/05/2023,PE149476,91.67,0.00,SUPPLY AND DELIVER AS PER QUOTE 18874 PLUS ADDITIONAL EXTRAS BELOW  CT01-Y-LEO-34S - BIDEFORD ISO 20471 CL1 CARGO TROUSER HI-VIS YELLOW 34SHORT @ 18.27 EACH X 3 PAIRS = 54.81  BSSSH25SYSMALL - 1 HOODY PULL ON SWEATSHIRT SAT YELLOW SMALL WITH WYRE EMB LO,Protective Clothing
Wyre Council,http://opendatacommunities.org/doc/district-council/wyre,30/05/2023,People and Places,Environmental Services,132B,Key Engineering & Hygiene Supplies LTD,26/05/2023,PE149476,120.13,0.00,SUPPLY AND DELIVER AS PER QUOTE 18874 PLUS ADDITIONAL EXTRAS BELOW  CT01-Y-LEO-34S - BIDEFORD ISO 20471 CL1 CARGO TROUSER HI-VIS YELLOW 34SHORT @ 18.27 EACH X 3 PAIRS = 54.81  BSSSH25SYSMALL - 1 HOODY PULL ON SWEATSHIRT SAT YELLOW SMALL WITH WYRE EMB LO,Protective Clothing
Wyre Council,http://opendatacommunities.org/doc/district-council/wyre,30/05/2023,People and Places,Environmental Services,132B,Key Engineering & Hygiene Supplies LTD,26/05/2023,PE149476,170.04,0.00,SUPPLY AND DELIVER AS PER QUOTE 18874 PLUS ADDITIONAL EXTRAS BELOW  CT01-Y-LEO-34S - BIDEFORD ISO 20471 CL1 CARGO TROUSER HI-VIS YELLOW 34SHORT @ 18.27 EACH X 3 PAIRS = 54.81  BSSSH25SYSMALL - 1 HOODY PULL ON SWEATSHIRT SAT YELLOW SMALL WITH WYRE EMB LO,Protective Clothing
Wyre Council,http://opendatacommunities.org/doc/district-council/wyre,30/05/2023,People and Places,Support Services,135B,Key Engineering & Hygiene Supplies LTD,26/05/2023,PE149476,64.77,0.00,SUPPLY AND DELIVER AS PER QUOTE 18874 PLUS ADDITIONAL EXTRAS BELOW  CT01-Y-LEO-34S - BIDEFORD ISO 20471 CL1 CARGO TROUSER HI-VIS YELLOW 34SHORT @ 18.27 EACH X 3 PAIRS = 54.81  BSSSH25SYSMALL - 1 HOODY PULL ON SWEATSHIRT SAT YELLOW SMALL WITH WYRE EMB LO,Protective Clothing
Wyre Council,http://opendatacommunities.org/doc/district-council/wyre,30/05/2023,People and Places,Environmental Services,132B,Key Engineering & Hygiene Supplies LTD,31/05/2023,PE149739,241.50,0.00,10 boxes of Clear Goliath bags,"Provision of Bins, Boxes and Sacks"
Wyre Council,http://opendatacommunities.org/doc/district-council/wyre,30/05/2023,People and Places,Environmental Services,132B,Key Engineering & Hygiene Supplies LTD,15/05/2023,PE149533,883.00,0.00,"Supply blue sacks as per quotation 18975 @ price quoted 17.66 per box Delivery to Wyre Council, Copse Road, Fleetwood, FY7 6RP.","Provision of Bins, Boxes and Sacks"
Wyre Council,http://opendatacommunities.org/doc/district-council/wyre,30/05/2023,People and Places,Environmental Services,132B,Veolia ES (UK) LTD,23/05/2023,PE149706,4977.81,0.00,Bin Provision,"Provision of Bins, Boxes and Sacks"
Wyre Council,http://opendatacommunities.org/doc/district-council/wyre,30/05/2023,People and Places,Support Services,135B,Preston City Council,02/05/2023,PE149196,78.58,0.00,Older Persons Festival Fayre printing 20 x A1 1pp (4) 1000 x A5 1pp (45) 1 x bus stop six sheet poster 29.58,Public Relations
Wyre Council,http://opendatacommunities.org/doc/district-council/wyre,30/05/2023,Resources,Support Services,135B,Nisbetts Next Day Catering Equipment,04/05/2023,RS149297,149.96,0.00,BOLERO STEEL BANQUET CHAIRS WITH NEUTRAL CLOTH (PACK OF 4),Purchase Furniture
Wyre Council,http://opendatacommunities.org/doc/district-council/wyre,30/05/2023,Resources,Support Services,135B,Nisbetts Next Day Catering Equipment,16/05/2023,RS149613,2379.32,0.00,Bolero Steel Banqueting Chair with neutral loth (pack 4 as per quotation number 51346846Quote was for 18 but I ordered 1 pack to check quality,Purchase Furniture
Wyre Council,http://opendatacommunities.org/doc/district-council/wyre,30/05/2023,Resources,Support Services,135B,Amazon Business,12/05/2023,RS149391,399.84,0.00,FLEXISPOT Standing Desk Anti-Fatigue Mat Comfort Kitchen Floor Mat Flat Kitchen mats Black.,Purchase Furniture
Wyre Council,http://opendatacommunities.org/doc/district-council/wyre,30/05/2023,Resources,Support Services,135B,Amazon Business,31/05/2023,RS149717,99.96,0.00,"LED Wood Swing Arm Desk Lamp,White Adjustable Reading Lamp, Designer Table Lamps, Classic Study Lamp, Work Lamp, Office Lamp, Bedside Nightstand Lamp with E27 Bulb Eye Protection.",Purchase Furniture
Wyre Council,http://opendatacommunities.org/doc/district-council/wyre,30/05/2023,Resources,Support Services,135B,Amazon Business,31/05/2023,RS149716,49.98,0.00,"LED Wood Swing Arm Desk Lamp,White Adjustable Reading Lamp, Designer Table Lamps, Classic Study Lamp, Work Lamp, Office Lamp, Bedside Nightstand Lamp with E27 Bulb Eye Protection.",Purchase Furniture
Wyre Council,http://opendatacommunities.org/doc/district-council/wyre,30/05/2023,Resources,Support Services,135B,Amazon Business,31/05/2023,RS149713,99.96,0.00,"LED Wood Swing Arm Desk Lamp,White Adjustable Reading Lamp, Designer Table Lamps, Classic Study Lamp, Work Lamp, Office Lamp, Bedside Nightstand Lamp with E27 Bulb Eye Protection.",Purchase Furniture
Wyre Council,http://opendatacommunities.org/doc/district-council/wyre,30/05/2023,Resources,Support Services,135B,Amazon Business,31/05/2023,RS149715,99.96,0.00,"LED Wood Swing Arm Desk Lamp,White Adjustable Reading Lamp, Designer Table Lamps, Classic Study Lamp, Work Lamp, Office Lamp, Bedside Nightstand Lamp with E27 Bulb Eye Protection.",Purchase Furniture
Wyre Council,http://opendatacommunities.org/doc/district-council/wyre,30/05/2023,Resources,Support Services,135B,WILDY AND SONS LTD,09/05/2023,RS149241,1625.99,0.00,Oke`s Magisterial Formulist Looseleaf Annualised Subscription: St John Pilkington; Subscription for the period 1 Aug 2023 to 31 2024,Purchase of Publications
Wyre Council,http://opendatacommunities.org/doc/district-council/wyre,30/05/2023,People and Places,Central Services to the Public,131C,Andrew Signs LTD,18/05/2023,PE149632,645.00,0.00,30 polling station signs and 30 signs with arrows as requested by ken white,Purchase of Tools or Equipment
Wyre Council,http://opendatacommunities.org/doc/district-council/wyre,30/05/2023,People and Places,Support Services,135B,Andrew Signs LTD,26/05/2023,PE149798,540.40,0.00,payment of invoice INV-1434,Purchase of Tools or Equipment
Wyre Council,http://opendatacommunities.org/doc/district-council/wyre,30/05/2023,Resources,Support Services,135B,Preston City Council,04/05/2023,RS148278,324.00,0.00,"Store Wheelie Bins inside property - stickers90x210 1pp full colour vinyl stickerssupplied in rolls of 250Delivery to Civic Centre, FAO CAARAN CLOHERTY-JONES",Purchase of Tools or Equipment
Wyre Council,http://opendatacommunities.org/doc/district-council/wyre,30/05/2023,People and Places,Cultural and Related Services,132A,Signs Express (Central Lancashire),16/05/2023,PE149541,180.00,0.00,Re-installation of screen at Garstang library,Purchase of Tools or Equipment
Wyre Council,http://opendatacommunities.org/doc/district-council/wyre,30/05/2023,Resources,Support Services,135B,Option Hygiene LTD,23/05/2023,RS149692,813.14,0.00,NILCO 1218E UPRIGHT VACUUM CLEANER,Purchase of Tools or Equipment
Wyre Council,http://opendatacommunities.org/doc/district-council/wyre,30/05/2023,Resources,Support Services,135B,TMR Executive Agency LTD,03/05/2023,RS149186,912.54,0.00,tmr MAINTENANCE CHARGE - FOLDER INSERTER 23/06/2023-22/06/2024,Purchase of Tools or Equipment
Wyre Council,http://opendatacommunities.org/doc/district-council/wyre,30/05/2023,Resources,Housing General Fund,134A,VODAFONE LIMITED,03/05/2023,RS148900,12.00,0.00,Mobile Phone Monthly Charges,Purchase of Tools or Equipment
Wyre Council,http://opendatacommunities.org/doc/district-council/wyre,30/05/2023,People and Places,Cultural and Related Services,132A,Amazon Business,30/05/2023,PE149861,14.16,0.00,Frame - tourism Heritage,Purchase of Tools or Equipment
Wyre Council,http://opendatacommunities.org/doc/district-council/wyre,30/05/2023,People and Places,Support Services,135B,Amazon Business,30/05/2023,PE149679,111.28,0.00,Norbar Torque Wrench dual scale push through ratchet,Purchase of Tools or Equipment
Wyre Council,http://opendatacommunities.org/doc/district-council/wyre,30/05/2023,People and Places,Planning and Development Servs,132C,Amazon Business,10/05/2023,PE149306,0.82,0.00,Spray packs @ 20.80brackets and cables @ 31.48Tools @ 52.89Toilet brushes @ 16.84,Purchase of Tools or Equipment
Wyre Council,http://opendatacommunities.org/doc/district-council/wyre,30/05/2023,People and Places,Cultural and Related Services,132A,Cardinal Allen Catholic High School,18/05/2023,PE149628,1831.00,0.00,Cardinal Allen 23/03/23 ticket sales,Refund of Ticket Sales to Ext Promoters
Wyre Council,http://opendatacommunities.org/doc/district-council/wyre,30/05/2023,People and Places,Cultural and Related Services,132A,Fleetwood Gym ABC,18/05/2023,PE149627,3770.00,0.00,Fleetwood Gym Boxing Event 22/04/23 ticket sales,Refund of Ticket Sales to Ext Promoters
Wyre Council,http://opendatacommunities.org/doc/district-council/wyre,30/05/2023,People and Places,Cultural and Related Services,132A,Dance Factory,24/05/2023,PE149729,2760.00,0.00,Dance Factory 10/12/13 May 2023 ticket sales,Refund of Ticket Sales to Ext Promoters
Wyre Council,http://opendatacommunities.org/doc/district-council/wyre,30/05/2023,People and Places,Planning and Development Servs,132C,Suez Recycling And Recovery UK LTD,16/05/2023,PE148564,1109.83,0.00,waste removal market suez,Refuse Collection
Wyre Council,http://opendatacommunities.org/doc/district-council/wyre,30/05/2023,People and Places,Planning and Development Servs,132C,Suez Recycling And Recovery UK LTD,05/05/2023,PE149278,1130.09,0.00,waste removal market suez,Refuse Collection
Wyre Council,http://opendatacommunities.org/doc/district-council/wyre,30/05/2023,People and Places,Environmental Services,132B,Veolia ES (UK) LTD,23/05/2023,PE149706,193845.40,0.00,Domestic Waste Management Collection Contract 2023/24,Refuse Collection Contract
Wyre Council,http://opendatacommunities.org/doc/district-council/wyre,30/05/2023,People and Places,Environmental Services,132B,Calico Enterprise,02/05/2023,PE148705,2433.30,0.00,Bulky Matters Contract Calico 2022/23,Refuse Collection Contract
Wyre Council,http://opendatacommunities.org/doc/district-council/wyre,30/05/2023,People and Places,Environmental Services,132B,Calico Enterprise,16/05/2023,PE149203,1751.98,0.00,Bulky Matters Contract Calico 2023/24,Refuse Collection Contract
Wyre Council,http://opendatacommunities.org/doc/district-council/wyre,30/05/2023,People and Places,Environmental Services,132B,Calico Enterprise,17/05/2023,PE149465,10462.89,0.00,Bulky Matters Contract Calico 2023/24,Refuse Collection Contract
Wyre Council,http://opendatacommunities.org/doc/district-council/wyre,30/05/2023,People and Places,Environmental Services,132B,Calico Enterprise,17/05/2023,PE149465,2250.00,0.00,Bulky Matters Contract Calico 2023/24,Refuse Collection Contract
Wyre Council,http://opendatacommunities.org/doc/district-council/wyre,30/05/2023,People and Places,Support Services,135B,Andrew Signs LTD,02/05/2023,PE149166,45.00,0.00,Changed names on door plates as requested,Responsive Building Maintenance
Wyre Council,http://opendatacommunities.org/doc/district-council/wyre,30/05/2023,People and Places,Support Services,135B,EAS Electrical Mechanical,11/05/2023,PE149425,7176.00,0.00,To carrying out repairs to exposed major water leak at The Civic Centre located within fire hydrant chamber and associated pipework linking this with the main incoming water pipe - remove all redundant pipework and dead legs as discussed on site. All work,Responsive Building Maintenance
Wyre Council,http://opendatacommunities.org/doc/district-council/wyre,30/05/2023,People and Places,Cultural and Related Services,132A,EAS Electrical Mechanical,10/05/2023,PE149336,72.00,0.00,Marine Boating Lake: Investigate electric meter and ascertain what it supplies.  findings sent to WBC via email,Responsive Building Maintenance
Wyre Council,http://opendatacommunities.org/doc/district-council/wyre,30/05/2023,People and Places,Cultural and Related Services,132A,EAS Electrical Mechanical,18/05/2023,PE149630,552.00,0.00,Marine Hall: hire of 2 x space heaters - hire continues,Responsive Building Maintenance
Wyre Council,http://opendatacommunities.org/doc/district-council/wyre,30/05/2023,People and Places,Planning and Development Servs,132C,EAS Electrical Mechanical,12/05/2023,PE149428,396.19,0.00,"Fleetwood Market: Isolate power to hand dryer, remove and install with new and test.  Remove toilet, replace faulty flush cone and replace broken fixing kit and test",Responsive Building Maintenance
Wyre Council,http://opendatacommunities.org/doc/district-council/wyre,30/05/2023,People and Places,Public Transport,133G,EAS Electrical Mechanical,12/05/2023,PE149429,292.77,0.00,Cleveleys Bus Station: replaced heater for new.  Replaced light fitting for new.  Test on completion,Responsive Building Maintenance
Wyre Council,http://opendatacommunities.org/doc/district-council/wyre,30/05/2023,People and Places,Cultural and Related Services,132A,EAS Electrical Mechanical,12/05/2023,PE149426,1362.93,0.00,Marine Hall: Replace heater in main office which was faulty,Responsive Building Maintenance
Wyre Council,http://opendatacommunities.org/doc/district-council/wyre,30/05/2023,People and Places,Cultural and Related Services,132A,EAS Electrical Mechanical,12/05/2023,PE149424,552.00,0.00,Marine Hall: Hire of 2 space heaters 01/03 to 31/03 - hire continues,Responsive Building Maintenance
Wyre Council,http://opendatacommunities.org/doc/district-council/wyre,30/05/2023,People and Places,Cultural and Related Services,132A,EAS Electrical Mechanical,12/05/2023,PE149427,647.91,0.00,Marine Hall: Installation of TP&N DB per quote,Responsive Building Maintenance
Wyre Council,http://opendatacommunities.org/doc/district-council/wyre,30/05/2023,People and Places,Support Services,135B,EAS Electrical Mechanical,25/05/2023,PE149764,3822.13,0.00,"Civic Centre: following recent repairs to leak to front of building, replaced faulty fire hydrant situated within grass bank at rear staff entrance.  In addition reposition main water pipe on its brackets.  Shorten 22mm feed to one of toilets",Responsive Building Maintenance
Wyre Council,http://opendatacommunities.org/doc/district-council/wyre,30/05/2023,People and Places,Support Services,135B,EAS Electrical Mechanical,23/05/2023,PE149691,72.00,0.00,Take meter readings at Civic Centre,Responsive Building Maintenance
Wyre Council,http://opendatacommunities.org/doc/district-council/wyre,30/05/2023,People and Places,Planning and Development Servs,132C,EAS Electrical Mechanical,04/05/2023,PE149282,70.60,0.00,Fleetwood Market: Install replacememnt lamps in disabled toilet and test,Responsive Building Maintenance
Wyre Council,http://opendatacommunities.org/doc/district-council/wyre,30/05/2023,People and Places,Planning and Development Servs,132C,EAS Electrical Mechanical,04/05/2023,PE149283,73.20,0.00,"Fleetwood Market: Investigate fault on toilet, isolate water and replace faulty syphon and test",Responsive Building Maintenance
Wyre Council,http://opendatacommunities.org/doc/district-council/wyre,30/05/2023,People and Places,Planning and Development Servs,132C,EAS Electrical Mechanical,04/05/2023,PE149288,48.00,0.00,"Fleetwood Market: Isolate power to door, rehang and tighten fixings, test on completion",Responsive Building Maintenance
Wyre Council,http://opendatacommunities.org/doc/district-council/wyre,30/05/2023,People and Places,Support Services,135B,EAS Electrical Mechanical,04/05/2023,PE149284,48.00,0.00,Civic Centre: re-fix tap to RH wash hand basin to ladies toilets room 138,Responsive Building Maintenance
Wyre Council,http://opendatacommunities.org/doc/district-council/wyre,30/05/2023,People and Places,Cultural and Related Services,132A,EAS Electrical Mechanical,04/05/2023,PE149286,71.41,0.00,"Memorial Park, Fleetwood: Isolate power, remove and replace faulty lamps and starters and resecure light fitting and test",Responsive Building Maintenance
Wyre Council,http://opendatacommunities.org/doc/district-council/wyre,30/05/2023,People and Places,Cultural and Related Services,132A,EAS Electrical Mechanical,04/05/2023,PE149285,94.52,0.00,"Memorial Park, Fleetwood: Replace damaged outside tap and pipework and test on completion",Responsive Building Maintenance
Wyre Council,http://opendatacommunities.org/doc/district-council/wyre,30/05/2023,People and Places,Support Services,135B,Academy Services (Lift Division) LTD,09/05/2023,PE149032,999.30,0.00,Civic Centre: 44404 06/04/23 Repair: Fully secure top guide right hand left side guide bracket and bottom LHS buide bracket,Responsive Building Maintenance
Wyre Council,http://opendatacommunities.org/doc/district-council/wyre,30/05/2023,People and Places,Cultural and Related Services,132A,COWLEY FIRE,10/05/2023,PE148828,329.60,0.00,"Mount Cottages: Supply new extinguishers, signs and fire safety related products",Responsive Building Maintenance
Wyre Council,http://opendatacommunities.org/doc/district-council/wyre,30/05/2023,People and Places,Environmental Services,132B,Greens Environmental LTD,09/05/2023,PE149314,750.00,0.00,"URGENT WORKS Please investigate jet, clean and remove all blockages to drains around Caf� Cove and Danfo Toilets.  An engineer has checked the manhole chamber and reported as follows: I checked the manhole chamber next to the fountain to be confronted wit",Responsive Building Maintenance
Wyre Council,http://opendatacommunities.org/doc/district-council/wyre,30/05/2023,People and Places,Environmental Services,132B,Greens Environmental LTD,09/05/2023,PE149313,650.00,0.00,Please undertake CCTV video inspection of previously blocked drain to identify defects.  Please provide condition report of drain and video of CCTV survey on completion to assetmanagement@wyre.gov.uk.  As per quotation - 650 + VAT.,Responsive Building Maintenance
Wyre Council,http://opendatacommunities.org/doc/district-council/wyre,30/05/2023,People and Places,Planning and Development Servs,132C,CASSIDY AND ASHTON GROUP LTD,17/05/2023,PE148578,1237.50,0.00,CONFIRMATION ORDER Professional Fees - as agreed Additional Fees - 28/02/2023 - 16/03/2023 !237.50 + VAT,Responsive Building Maintenance
Wyre Council,http://opendatacommunities.org/doc/district-council/wyre,30/05/2023,People and Places,Support Services,135B,John Carney,12/05/2023,PE149423,1250.00,0.00,Room 160: Carrying out all works to valley above room.  Taking out damaged lead replacing with new.  Re-fixing all small tiles.  Also for  supply scaffold tower to complete work safely,Responsive Building Maintenance
Wyre Council,http://opendatacommunities.org/doc/district-council/wyre,30/05/2023,People and Places,Public Transport,133G,John Carney,30/05/2023,PE149813,1200.00,0.00,"Repairs to roof at Gardeners store room, Cleveleys bus station",Responsive Building Maintenance
Wyre Council,http://opendatacommunities.org/doc/district-council/wyre,30/05/2023,People and Places,Cultural and Related Services,132A,John Carney,26/05/2023,PE149794,1800.00,0.00,"Wyreside Cafe, River Road:  Carry out all work to cafe roof.  Replace all damaged ridge tile using new to suit.  Supply and fix slates to different areas of roof.  Bagging up and removing all asbestos ridges safely.",Responsive Building Maintenance
Wyre Council,http://opendatacommunities.org/doc/district-council/wyre,30/05/2023,People and Places,Cultural and Related Services,132A,John Carney,26/05/2023,PE149795,180.00,0.00,Ferry Office: Taking down cast guttering to make sage.  Supply and fix new guttering and all associated fixings.  Keep old guttering till later date when new section of gutter has been located to be re-installed,Responsive Building Maintenance
Wyre Council,http://opendatacommunities.org/doc/district-council/wyre,30/05/2023,People and Places,Cultural and Related Services,132A,John Carney,23/05/2023,PE149687,215.00,0.00,Re-fixing lead flashings at Pavillion in Memorial Gardens Fleetwood,Responsive Building Maintenance
Wyre Council,http://opendatacommunities.org/doc/district-council/wyre,30/05/2023,People and Places,Cultural and Related Services,132A,John Carney,23/05/2023,PE149686,574.00,0.00,Carrying out roof repairs at Danfo toilets Memorial Park Fleetwood,Responsive Building Maintenance
Wyre Council,http://opendatacommunities.org/doc/district-council/wyre,30/05/2023,People and Places,Central Services to the Public,131C,John Carney,09/05/2023,PE149331,140.00,0.00,Teanlowe Centre:carry out minor roof repairs to stop water ingress in the community centre,Responsive Building Maintenance
Wyre Council,http://opendatacommunities.org/doc/district-council/wyre,30/05/2023,People and Places,Environmental Services,132B,John Carney,09/05/2023,PE149330,180.00,0.00,"Danfor Toilets Memorial Park Fleetwood: Carry out all roof repairs to different areas, taking out broken slates and replaceing with new due to vandals",Responsive Building Maintenance
Wyre Council,http://opendatacommunities.org/doc/district-council/wyre,30/05/2023,People and Places,Planning and Development Servs,132C,Maintenance Supplies Contracts Ltd,12/05/2023,PE149312,4230.50,0.00,Please undertake installation of Food Grade Polyurethane Resin Screed with perimeter mastic sealing in accordance with quotation REF119863/3 dated 5 April 2023 to Unit 7B discount credited PE149455,Responsive Building Maintenance
Wyre Council,http://opendatacommunities.org/doc/district-council/wyre,30/05/2023,People and Places,Cultural and Related Services,132A,GARRY CARR BUILDING SERVICES LTD,09/05/2023,PE149080,194.00,0.00,Investigate and rectify leaks to Marsh Mill,Responsive Building Maintenance
Wyre Council,http://opendatacommunities.org/doc/district-council/wyre,30/05/2023,People and Places,Cultural and Related Services,132A,GARRY CARR BUILDING SERVICES LTD,09/05/2023,PE148858,1030.00,0.00,Repairs to roof leaks to external dome at Marine Hall,Responsive Building Maintenance
Wyre Council,http://opendatacommunities.org/doc/district-council/wyre,30/05/2023,People and Places,Cultural and Related Services,132A,GARRY CARR BUILDING SERVICES LTD,09/05/2023,PE148857,1030.00,0.00,Repair cracks to solid roof at Fleetwood Kiosk 7,Responsive Building Maintenance
Wyre Council,http://opendatacommunities.org/doc/district-council/wyre,30/05/2023,People and Places,Cultural and Related Services,132A,GARRY CARR BUILDING SERVICES LTD,09/05/2023,PE149290,364.00,0.00,"Cottam Hall: Remove grafitti from window shutters and pain out. Remove large spray painted graffities brickwork using grinders, paint stripper and power washer",Responsive Building Maintenance
Wyre Council,http://opendatacommunities.org/doc/district-council/wyre,30/05/2023,People and Places,Cultural and Related Services,132A,GARRY CARR BUILDING SERVICES LTD,18/05/2023,PE149543,4300.00,0.00,Marine Hall: Following concrete repairs.  Prepare and paint all previously painted surfaces beach bungalows side of colonnade to include old roller shutters and door to bike store,Responsive Building Maintenance
Wyre Council,http://opendatacommunities.org/doc/district-council/wyre,30/05/2023,People and Places,Cultural and Related Services,132A,GARRY CARR BUILDING SERVICES LTD,17/05/2023,PE149377,5000.00,0.00,Marine Hall: Following repairs to the cracks and spalling concrete to west colonnade ares from stage doors to bike stores.  Carry out full preparation and painting,Responsive Building Maintenance
Wyre Council,http://opendatacommunities.org/doc/district-council/wyre,30/05/2023,People and Places,Cultural and Related Services,132A,GARRY CARR BUILDING SERVICES LTD,17/05/2023,PE149376,5000.00,0.00,"Marine Hall: Following repairs to cracks and spalling concrete to front of main building, carry out full preparation and repainting from stage doors to Juli`a office",Responsive Building Maintenance
Wyre Council,http://opendatacommunities.org/doc/district-council/wyre,30/05/2023,People and Places,Support Services,135B,GARRY CARR BUILDING SERVICES LTD,03/05/2023,PE149079,100.00,0.00,civic Centre: Ease windows to ground floor facing gardens,Responsive Building Maintenance
Wyre Council,http://opendatacommunities.org/doc/district-council/wyre,30/05/2023,People and Places,Environmental Services,132B,EVOLUTION CONSTRUCTION GROUP LTD,16/05/2023,PE148597,61.70,0.00,"Memorial Park mPavilion, Fleetwood: Replace 2 locks to notice board with siilar type locks and star keys. Hang certificate inside pavilion",Responsive Building Maintenance
Wyre Council,http://opendatacommunities.org/doc/district-council/wyre,30/05/2023,People and Places,Cultural and Related Services,132A,EVOLUTION CONSTRUCTION GROUP LTD,09/05/2023,PE149215,1012.37,0.00,Rossall Point Obs: Supply and fit replacement perspex covering to lower window which has blown off leaving line of nails sticking out,Responsive Building Maintenance
Wyre Council,http://opendatacommunities.org/doc/district-council/wyre,30/05/2023,People and Places,Cultural and Related Services,132A,EVOLUTION CONSTRUCTION GROUP LTD,09/05/2023,PE149212,711.89,0.00,Marine Hall: Ceiling/door replacement following major roof leak over the plant rom 28/03/23.  Fireline board over section of damaged asbestolux ceiling and replace badly damaged external door,Responsive Building Maintenance
Wyre Council,http://opendatacommunities.org/doc/district-council/wyre,30/05/2023,People and Places,Support Services,135B,EVOLUTION CONSTRUCTION GROUP LTD,03/05/2023,PE149205,36.83,0.00,Civic Centre: Room 026. Left sash window will not open.  Committee rooms 1 & 2: Top wind up windows are sticking causing staff to continue to wind.  It is feared this will cause windows to twist and crack the glass,Responsive Building Maintenance
Wyre Council,http://opendatacommunities.org/doc/district-council/wyre,30/05/2023,People and Places,Support Services,135B,EVOLUTION CONSTRUCTION GROUP LTD,03/05/2023,PE149217,36.83,0.00,Civic Centre: Ease fire door adjacent room 33 which is swollen and difficult to open and close,Responsive Building Maintenance
Wyre Council,http://opendatacommunities.org/doc/district-council/wyre,30/05/2023,People and Places,Cultural and Related Services,132A,EVOLUTION CONSTRUCTION GROUP LTD,03/05/2023,PE149213,36.22,0.00,Marine Hall: Repair or replace broken hasp and staple to bin store door,Responsive Building Maintenance
Wyre Council,http://opendatacommunities.org/doc/district-council/wyre,30/05/2023,People and Places,Cultural and Related Services,132A,EVOLUTION CONSTRUCTION GROUP LTD,03/05/2023,PE149211,163.66,0.00,"Kiosk 1, Pitch & Putt: Remove ceiling tiles to allow access to trapped bird",Responsive Building Maintenance
Wyre Council,http://opendatacommunities.org/doc/district-council/wyre,30/05/2023,People and Places,Cultural and Related Services,132A,EVOLUTION CONSTRUCTION GROUP LTD,03/05/2023,PE149206,40.91,0.00,Cottam Hall Pavilion: Replace vandalised door handle to main doors re: 28/03/23,Responsive Building Maintenance
Wyre Council,http://opendatacommunities.org/doc/district-council/wyre,30/05/2023,People and Places,Cultural and Related Services,132A,EVOLUTION CONSTRUCTION GROUP LTD,03/05/2023,PE149218,49.10,0.00,West Colonade store - Body Boarders: Roof repairs to colonnade rood,Responsive Building Maintenance
Wyre Council,http://opendatacommunities.org/doc/district-council/wyre,30/05/2023,People and Places,Cultural and Related Services,132A,EVOLUTION CONSTRUCTION GROUP LTD,03/05/2023,PE149214,54.05,0.00,Memorial park: refix or replace vandalised guttering to pavilion,Responsive Building Maintenance
Wyre Council,http://opendatacommunities.org/doc/district-council/wyre,30/05/2023,People and Places,Cultural and Related Services,132A,EVOLUTION CONSTRUCTION GROUP LTD,03/05/2023,PE149209,24.55,0.00,"Garage, 2 Derby Rd East CP, Kensington Rd, Cleveleys: Replace strip of wood which is hanging off rear of building",Responsive Building Maintenance
Wyre Council,http://opendatacommunities.org/doc/district-council/wyre,30/05/2023,People and Places,Cultural and Related Services,132A,EVOLUTION CONSTRUCTION GROUP LTD,03/05/2023,PE149216,24.55,0.00,Rossall Point Observatory: Investigate and rectify fault to maintenance room door which doesn`t latch when closed so doesn`t sit flush and then will not lock,Responsive Building Maintenance
Wyre Council,http://opendatacommunities.org/doc/district-council/wyre,30/05/2023,People and Places,Cultural and Related Services,132A,EVOLUTION CONSTRUCTION GROUP LTD,03/05/2023,PE149207,24.55,0.00,Ferry Office retail unit: Seal letterbox re: insruance requirement,Responsive Building Maintenance
Wyre Council,http://opendatacommunities.org/doc/district-council/wyre,30/05/2023,People and Places,Cultural and Related Services,132A,EVOLUTION CONSTRUCTION GROUP LTD,03/05/2023,PE148605,24.55,0.00,"Beer Cellar, The espalanade, fleetwood, FY7 6HF. Confirmation Order please check cellar door which wont always unlock",Responsive Building Maintenance
Wyre Council,http://opendatacommunities.org/doc/district-council/wyre,30/05/2023,People and Places,Support Services,135B,EVOLUTION CONSTRUCTION GROUP LTD,03/05/2023,PE149204,102.40,0.00,"Civic Centre: Investigate and rectify fault to desk, which constantly splinters.  Desk has been sanded twice so may require a new top fitting",Responsive Building Maintenance
Wyre Council,http://opendatacommunities.org/doc/district-council/wyre,30/05/2023,People and Places,Planning and Development Servs,132C,EVOLUTION CONSTRUCTION GROUP LTD,17/05/2023,PE149208,2681.79,0.00,Fleetwood Golf Club: Replace gents locker room door following break in,Responsive Building Maintenance
Wyre Council,http://opendatacommunities.org/doc/district-council/wyre,30/05/2023,People and Places,Support Services,135B,HUWS GRAY LTD,17/05/2023,PE149621,1113.00,0.00,Zest Rose Round Picnic Table 00006,Routine Maintenance
Wyre Council,http://opendatacommunities.org/doc/district-council/wyre,30/05/2023,People and Places,Highways,133B,Glasdon UK LTD,03/05/2023,PE149243,79.08,0.00,"Supply one memorial plaque.Plaque inscription to read In the Memory of Margaret Parkinson 01/11/1942 to 10/02/2022 and Harry Parkinson 13/02/1931 to 28/05/2022Together ForeverPlease deliver to Copse Road Depot, Copse Road, Fleetwood.  Please",Seats and Shelters (Non BM)
Wyre Council,http://opendatacommunities.org/doc/district-council/wyre,30/05/2023,People and Places,Highways,133B,Glasdon UK LTD,12/05/2023,PE149416,535.38,0.00,"Supply one black phoenix memorial bench with plaque.Plaque inscription to read In the Memory of Clive Hilton 25.09.1942 - 04.09.2022Please deliver bench to Copse Road Depot, Copse Road, Fleetwood.  Please contact Bob Greaves on 07967 116043 fo",Seats and Shelters (Non BM)
Wyre Council,http://opendatacommunities.org/doc/district-council/wyre,30/05/2023,People and Places,Environmental Services,132B,WATER PLUS LTD,02/05/2023,PE148771,80.21,0.00,"300172496X -Cemetery, Moorland  Road, Poulton le Fylde, FY6 7HA 01/04/23 to 01/04/24 Unmeasured     Sewerage",Sewerage
Wyre Council,http://opendatacommunities.org/doc/district-council/wyre,30/05/2023,People and Places,Environmental Services,132B,WATER PLUS LTD,02/05/2023,PE148771,111.44,0.00,"3002905739 -Ex Marine Gardens Ladies C, The Esplanade, Fleetwood, FY7 6BG  01/04/23 to 01/04/24 Unmeasured     Sewerage",Sewerage
Wyre Council,http://opendatacommunities.org/doc/district-council/wyre,30/05/2023,People and Places,Cultural and Related Services,132A,WATER PLUS LTD,02/05/2023,PE149021,17.80,0.00,Sewerage Charge,Sewerage
Wyre Council,http://opendatacommunities.org/doc/district-council/wyre,30/05/2023,People and Places,Planning and Development Servs,132C,WATER PLUS LTD,03/05/2023,PE148854,31.36,0.00,"3201359866 - Unit 8 Dock Ave, Fleetwood, FY7 6PS - 01/03/23 to 05/04/23 - used water",Sewerage
Wyre Council,http://opendatacommunities.org/doc/district-council/wyre,30/05/2023,People and Places,Cultural and Related Services,132A,WATER PLUS LTD,02/05/2023,PE149021,7.54,0.00,Sewerage Charge,Sewerage
Wyre Council,http://opendatacommunities.org/doc/district-council/wyre,30/05/2023,People and Places,Environmental Services,132B,WATER PLUS LTD,02/05/2023,PE149021,16.91,0.00,Sewerage Charge,Sewerage
Wyre Council,http://opendatacommunities.org/doc/district-council/wyre,30/05/2023,People and Places,Planning and Development Servs,132C,WATER PLUS LTD,02/05/2023,PE149021,65.21,0.00,Sewerage Charge,Sewerage
Wyre Council,http://opendatacommunities.org/doc/district-council/wyre,30/05/2023,People and Places,Planning and Development Servs,132C,WATER PLUS LTD,02/05/2023,PE149021,50.57,0.00,Total Charge per DPID,Sewerage
Wyre Council,http://opendatacommunities.org/doc/district-council/wyre,30/05/2023,People and Places,Cultural and Related Services,132A,WATER PLUS LTD,02/05/2023,PE149021,7.54,0.00,Sewerage Charge,Sewerage
Wyre Council,http://opendatacommunities.org/doc/district-council/wyre,30/05/2023,People and Places,Environmental Services,132B,WATER PLUS LTD,02/05/2023,PE149021,24.67,0.00,Sewerage Charge,Sewerage
Wyre Council,http://opendatacommunities.org/doc/district-council/wyre,30/05/2023,People and Places,Planning and Development Servs,132C,WATER PLUS LTD,02/05/2023,PE149021,3.87,0.00,Sewerage Charge,Sewerage
Wyre Council,http://opendatacommunities.org/doc/district-council/wyre,30/05/2023,People and Places,Cultural and Related Services,132A,WATER PLUS LTD,02/05/2023,PE149021,110.13,0.00,Sewerage Charge,Sewerage
Wyre Council,http://opendatacommunities.org/doc/district-council/wyre,30/05/2023,People and Places,Cultural and Related Services,132A,WATER PLUS LTD,02/05/2023,PE149021,91.27,0.00,Sewerage Charge,Sewerage
Wyre Council,http://opendatacommunities.org/doc/district-council/wyre,30/05/2023,People and Places,Cultural and Related Services,132A,WATER PLUS LTD,02/05/2023,PE149021,67.45,0.00,Sewerage Charge,Sewerage
Wyre Council,http://opendatacommunities.org/doc/district-council/wyre,30/05/2023,People and Places,Cultural and Related Services,132A,WATER PLUS LTD,02/05/2023,PE149021,11.21,0.00,Sewerage Charge,Sewerage
Wyre Council,http://opendatacommunities.org/doc/district-council/wyre,30/05/2023,People and Places,Cultural and Related Services,132A,WATER PLUS LTD,02/05/2023,PE149021,44.23,0.00,Sewerage Charge,Sewerage
Wyre Council,http://opendatacommunities.org/doc/district-council/wyre,30/05/2023,People and Places,Environmental Services,132B,WATER PLUS LTD,02/05/2023,PE149021,13.66,0.00,Sewerage Charge,Sewerage
Wyre Council,http://opendatacommunities.org/doc/district-council/wyre,30/05/2023,People and Places,Environmental Services,132B,WATER PLUS LTD,02/05/2023,PE149021,525.96,0.00,Sewerage Charge,Sewerage
Wyre Council,http://opendatacommunities.org/doc/district-council/wyre,30/05/2023,People and Places,Support Services,135B,WATER PLUS LTD,02/05/2023,PE149021,7155.49,0.00,Sewerage Charge,Sewerage
Wyre Council,http://opendatacommunities.org/doc/district-council/wyre,30/05/2023,People and Places,Central Services to the Public,131C,WATER PLUS LTD,02/05/2023,PE149021,56.44,0.00,Sewerage Charge,Sewerage
Wyre Council,http://opendatacommunities.org/doc/district-council/wyre,30/05/2023,People and Places,Cultural and Related Services,132A,WATER PLUS LTD,02/05/2023,PE149021,3.87,0.00,Sewerage Charge,Sewerage
Wyre Council,http://opendatacommunities.org/doc/district-council/wyre,30/05/2023,People and Places,Cultural and Related Services,132A,WATER PLUS LTD,02/05/2023,PE149021,14.87,0.00,Sewerage Charge,Sewerage
Wyre Council,http://opendatacommunities.org/doc/district-council/wyre,30/05/2023,People and Places,Cultural and Related Services,132A,WATER PLUS LTD,02/05/2023,PE149021,627.46,0.00,Sewerage Charge,Sewerage
Wyre Council,http://opendatacommunities.org/doc/district-council/wyre,30/05/2023,People and Places,Cultural and Related Services,132A,WATER PLUS LTD,02/05/2023,PE149021,353.66,0.00,Sewerage Charge,Sewerage
Wyre Council,http://opendatacommunities.org/doc/district-council/wyre,30/05/2023,People and Places,Cultural and Related Services,132A,WATER PLUS LTD,02/05/2023,PE149021,413.27,0.00,Sewerage Charge,Sewerage
Wyre Council,http://opendatacommunities.org/doc/district-council/wyre,30/05/2023,People and Places,Planning and Development Servs,132C,WATER PLUS LTD,16/05/2023,PE149526,29.33,0.00,Water/Wastewater charges for the period 01/12/22-01/01/23 estimated readings,Sewerage
Wyre Council,http://opendatacommunities.org/doc/district-council/wyre,30/05/2023,People and Places,Planning and Development Servs,132C,WATER PLUS LTD,16/05/2023,PE149527,28.17,0.00,Water/wastewater charges for the period 01/01/23-01/02/23 estimated readings,Sewerage
Wyre Council,http://opendatacommunities.org/doc/district-council/wyre,30/05/2023,People and Places,Planning and Development Servs,132C,WATER PLUS LTD,16/05/2023,PE149524,145.11,0.00,Water/Wastewater charges for the period 22/06/22 to 01/12/22 estimated reading,Sewerage
Wyre Council,http://opendatacommunities.org/doc/district-council/wyre,30/05/2023,People and Places,Planning and Development Servs,132C,WATER PLUS LTD,22/05/2023,PE149522,29.97,0.00,"3201359866 Unit 8 Dock Ave, Fleetwood, FY7 6PS 05/04/23 to 05/05/23",Sewerage
Wyre Council,http://opendatacommunities.org/doc/district-council/wyre,30/05/2023,Resources,Support Services,135B,Idox Software LTD,15/05/2023,RS149494,13870.00,0.00,Annual Technical Managed Service;Technical Managed Service to include upgrades only:- EDMS - x2 upgrades of the over the 5yr term - TLC - x1 upgrade per annum - Public Access - x1 upgrade per annum - Oracle - x2 upgrades over the 5yr term - Sna,Software Maintenance
Wyre Council,http://opendatacommunities.org/doc/district-council/wyre,30/05/2023,Resources,Support Services,135B,Idox Software LTD,24/05/2023,RS148201,4128.75,0.00,fully credited RS149535,Software Maintenance
Wyre Council,http://opendatacommunities.org/doc/district-council/wyre,30/05/2023,Resources,Support Services,135B,Idox Software LTD,24/05/2023,RS149535,-4128.75,0.00,credit against RS148201,Software Maintenance
Wyre Council,http://opendatacommunities.org/doc/district-council/wyre,30/05/2023,Resources,Support Services,135B,Civica UK LTD,24/05/2023,RS149723,29930.00,0.00,"Civica Financials Re-Contract Annual Licence Fee, Support & Maintenance Yr3 01/07/2023 - 30/06/2024",Software Maintenance
Wyre Council,http://opendatacommunities.org/doc/district-council/wyre,30/05/2023,Resources,Support Services,135B,Civica UK LTD,24/05/2023,RS149724,28446.75,0.00,"CivicaPay Annual Subs, including P400 and WPS 1.5 (1/7/23-30/6/24)",Software Maintenance
Wyre Council,http://opendatacommunities.org/doc/district-council/wyre,30/05/2023,Resources,Support Services,135B,Civica UK LTD,12/05/2023,RS149399,1859.82,0.00,Restricted App,Software Maintenance
Wyre Council,http://opendatacommunities.org/doc/district-council/wyre,30/05/2023,Resources,Support Services,135B,Civica UK LTD,12/05/2023,RS149399,8989.09,0.00,Modern.Gov Renewal - Annual support and Maintenance,Software Maintenance
Wyre Council,http://opendatacommunities.org/doc/district-council/wyre,30/05/2023,Resources,Support Services,135B,Civica UK LTD,12/05/2023,RS149399,3719.62,0.00,Modern.Gov Hosting Solution,Software Maintenance
Wyre Council,http://opendatacommunities.org/doc/district-council/wyre,30/05/2023,Resources,Support Services,135B,Phoenix Software LTD,05/05/2023,RS149040,879.95,0.00,Azure overage to March 2023,Software Maintenance
Wyre Council,http://opendatacommunities.org/doc/district-council/wyre,30/05/2023,Resources,Support Services,135B,Phoenix Software LTD,25/05/2023,RS149684,1293.51,0.00,Azure overage for period ending April 20th 2023,Software Maintenance
Wyre Council,http://opendatacommunities.org/doc/district-council/wyre,30/05/2023,Resources,Support Services,135B,Phoenix Software LTD,25/05/2023,RS149761,18.80,0.00,Visio Online Plan 1 Shared Server All Languages Subscription Per User - Licence,Software Maintenance
Wyre Council,http://opendatacommunities.org/doc/district-council/wyre,30/05/2023,Resources,Support Services,135B,NEC Software Solutions UK Limited,15/05/2023,RS149486,3213.00,0.00,Citizen Access - Integration (CA-I) SaaS 17.06.23 - 16.06.24,Software Maintenance
Wyre Council,http://opendatacommunities.org/doc/district-council/wyre,30/05/2023,Resources,Support Services,135B,NEC Software Solutions UK Limited,11/05/2023,RS149420,14679.00,0.00,Citizen Access - Revenues (CA-R) SaaS 17.06.23 - 16.06.24,Software Maintenance
Wyre Council,http://opendatacommunities.org/doc/district-council/wyre,30/05/2023,Resources,Support Services,135B,VIPRE,30/05/2023,RS149827,4737.12,0.00,Vipre eMail advanced threat protection 12months to 30/05/2024,Software Maintenance
Wyre Council,http://opendatacommunities.org/doc/district-council/wyre,30/05/2023,Resources,Cultural and Related Services,132A,Colourbanners.co.uk,02/05/2023,RS148717,175.00,0.00,5 x Coronation celebration banners 2m x 0.8m hemmed with eyelets all round all same artwork Cost includes VAT,Special Events
Wyre Council,http://opendatacommunities.org/doc/district-council/wyre,30/05/2023,People and Places,Cultural and Related Services,132A,Fools Paradise LTD,09/05/2023,PE149339,1350.00,0.00,"For the supply of the SkiBand for the Coronation event on Monday May 8th in Garstang 10am -4pmArtists` information to follow.Fee 1,350",Special Events
Wyre Council,http://opendatacommunities.org/doc/district-council/wyre,30/05/2023,People and Places,Cultural and Related Services,132A,Fools Paradise LTD,09/05/2023,PE149338,940.00,0.00,For the supply of Flock for the Coronation event on Monday May 8th in Garstang 10am -4pmArtists` information to follow.Fees 940,Special Events
Wyre Council,http://opendatacommunities.org/doc/district-council/wyre,30/05/2023,People and Places,Cultural and Related Services,132A,Fools Paradise LTD,10/05/2023,PE149351,740.00,0.00,For the supply of Belladona for the Coronation event on Monday May 8th in Garstang 10am -4pmArtists` information to follow.Fees: 740,Special Events
Wyre Council,http://opendatacommunities.org/doc/district-council/wyre,30/05/2023,People and Places,Cultural and Related Services,132A,Fools Paradise LTD,10/05/2023,PE149350,760.00,0.00,For the supply of Elton Wrong for the Coronation event on Monday May 8th in Garstang 10am -4pmArtists` information to follow.Fee 760,Special Events
Wyre Council,http://opendatacommunities.org/doc/district-council/wyre,30/05/2023,People and Places,Cultural and Related Services,132A,Fools Paradise LTD,10/05/2023,PE149349,680.00,0.00,For the supply of Rainbows for the Coronation event on Monday May 8th in Garstang 10am -4pmArtists` information to follow.Fees: 680,Special Events
Wyre Council,http://opendatacommunities.org/doc/district-council/wyre,30/05/2023,People and Places,Cultural and Related Services,132A,Fools Paradise LTD,10/05/2023,PE149348,775.00,0.00,For the supply of Cabezonas for the Coronation event on Monday May 8th in Garstang 10am -4pmArtists` information to follow.Fees 775,Special Events
Wyre Council,http://opendatacommunities.org/doc/district-council/wyre,30/05/2023,People and Places,Cultural and Related Services,132A,Fools Paradise LTD,10/05/2023,PE149347,940.00,0.00,For the supply of the Swallows for the Coronation event on Monday May 8th in Garstang 10am -4pmArtists` information to follow.Fees 940,Special Events
Wyre Council,http://opendatacommunities.org/doc/district-council/wyre,30/05/2023,People and Places,Cultural and Related Services,132A,Stardrivemusic,11/05/2023,PE149390,793.20,0.00,"For the sites management of the Coronation Events in Garstang on Monday 8th. To include infrastructure, sub hires, site visits and preparation.  Total 793.20",Special Events
Wyre Council,http://opendatacommunities.org/doc/district-council/wyre,30/05/2023,People and Places,Cultural and Related Services,132A,Gambolling Arena Theatre Company,15/05/2023,PE149495,900.00,0.00,For the Coronation Event as part of the the Garstang Coronation Walk.  The performance of Theo and the lost Crown,Special Events
Wyre Council,http://opendatacommunities.org/doc/district-council/wyre,30/05/2023,People and Places,Cultural and Related Services,132A,LINDA COPELAND,17/05/2023,PE149619,960.00,0.00,Fee for 4 X creative sessions HAF Easter 2023,Special Events
Wyre Council,http://opendatacommunities.org/doc/district-council/wyre,30/05/2023,People and Places,Cultural and Related Services,132A,LISA WIGHAM,30/05/2023,PE149863,2000.00,0.00,"The Artist Residency (1/11/2022 to 31/10/2023):Residency Total 8000 (2,000 per quarter)",Special Events
Wyre Council,http://opendatacommunities.org/doc/district-council/wyre,30/05/2023,People and Places,Cultural and Related Services,132A,LISA WIGHAM,30/05/2023,PE149863,1250.00,0.00,"Materials/Resources Total  5000 costs (1,250 per quarter)",Special Events
Wyre Council,http://opendatacommunities.org/doc/district-council/wyre,30/05/2023,People and Places,Cultural and Related Services,132A,LISA WIGHAM,30/05/2023,PE149863,300.00,0.00,Science and Discovery Club Total:  1200 for 12 workshops/activities (300 per quarter,Special Events
Wyre Council,http://opendatacommunities.org/doc/district-council/wyre,30/05/2023,Resources,Cultural and Related Services,132A,Visual Print and Design Ltd,15/05/2023,RS149493,310.00,0.00,2 x 3.2m feather flags - start and finish markers,Special Events
Wyre Council,http://opendatacommunities.org/doc/district-council/wyre,30/05/2023,Resources,Cultural and Related Services,132A,Visual Print and Design Ltd,04/05/2023,RS149270,335.00,0.00,"280 x Volunteer Thank You card A5 4pp, matt laminate outer, spot UV outer",Special Events
Wyre Council,http://opendatacommunities.org/doc/district-council/wyre,30/05/2023,People and Places,Cultural and Related Services,132A,Amazon Business,02/05/2023,PE149136,98.24,0.00,"x2 Walkie Talkies,eSynic 4Pcs Professional Best Walkie Talkies- 2 Way Radio Long Range Rechargeable Walkie Talkies for Adult With Original Earpieces &16CH Single Band Supports VOX Function etcWalkie Talkies,eSynic 4Pcs Professional Best Walkie Talkies- 2",Special Events
Wyre Council,http://opendatacommunities.org/doc/district-council/wyre,30/05/2023,People and Places,Cultural and Related Services,132A,Amazon Business,16/05/2023,PE149516,21.28,0.00,Star Cutouts Cut Out of Post Box - for Coronation Event,Special Events
Wyre Council,http://opendatacommunities.org/doc/district-council/wyre,30/05/2023,People and Places,Cultural and Related Services,132A,Amazon Business,04/05/2023,PE149266,20.73,0.00,"Surge Protected Extension Lead 3M, AUOPLUS 6 Way Power Strip with 4 USB Slots(3250W/13A), Multiple Plug Extension",Special Events
Wyre Council,http://opendatacommunities.org/doc/district-council/wyre,30/05/2023,People and Places,Cultural and Related Services,132A,Amazon Business,15/05/2023,PE149498,28.32,0.00,Fujifilm 16576520 Instax SQUARE 10 Sheets x 2 Packs Instant Camera Film,Special Events
Wyre Council,http://opendatacommunities.org/doc/district-council/wyre,30/05/2023,People and Places,Cultural and Related Services,132A,Amazon Business,05/05/2023,PE149305,4.89,0.00,Amazon Coronation Memorabilia,Special Events
Wyre Council,http://opendatacommunities.org/doc/district-council/wyre,30/05/2023,People and Places,Cultural and Related Services,132A,Amazon Business,05/05/2023,PE149319,12.12,0.00,Amazon Coronation Memorabilia,Special Events
Wyre Council,http://opendatacommunities.org/doc/district-council/wyre,30/05/2023,People and Places,Cultural and Related Services,132A,Amazon Business,05/05/2023,PE149318,16.50,0.00,Amazon Coronation Memorabilia,Special Events
Wyre Council,http://opendatacommunities.org/doc/district-council/wyre,30/05/2023,People and Places,Cultural and Related Services,132A,Amazon Business,05/05/2023,PE149317,11.73,0.00,Amazon Coronation Memorabilia,Special Events
Wyre Council,http://opendatacommunities.org/doc/district-council/wyre,30/05/2023,People and Places,Cultural and Related Services,132A,GARRY CARR BUILDING SERVICES LTD,03/05/2023,PE149081,100.00,0.00,"Marsh Mill: turning of wails Sat 8th April 1: attend site, remove brakes, carry out visual check and test sails. 2: return to site and set sails into correct position and re-connect brakes",Special Events
Wyre Council,http://opendatacommunities.org/doc/district-council/wyre,30/05/2023,People and Places,Support Services,135B,Dr Tree Surgeons,15/05/2023,PE149511,650.00,0.00,"Quote Number: 7351 The Side of 15 Ruthin Drive&#8208; x 2 white willows behind garage requirere&#8208;pollarding, also to remove lateral branches of remaining willowsencroaching towards dwelling and any defective branches.Total Net Amount: 65",Special Maintenance - Trees
Wyre Council,http://opendatacommunities.org/doc/district-council/wyre,30/05/2023,People and Places,Support Services,135B,Dr Tree Surgeons,10/05/2023,PE149359,3500.00,0.00,"Quote Number: 727 Quote Ref: Tower Close1 Tree work as per site meeting and tree schedule providedincluding two day track Cherry Picker hire.The removal of multiple trees , dead wooding of all trees, endweight reduction on some trees and long la",Special Maintenance - Trees
Wyre Council,http://opendatacommunities.org/doc/district-council/wyre,30/05/2023,People and Places,Support Services,135B,Dr Tree Surgeons,02/05/2023,PE148569,500.00,0.00,Quote Number: 717  1 The dead wooding of two Oak trees as requested at Vicarage Park. 360.00  1 the dead wooding of one multi stemmed white Popular at the end of Sherringham way. 140.00   Total Net Amount: 500.00 VAT @ 20%: 100.00 Quote Total: 600.00,Special Maintenance - Trees
Wyre Council,http://opendatacommunities.org/doc/district-council/wyre,30/05/2023,People and Places,Environmental Services,132B,EVOLUTION CONSTRUCTION GROUP LTD,03/05/2023,PE149210,42.93,0.00,"Garstang Rd Cemetery: nvestigate and rectify fault to notice board door, may require new lock",Special Works
Wyre Council,http://opendatacommunities.org/doc/district-council/wyre,30/05/2023,Resources,Support Services,135B,Preston City Council,04/05/2023,RS148278,15.50,0.00,"Building control officers business cards - 100 each of 4 kinds Mark Robinson, Jonathan Akroyd, Austin Atkinson, Charlie Thwaites",Stationery
Wyre Council,http://opendatacommunities.org/doc/district-council/wyre,30/05/2023,Resources,Support Services,135B,Preston City Council,04/05/2023,RS148278,13.00,0.00,Business Cards for Roger Longden Colin Wordsworth,Stationery
Wyre Council,http://opendatacommunities.org/doc/district-council/wyre,30/05/2023,People and Places,Planning and Development Servs,132C,Amazon Business,23/05/2023,PE149653,21.66,0.00,A4 paper for Fleetwood Market,Stationery
Wyre Council,http://opendatacommunities.org/doc/district-council/wyre,30/05/2023,People and Places,Cultural and Related Services,132A,Amazon Business,30/05/2023,PE149855,6.70,0.00,A4 laminating pouches,Stationery
Wyre Council,http://opendatacommunities.org/doc/district-council/wyre,30/05/2023,People and Places,Cultural and Related Services,132A,Amazon Business,30/05/2023,PE149855,16.60,0.00,A4 labels,Stationery
Wyre Council,http://opendatacommunities.org/doc/district-council/wyre,30/05/2023,People and Places,Cultural and Related Services,132A,Amazon Business,30/05/2023,PE149855,12.49,0.00,A4 note books,Stationery
Wyre Council,http://opendatacommunities.org/doc/district-council/wyre,30/05/2023,People and Places,Cultural and Related Services,132A,Amazon Business,30/05/2023,PE149855,3.91,0.00,A4 punch pockets,Stationery
Wyre Council,http://opendatacommunities.org/doc/district-council/wyre,30/05/2023,Resources,Support Services,135B,Amazon Business,30/05/2023,RS149853,6.60,0.00,Clinell Universal Cleaning and disinfectant wipes Bucket,Stationery
Wyre Council,http://opendatacommunities.org/doc/district-council/wyre,30/05/2023,People and Places,Support Services,135B,Amazon Business,31/05/2023,PE149809,18.74,0.00,heavy duty stapler for Environmental health pollution teams,Stationery
Wyre Council,http://opendatacommunities.org/doc/district-council/wyre,30/05/2023,People and Places,Support Services,135B,Amazon Business,31/05/2023,PE149860,2.25,0.00,heavy duty stapler for Environmental health pollution teams,Stationery
Wyre Council,http://opendatacommunities.org/doc/district-council/wyre,30/05/2023,People and Places,Current Assets,130B,Standard Fuel Oils,17/05/2023,PE149353,39618.20,0.00,payment of invoice 233999 for the supply of ultra low diesel  on 02/05/23  36010 litres @ 1.1002,Stock - Copse Road Fuel
Wyre Council,http://opendatacommunities.org/doc/district-council/wyre,30/05/2023,Resources,Current Assets,130B,Whistl Uk Limited,12/05/2023,RS149400,6.00,0.00,1106/01823,Stores Purchases
Wyre Council,http://opendatacommunities.org/doc/district-council/wyre,30/05/2023,Resources,Current Assets,130B,Whistl Uk Limited,12/05/2023,RS149400,368.67,0.00,1106/01823,Stores Purchases
Wyre Council,http://opendatacommunities.org/doc/district-council/wyre,30/05/2023,Resources,Current Assets,130B,Whistl Uk Limited,17/05/2023,RS149556,28.73,0.00,Postal charges 01/04/2023 - 31/03/2024,Stores Purchases
Wyre Council,http://opendatacommunities.org/doc/district-council/wyre,30/05/2023,Resources,Current Assets,130B,Whistl Uk Limited,05/05/2023,RS149296,254.73,0.00,Postal charges 01/04/2023 - 31/03/2024,Stores Purchases
Wyre Council,http://opendatacommunities.org/doc/district-council/wyre,30/05/2023,Resources,Current Assets,130B,Whistl Uk Limited,05/05/2023,RS149296,1.60,0.00,Postal charges 01/04/2023 - 31/03/2024,Stores Purchases
Wyre Council,http://opendatacommunities.org/doc/district-council/wyre,30/05/2023,Resources,Current Assets,130B,Whistl Uk Limited,24/05/2023,RS149747,321.93,0.00,Postal charges 01/04/2023 - 31/03/2024,Stores Purchases
Wyre Council,http://opendatacommunities.org/doc/district-council/wyre,30/05/2023,Resources,Current Assets,130B,Whistl Uk Limited,24/05/2023,RS149747,24.80,0.00,Postal charges 01/04/2023 - 31/03/2024,Stores Purchases
Wyre Council,http://opendatacommunities.org/doc/district-council/wyre,30/05/2023,Resources,Current Assets,130B,Pitney Bowes LTD  Postage By Phone,10/05/2023,RS149324,1000.00,0.00,Meter reset 13/04/23,Stores Purchases
Wyre Council,http://opendatacommunities.org/doc/district-council/wyre,30/05/2023,People and Places,Environmental Services,132B,Keep Britain Tidy,11/05/2023,PE149434,995.00,0.00,2023/24  annual Membership Fees KBT  - essential Membership,Street Cleansing Projects
Wyre Council,http://opendatacommunities.org/doc/district-council/wyre,30/05/2023,People and Places,Cultural and Related Services,132A,WATER PLUS LTD,02/05/2023,PE148771,107.31,0.00,"3001687215 - Sports Pavilion, Victoria Rd E, Thornton Cleveleys, FY5 3SZ  01/04/23 to 01/04/24 surface water",Surface Water/Highway Drainage
Wyre Council,http://opendatacommunities.org/doc/district-council/wyre,30/05/2023,People and Places,Cultural and Related Services,132A,WATER PLUS LTD,02/05/2023,PE148771,1344.05,0.00,"3003059106 - Marine Garden &amp; Lake, The Esplanade, Fleetwood, FY7 6DN  01/04/23 to 01/04/24 surface water",Surface Water/Highway Drainage
Wyre Council,http://opendatacommunities.org/doc/district-council/wyre,30/05/2023,People and Places,Cultural and Related Services,132A,WATER PLUS LTD,02/05/2023,PE148771,628.51,0.00,"3003059106 - Marine Garden &amp; Lake, The Esplanade, Fleetwood, FY7 6DN  01/04/23 to 01/04/24 highway drainage",Surface Water/Highway Drainage
Wyre Council,http://opendatacommunities.org/doc/district-council/wyre,30/05/2023,People and Places,Cultural and Related Services,132A,WATER PLUS LTD,02/05/2023,PE148771,107.31,0.00,"3001406208 - Jubilee Gardens, Victoria  Square, Thornton-Cleveleys, FY5 1AY 01/04/23 to 01/04/24 surface water",Surface Water/Highway Drainage
Wyre Council,http://opendatacommunities.org/doc/district-council/wyre,30/05/2023,People and Places,Cultural and Related Services,132A,WATER PLUS LTD,02/05/2023,PE148771,50.19,0.00,"3001406208 - Jubilee Gardens, Victoria Square, Thornton-Cleveleys, FY5  1AY 01/04/23 to 01/04/24 highway drainage",Surface Water/Highway Drainage
Wyre Council,http://opendatacommunities.org/doc/district-council/wyre,30/05/2023,People and Places,Central Services to the Public,131C,WATER PLUS LTD,02/05/2023,PE149021,12.41,0.00,Drainage Charge,Surface Water/Highway Drainage
Wyre Council,http://opendatacommunities.org/doc/district-council/wyre,30/05/2023,People and Places,Cultural and Related Services,132A,WATER PLUS LTD,02/05/2023,PE149021,504.56,0.00,Highway Drainage,Surface Water/Highway Drainage
Wyre Council,http://opendatacommunities.org/doc/district-council/wyre,30/05/2023,People and Places,Cultural and Related Services,132A,WATER PLUS LTD,02/05/2023,PE149021,229.48,0.00,Drainage Charge,Surface Water/Highway Drainage
Wyre Council,http://opendatacommunities.org/doc/district-council/wyre,30/05/2023,People and Places,Cultural and Related Services,132A,WATER PLUS LTD,02/05/2023,PE149021,167.84,0.00,Drainage Charge,Surface Water/Highway Drainage
Wyre Council,http://opendatacommunities.org/doc/district-council/wyre,30/05/2023,People and Places,Environmental Services,132B,WATER PLUS LTD,02/05/2023,PE149021,12.41,0.00,Drainage Charge,Surface Water/Highway Drainage
Wyre Council,http://opendatacommunities.org/doc/district-council/wyre,30/05/2023,People and Places,Environmental Services,132B,WATER PLUS LTD,02/05/2023,PE149021,12.41,0.00,Drainage Charge,Surface Water/Highway Drainage
Wyre Council,http://opendatacommunities.org/doc/district-council/wyre,30/05/2023,People and Places,Cultural and Related Services,132A,WATER PLUS LTD,02/05/2023,PE149021,86.75,0.00,Highway Drainage,Surface Water/Highway Drainage
Wyre Council,http://opendatacommunities.org/doc/district-council/wyre,30/05/2023,People and Places,Cultural and Related Services,132A,WATER PLUS LTD,02/05/2023,PE149021,30.82,0.00,Drainage Charge,Surface Water/Highway Drainage
Wyre Council,http://opendatacommunities.org/doc/district-council/wyre,30/05/2023,People and Places,Planning and Development Servs,132C,WATER PLUS LTD,03/05/2023,PE148854,4.26,0.00,"3201359866 - Unit 8 Dock Ave, Fleetwood, FY7 6PS - 01/03/23 to 05/04/23 - surface water drainage",Surface Water/Highway Drainage
Wyre Council,http://opendatacommunities.org/doc/district-council/wyre,30/05/2023,People and Places,Cultural and Related Services,132A,WATER PLUS LTD,02/05/2023,PE149021,12.41,0.00,Drainage Charge,Surface Water/Highway Drainage
Wyre Council,http://opendatacommunities.org/doc/district-council/wyre,30/05/2023,People and Places,Cultural and Related Services,132A,WATER PLUS LTD,02/05/2023,PE149021,12.41,0.00,Drainage Charge,Surface Water/Highway Drainage
Wyre Council,http://opendatacommunities.org/doc/district-council/wyre,30/05/2023,People and Places,Cultural and Related Services,132A,WATER PLUS LTD,02/05/2023,PE149021,12.03,0.00,Highway Drainage,Surface Water/Highway Drainage
Wyre Council,http://opendatacommunities.org/doc/district-council/wyre,30/05/2023,People and Places,Cultural and Related Services,132A,WATER PLUS LTD,02/05/2023,PE149021,176.32,0.00,Drainage Charge,Surface Water/Highway Drainage
Wyre Council,http://opendatacommunities.org/doc/district-council/wyre,30/05/2023,People and Places,Cultural and Related Services,132A,WATER PLUS LTD,02/05/2023,PE148771,107.31,0.00,"3001539925 - Cottam Hall Pavilion, Blackpool Old Rd, Poulton Le Fylde,  FY5 3SZ 01/04/23 to 01/04/24 surface water",Surface Water/Highway Drainage
Wyre Council,http://opendatacommunities.org/doc/district-council/wyre,30/05/2023,People and Places,Cultural and Related Services,132A,WATER PLUS LTD,02/05/2023,PE148771,50.19,0.00,"3001539925 - Cottam Hall Pavilion, Blackpool Old Rd, Poulton Le Fylde,  FY5 3SZ 01/04/23 to 01/04/24 highway drainage",Surface Water/Highway Drainage
Wyre Council,http://opendatacommunities.org/doc/district-council/wyre,30/05/2023,People and Places,Cultural and Related Services,132A,WATER PLUS LTD,02/05/2023,PE149021,325.08,0.00,Drainage Charge,Surface Water/Highway Drainage
Wyre Council,http://opendatacommunities.org/doc/district-council/wyre,30/05/2023,People and Places,Cultural and Related Services,132A,WATER PLUS LTD,02/05/2023,PE148771,50.19,0.00,"3000056165 -PC, The New Wave, North Promenade, Thornton Cleveleys, FY5  1LW 01/04/23 to 01/04/24 highway drainage",Surface Water/Highway Drainage
Wyre Council,http://opendatacommunities.org/doc/district-council/wyre,30/05/2023,People and Places,Cultural and Related Services,132A,WATER PLUS LTD,02/05/2023,PE148771,50.19,0.00,"3001687215 - Sports Pavilion, Victoria Rd E, Thornton Cleveleys, FY5 3SZ  01/04/23 to 01/04/24 highway drainage",Surface Water/Highway Drainage
Wyre Council,http://opendatacommunities.org/doc/district-council/wyre,30/05/2023,People and Places,Environmental Services,132B,WATER PLUS LTD,02/05/2023,PE148771,37.08,0.00,"3002905739 -Ex Marine Gardens Ladies C, The Esplanade, Fleetwood, FY7 6BG  01/04/23 to 01/04/24 surface water",Surface Water/Highway Drainage
Wyre Council,http://opendatacommunities.org/doc/district-council/wyre,30/05/2023,People and Places,Environmental Services,132B,WATER PLUS LTD,02/05/2023,PE148771,16.02,0.00,"3002905739 -Ex Marine Gardens Ladies C, The Esplanade, Fleetwood, FY7 6BG  01/04/23 to 01/04/24 highway drainage",Surface Water/Highway Drainage
Wyre Council,http://opendatacommunities.org/doc/district-council/wyre,30/05/2023,People and Places,Environmental Services,132B,WATER PLUS LTD,02/05/2023,PE148771,594.05,0.00,"3001643714 - PC adjacent the Esplanade, Fleetwood, FY7 6HF 01/04/23 to  01/04/24 surface water",Surface Water/Highway Drainage
Wyre Council,http://opendatacommunities.org/doc/district-council/wyre,30/05/2023,People and Places,Environmental Services,132B,WATER PLUS LTD,02/05/2023,PE148771,277.77,0.00,"3001643714 - PC adjacent the Esplanade, Fleetwood, FY7 6HF 01/04/23 to  01/04/24 highway drainage",Surface Water/Highway Drainage
Wyre Council,http://opendatacommunities.org/doc/district-council/wyre,30/05/2023,People and Places,Environmental Services,132B,WATER PLUS LTD,02/05/2023,PE148771,107.31,0.00,"3001706112 -82 High St, Great  Eccleston, PR3 0YB 01/04/23 to 01/04/24 surface water",Surface Water/Highway Drainage
Wyre Council,http://opendatacommunities.org/doc/district-council/wyre,30/05/2023,People and Places,Environmental Services,132B,WATER PLUS LTD,02/05/2023,PE148771,50.19,0.00,"3001706112 -82 High St, Great  Eccleston, PR3 0YB 01/04/23 to 01/04/24 highway drainage",Surface Water/Highway Drainage
Wyre Council,http://opendatacommunities.org/doc/district-council/wyre,30/05/2023,People and Places,Planning and Development Servs,132C,WATER PLUS LTD,02/05/2023,PE148771,2811.28,0.00,"3001924233 -Copse Rd, 50 Fleetwood, FY7 6RP 01/04/23 to 01/04/24 surface  water",Surface Water/Highway Drainage
Wyre Council,http://opendatacommunities.org/doc/district-council/wyre,30/05/2023,People and Places,Planning and Development Servs,132C,WATER PLUS LTD,02/05/2023,PE148771,5676.33,0.00,"3001924233 -Copse Rd, 50 Fleetwood, FY7 6RP 01/04/23 to 01/04/24 highway  drainage",Surface Water/Highway Drainage
Wyre Council,http://opendatacommunities.org/doc/district-council/wyre,30/05/2023,People and Places,Planning and Development Servs,132C,WATER PLUS LTD,02/05/2023,PE148771,107.31,0.00,"3002901229 -Store 1, 1st Floor, 24  Adelaide St, Fleetwood, FY7 6AB 01/04/23 to 01/04/24 surface water",Surface Water/Highway Drainage
Wyre Council,http://opendatacommunities.org/doc/district-council/wyre,30/05/2023,People and Places,Planning and Development Servs,132C,WATER PLUS LTD,02/05/2023,PE148771,50.19,0.00,"3002901229 -Store 1, 1st Floor, 24  Adelaide St, Fleetwood, FY7 6AB 01/04/23 to 01/04/24 highway drainage",Surface Water/Highway Drainage
Wyre Council,http://opendatacommunities.org/doc/district-council/wyre,30/05/2023,People and Places,Planning and Development Servs,132C,WATER PLUS LTD,02/05/2023,PE148771,107.31,0.00,"3000155848 -Store 2 1st Floor, 24 Adelaide St, Fleetwood, FY7 6AB  01/04/23 to 01/04/24 surface water",Surface Water/Highway Drainage
Wyre Council,http://opendatacommunities.org/doc/district-council/wyre,30/05/2023,People and Places,Planning and Development Servs,132C,WATER PLUS LTD,02/05/2023,PE148771,50.19,0.00,"3000155848 -Store 2 1st Floor, 24 Adelaide St, Fleetwood, FY7 6AB  01/04/23 to 01/04/24 highway drainage",Surface Water/Highway Drainage
